{"text_format":"1","workbook":"xlsx","n_sheets":3,"sheets":["עבודות מרובות","סך שעות","תשלומים"],"not_rendered":{"charts":0,"images":0,"macros":1,"external_links":0,"defined_names":10,"comments":0,"pivot_tables":0},"unopened":[],"bounds":{"document_bytes":16777216,"sheet_cells":100000,"rows_first":2000,"rows_last":500,"rows_between":2000,"halvings":0,"cell_chars":16384,"cell_head_chars":4096},"cells_cut":0,"cells_raw":0,"read":"whole","date_system":"1900"}

{"sheet":"עבודות מרובות","index":0,"n_rows":208,"n_cols":39,"rows_kept":208,"cut":false,"hidden":false,"merged":[[21,17,21,18],[22,17,22,18],[23,17,23,18],[26,17,26,18],[24,17,24,18],[25,17,25,18],[19,17,19,18],[56,11,60,18],[31,11,35,18],[21,11,21,12],[21,13,21,14],[22,11,22,12],[22,13,22,14],[23,11,23,12],[23,13,23,14],[24,11,24,12],[24,13,24,14],[25,11,25,12],[25,13,25,14],[26,11,26,12],[26,13,26,14],[27,11,27,12],[27,13,27,14],[39,11,40,18],[11,17,11,18],[12,17,12,18],[13,17,13,18],[14,17,14,18],[15,17,15,18],[16,17,16,18],[17,17,17,18],[18,17,18,18],[20,17,20,18],[7,17,7,18],[8,17,8,18],[10,8,10,9],[11,8,11,9],[12,8,12,9],[13,8,13,9],[14,8,14,9],[24,8,24,9],[9,11,9,12],[9,13,9,14],[10,11,10,12],[10,13,10,14],[11,11,11,12],[7,8,7,9],[8,8,8,9],[9,8,9,9],[20,8,20,9],[21,8,21,9],[22,8,22,9],[23,8,23,9],[15,8,15,9],[16,8,16,9],[9,17,9,18],[10,17,10,18],[17,8,17,9],[18,8,18,9],[19,8,19,9],[30,8,30,9],[31,8,31,9],[32,8,32,9],[33,8,33,9],[34,8,34,9],[25,8,25,9],[26,8,26,9],[27,8,27,9],[28,8,28,9],[29,8,29,9],[40,8,40,9],[41,8,41,9],[42,8,42,9],[43,8,43,9],[44,8,44,9],[35,8,35,9],[36,8,36,9],[37,8,37,9],[38,8,38,9],[39,8,39,9],[50,8,50,9],[51,8,51,9],[52,8,52,9],[53,8,53,9],[54,8,54,9],[45,8,45,9],[46,8,46,9],[47,8,47,9],[48,8,48,9],[49,8,49,9],[60,8,60,9],[61,8,61,9],[62,8,62,9],[63,8,63,9],[64,8,64,9],[55,8,55,9],[56,8,56,9],[57,8,57,9],[58,8,58,9],[59,8,59,9],[70,8,70,9],[71,8,71,9],[72,8,72,9],[73,8,73,9],[74,8,74,9],[65,8,65,9],[66,8,66,9],[67,8,67,9],[68,8,68,9],[69,8,69,9],[80,8,80,9],[81,8,81,9],[82,8,82,9],[83,8,83,9],[84,8,84,9],[75,8,75,9],[76,8,76,9],[77,8,77,9],[78,8,78,9],[79,8,79,9],[90,8,90,9],[91,8,91,9],[92,8,92,9],[93,8,93,9],[94,8,94,9],[85,8,85,9],[86,8,86,9],[87,8,87,9],[88,8,88,9],[89,8,89,9],[100,8,100,9],[101,8,101,9],[102,8,102,9],[103,8,103,9],[104,8,104,9],[95,8,95,9],[96,8,96,9],[97,8,97,9],[98,8,98,9],[99,8,99,9],[110,8,110,9],[111,8,111,9],[112,8,112,9],[113,8,113,9],[114,8,114,9],[105,8,105,9],[106,8,106,9],[107,8,107,9],[108,8,108,9],[109,8,109,9],[120,8,120,9],[121,8,121,9],[122,8,122,9],[123,8,123,9],[124,8,124,9],[115,8,115,9],[116,8,116,9],[117,8,117,9],[118,8,118,9],[119,8,119,9],[130,8,130,9],[131,8,131,9],[132,8,132,9],[133,8,133,9],[134,8,134,9],[125,8,125,9],[126,8,126,9],[127,8,127,9],[128,8,128,9],[129,8,129,9],[140,8,140,9],[141,8,141,9],[142,8,142,9],[143,8,143,9],[144,8,144,9],[135,8,135,9],[136,8,136,9],[137,8,137,9],[138,8,138,9],[139,8,139,9],[150,8,150,9],[151,8,151,9],[152,8,152,9],[153,8,153,9],[154,8,154,9],[145,8,145,9],[146,8,146,9],[147,8,147,9],[148,8,148,9],[149,8,149,9],[160,8,160,9],[161,8,161,9],[162,8,162,9],[163,8,163,9],[164,8,164,9],[155,8,155,9],[156,8,156,9],[157,8,157,9],[158,8,158,9],[159,8,159,9],[170,8,170,9],[171,8,171,9],[172,8,172,9],[173,8,173,9],[174,8,174,9],[165,8,165,9],[166,8,166,9],[167,8,167,9],[168,8,168,9],[169,8,169,9],[180,8,180,9],[181,8,181,9],[182,8,182,9],[183,8,183,9],[184,8,184,9],[175,8,175,9],[176,8,176,9],[177,8,177,9],[178,8,178,9],[179,8,179,9],[190,8,190,9],[191,8,191,9],[192,8,192,9],[193,8,193,9],[194,8,194,9],[185,8,185,9],[186,8,186,9],[187,8,187,9],[188,8,188,9],[189,8,189,9],[205,8,205,9],[206,8,206,9],[207,8,207,9],[200,8,200,9],[201,8,201,9],[202,8,202,9],[203,8,203,9],[204,8,204,9],[195,8,195,9],[196,8,196,9],[197,8,197,9],[198,8,198,9],[199,8,199,9],[1,12,1,13],[2,12,2,13],[3,12,3,13],[4,12,4,13],[5,12,5,13],[7,11,7,12],[7,13,7,14],[8,11,8,12],[8,13,8,14],[11,13,11,14],[12,11,12,12],[12,13,12,14],[13,11,13,12],[13,13,13,14],[14,11,14,12],[14,13,14,14],[15,11,15,12],[15,13,15,14],[16,11,16,12],[16,13,16,14],[17,11,17,12],[17,13,17,14],[18,11,18,12],[18,13,18,14],[19,11,19,12],[19,13,19,14],[20,11,20,12],[20,13,20,14],[45,11,49,18],[50,11,50,18],[51,11,52,18],[53,11,54,18],[41,11,44,18],[30,11,30,18],[36,11,38,18],[27,17,27,18],[110,11,110,18],[80,11,82,18],[79,11,79,18],[83,11,86,18],[87,11,88,18],[89,11,93,18],[94,11,96,18],[111,11,112,18],[55,11,55,18],[114,16,117,18],[108,11,109,18],[107,11,107,18],[106,11,106,18],[100,11,102,18],[97,11,97,18],[98,11,99,18],[61,11,64,18],[65,11,66,18],[69,11,69,18],[70,11,70,18],[71,11,74,18],[75,11,76,18],[77,11,78,18],[103,11,105,18],[67,11,68,18]]}
[]
[null,null,null,null,null,null,null,null,null,null,null,"מתאריך:","עד תאריך:",null,"שם העבודה","שעות","שכר","אחוזים מהיעד","יעד שכר"]
[null,null,null,null,null,null,null,null,{"$f":"IF(AM10=1,$AM$18,$AM$19)","v":"ü"},null,null,"2024-01-04","2024-01-06",null,"העורך התורני",{"$f":"IF(SUMIFS(שעות_עבודה7[שעות],שעות_עבודה7[תאריך], \">=\"&L3,שעות_עבודה7[תאריך], \"<=\"&M3,שעות_עבודה7[שם העבודה],O3)=0,\"\",\nSUMIFS(שעות_עבודה7[שעות],שעות_עבודה7[תאריך], \">=\"&L3,שעות_עבודה7[תאריך], \"<=\"&M3,שעות_עבודה7[שם העבודה],O3))","v":4.2581018518518476E-2},{"$f":"IF(SUMIFS(שעות_עבודה7[השכר],שעות_עבודה7[תאריך], \">=\"&L3,שעות_עבודה7[תאריך], \"<=\"&M3,שעות_עבודה7[שם העבודה],O3)=0,\"\",\nSUMIFS(שעות_עבודה7[השכר],שעות_עבודה7[תאריך], \">=\"&L3,שעות_עבודה7[תאריך], \"<=\"&M3,שעות_עבודה7[שם העבודה],O3))","v":51.097222222222172},{"$f":"IFERROR('עבודות מרובות'!$Q3/'עבודות מרובות'!$S3,\"\")","v":0.17032407407407391},300]
[null,null,null,null,null,null,null,null,null,null,null,"2024-01-01","2024-01-05",null,"המאיר לדרים",{"$f":"IF(SUMIFS(שעות_עבודה7[שעות],שעות_עבודה7[תאריך], \">=\"&L4,שעות_עבודה7[תאריך], \"<=\"&M4,שעות_עבודה7[שם העבודה],O4)=0,\"\",\nSUMIFS(שעות_עבודה7[שעות],שעות_עבודה7[תאריך], \">=\"&L4,שעות_עבודה7[תאריך], \"<=\"&M4,שעות_עבודה7[שם העבודה],O4))","v":0.16913194444444446},{"$f":"IF(SUMIFS(שעות_עבודה7[השכר],שעות_עבודה7[תאריך], \">=\"&L4,שעות_עבודה7[תאריך], \"<=\"&M4,שעות_עבודה7[שם העבודה],O4)=0,\"\",\nSUMIFS(שעות_עבודה7[השכר],שעות_עבודה7[תאריך], \">=\"&L4,שעות_עבודה7[תאריך], \"<=\"&M4,שעות_עבודה7[שם העבודה],O4))","v":243.55},{"$f":"IFERROR('עבודות מרובות'!$Q4/'עבודות מרובות'!$S4,\"\")","v":0.48710000000000003},500]
[null,null,null,null,null,null,null,null,{"$f":"IF(הקלקה=1,$AM$18,$AM$19)","v":"ü"},null,null,null,null,null,null,{"$f":"IF(SUMIFS(שעות_עבודה7[שעות],שעות_עבודה7[תאריך], \">=\"&L5,שעות_עבודה7[תאריך], \"<=\"&M5,שעות_עבודה7[שם העבודה],O5)=0,\"\",\nSUMIFS(שעות_עבודה7[שעות],שעות_עבודה7[תאריך], \">=\"&L5,שעות_עבודה7[תאריך], \"<=\"&M5,שעות_עבודה7[שם העבודה],O5))","v":""},{"$f":"IF(SUMIFS(שעות_עבודה7[השכר],שעות_עבודה7[תאריך], \">=\"&L5,שעות_עבודה7[תאריך], \"<=\"&M5,שעות_עבודה7[שם העבודה],O5)=0,\"\",\nSUMIFS(שעות_עבודה7[השכר],שעות_עבודה7[תאריך], \">=\"&L5,שעות_עבודה7[תאריך], \"<=\"&M5,שעות_עבודה7[שם העבודה],O5))","v":""},{"$f":"IFERROR('עבודות מרובות'!$Q5/'עבודות מרובות'!$S5,\"\")","v":""},300]
[null,null,null,null,null,null,null,null,null,null,null,"2024-01-04","2024-01-05",null,"כל העבודות",{"$f":"IF(SUMIFS(שעות_עבודה7[שעות],שעות_עבודה7[תאריך], \">=\"&L6,שעות_עבודה7[תאריך], \"<=\"&M6)=0,\"\",\nSUMIFS(שעות_עבודה7[שעות],שעות_עבודה7[תאריך], \">=\"&L6,שעות_עבודה7[תאריך], \"<=\"&M6))","v":0.6637615740740741},{"$f":"IF(SUMIFS(שעות_עבודה7[השכר],שעות_עבודה7[תאריך], \">=\"&L6,שעות_עבודה7[תאריך], \"<=\"&M6)=0,\"\",\nSUMIFS(שעות_עבודה7[השכר],שעות_עבודה7[תאריך], \">=\"&L6,שעות_עבודה7[תאריך], \"<=\"&M6))","v":666.75},{"$f":"IFERROR('עבודות מרובות'!$Q6/'עבודות מרובות'!$S6,\"\")","v":0.33337499999999998},2000]
[]
[null,null,"תאריך","שם העבודה","התחלה","סיום","שעות","השכר","הערות",null,null,"שמות העבודות",null,"שכר לשעה",null,"שעות העבודה","השכר לעבודה","הערות"]
[null,{"$f":"IF(שעות_עבודה7[[#This Row],[תאריך]]=\"\",\"\",ROW(A1))","v":1},"2024-01-01","חיים של תורה","20:33:46","23:00:16",{"$f":"IFERROR(IF(שעות_עבודה7[[#This Row],[סיום]]=\"\",\"\",שעות_עבודה7[[#This Row],[סיום]]-שעות_עבודה7[[#This Row],[התחלה]]+(שעות_עבודה7[[#This Row],[סיום]]<שעות_עבודה7[[#This Row],[התחלה]])),\"\")","v":0.10173611111111114},{"$f":"IF(שעות_עבודה7[[#This Row],[שעות]]=\"\",\"\",\nIF(SUMPRODUCT((שעות_עבודה7[[#This Row],[שם העבודה]]=$L$9:$M$28)*שעות_עבודה7[[#This Row],[שעות]]*($N$9:$O$28*24))=0,\"\",\nSUMPRODUCT((שעות_עבודה7[[#This Row],[שם העבודה]]=$L$9:$M$28)*שעות_עבודה7[[#This Row],[שעות]]*($N$9:$O$28*24))))","v":170.91666666666671},null,null,null,"הבית לעורך",null,30,null,{"$f":"IF('עבודות מרובות'!$L9=\"\",\"\",\nIFERROR(IF(SUMIFS(שעות_עבודה7[שעות],שעות_עבודה7[שם העבודה],'עבודות מרובות'!$L9)=0,\"\",SUMIFS(שעות_עבודה7[שעות],שעות_עבודה7[שם העבודה],'עבודות מרובות'!$L9)),\"\"))","v":0.66387731481481482},{"$f":"IF(OR('עבודות מרובות'!$N9=\"\",'עבודות מרובות'!$P9=\"\"),\"\",\nIF('עבודות מרובות'!$P9*'עבודות מרובות'!$N9*24=0,\"\",'עבודות מרובות'!$P9*'עבודות מרובות'!$N9*24))","v":477.99166666666667},null,null,null,null,null,null,null,null,null,null,null,null,null,null,null,null,null,null,null,null,null,"שמירה אוטומטית1=שמור, 0=אל תשמור"]
[null,{"$f":"IF(שעות_עבודה7[[#This Row],[תאריך]]=\"\",\"\",ROW(A2))","v":2},"2024-01-03","הבית לעורך","14:38:51","19:32:52",{"$f":"IFERROR(IF(שעות_עבודה7[[#This Row],[סיום]]=\"\",\"\",שעות_עבודה7[[#This Row],[סיום]]-שעות_עבודה7[[#This Row],[התחלה]]+(שעות_עבודה7[[#This Row],[סיום]]<שעות_עבודה7[[#This Row],[התחלה]])),\"\")","v":0.20417824074074076},{"$f":"IF(שעות_עבודה7[[#This Row],[שעות]]=\"\",\"\",\nIF(SUMPRODUCT((שעות_עבודה7[[#This Row],[שם העבודה]]=$L$9:$M$28)*שעות_עבודה7[[#This Row],[שעות]]*($N$9:$O$28*24))=0,\"\",\nSUMPRODUCT((שעות_עבודה7[[#This Row],[שם העבודה]]=$L$9:$M$28)*שעות_עבודה7[[#This Row],[שעות]]*($N$9:$O$28*24))))","v":147.00833333333335},null,null,null,"העורך התורני",null,50,50,{"$f":"IF('עבודות מרובות'!$L10=\"\",\"\",\nIFERROR(IF(SUMIFS(שעות_עבודה7[שעות],שעות_עבודה7[שם העבודה],'עבודות מרובות'!$L10)=0,\"\",SUMIFS(שעות_עבודה7[שעות],שעות_עבודה7[שם העבודה],'עבודות מרובות'!$L10)),\"\"))","v":4.2581018518518476E-2},{"$f":"IF(OR('עבודות מרובות'!$N10=\"\",'עבודות מרובות'!$P10=\"\"),\"\",\nIF('עבודות מרובות'!$P10*'עבודות מרובות'!$N10*24=0,\"\",'עבודות מרובות'!$P10*'עבודות מרובות'!$N10*24))","v":51.097222222222172},null,null,null,null,null,null,null,null,null,null,null,null,null,null,null,null,null,null,null,null,null,1]
[null,{"$f":"IF(שעות_עבודה7[[#This Row],[תאריך]]=\"\",\"\",ROW(A3))","v":3},"2024-01-03","עיון במקורות","14:38:56","20:55:38",{"$f":"IFERROR(IF(שעות_עבודה7[[#This Row],[סיום]]=\"\",\"\",שעות_עבודה7[[#This Row],[סיום]]-שעות_עבודה7[[#This Row],[התחלה]]+(שעות_עבודה7[[#This Row],[סיום]]<שעות_עבודה7[[#This Row],[התחלה]])),\"\")","v":0.26159722222222226},{"$f":"IF(שעות_עבודה7[[#This Row],[שעות]]=\"\",\"\",\nIF(SUMPRODUCT((שעות_עבודה7[[#This Row],[שם העבודה]]=$L$9:$M$28)*שעות_עבודה7[[#This Row],[שעות]]*($N$9:$O$28*24))=0,\"\",\nSUMPRODUCT((שעות_עבודה7[[#This Row],[שם העבודה]]=$L$9:$M$28)*שעות_עבודה7[[#This Row],[שעות]]*($N$9:$O$28*24))))","v":439.48333333333341},null,null,null,"חיים של תורה",null,70,null,{"$f":"IF('עבודות מרובות'!$L11=\"\",\"\",\nIFERROR(IF(SUMIFS(שעות_עבודה7[שעות],שעות_עבודה7[שם העבודה],'עבודות מרובות'!$L11)=0,\"\",SUMIFS(שעות_עבודה7[שעות],שעות_עבודה7[שם העבודה],'עבודות מרובות'!$L11)),\"\"))","v":0.10173611111111114},{"$f":"IF(OR('עבודות מרובות'!$N11=\"\",'עבודות מרובות'!$P11=\"\"),\"\",\nIF('עבודות מרובות'!$P11*'עבודות מרובות'!$N11*24=0,\"\",'עבודות מרובות'!$P11*'עבודות מרובות'!$N11*24))","v":170.91666666666671},null,null,null,null,null,null,null,null,null,null,null,null,null,null,null,null,null,null,null,null,null,"עבודה נבחרת"]
[null,{"$f":"IF(שעות_עבודה7[[#This Row],[תאריך]]=\"\",\"\",ROW(A4))","v":4},"2024-01-04","עריכת מהדו\"ת","22:47:48","23:38:06",{"$f":"IFERROR(IF(שעות_עבודה7[[#This Row],[סיום]]=\"\",\"\",שעות_עבודה7[[#This Row],[סיום]]-שעות_עבודה7[[#This Row],[התחלה]]+(שעות_עבודה7[[#This Row],[סיום]]<שעות_עבודה7[[#This Row],[התחלה]])),\"\")","v":3.4930555555555576E-2},{"$f":"IF(שעות_עבודה7[[#This Row],[שעות]]=\"\",\"\",\nIF(SUMPRODUCT((שעות_עבודה7[[#This Row],[שם העבודה]]=$L$9:$M$28)*שעות_עבודה7[[#This Row],[שעות]]*($N$9:$O$28*24))=0,\"\",\nSUMPRODUCT((שעות_עבודה7[[#This Row],[שם העבודה]]=$L$9:$M$28)*שעות_עבודה7[[#This Row],[שעות]]*($N$9:$O$28*24))))","v":92.216666666666725},null,null,null,"המאיר לדרים",null,60,50,{"$f":"IF('עבודות מרובות'!$L12=\"\",\"\",\nIFERROR(IF(SUMIFS(שעות_עבודה7[שעות],שעות_עבודה7[שם העבודה],'עבודות מרובות'!$L12)=0,\"\",SUMIFS(שעות_עבודה7[שעות],שעות_עבודה7[שם העבודה],'עבודות מרובות'!$L12)),\"\"))","v":0.16913194444444446},{"$f":"IF(OR('עבודות מרובות'!$N12=\"\",'עבודות מרובות'!$P12=\"\"),\"\",\nIF('עבודות מרובות'!$P12*'עבודות מרובות'!$N12*24=0,\"\",'עבודות מרובות'!$P12*'עבודות מרובות'!$N12*24))","v":243.55},null,null,null,null,null,null,null,null,null,null,null,null,null,null,null,null,null,null,null,null,null,1]
[null,{"$f":"IF(שעות_עבודה7[[#This Row],[תאריך]]=\"\",\"\",ROW(A5))","v":5},"2024-01-05","הבית לעורך","12:36:09","23:38:07",{"$f":"IFERROR(IF(שעות_עבודה7[[#This Row],[סיום]]=\"\",\"\",שעות_עבודה7[[#This Row],[סיום]]-שעות_עבודה7[[#This Row],[התחלה]]+(שעות_עבודה7[[#This Row],[סיום]]<שעות_עבודה7[[#This Row],[התחלה]])),\"\")","v":0.45969907407407407},{"$f":"IF(שעות_עבודה7[[#This Row],[שעות]]=\"\",\"\",\nIF(SUMPRODUCT((שעות_עבודה7[[#This Row],[שם העבודה]]=$L$9:$M$28)*שעות_עבודה7[[#This Row],[שעות]]*($N$9:$O$28*24))=0,\"\",\nSUMPRODUCT((שעות_עבודה7[[#This Row],[שם העבודה]]=$L$9:$M$28)*שעות_עבודה7[[#This Row],[שעות]]*($N$9:$O$28*24))))","v":330.98333333333335},null,null,null,"עריכת מהדו\"ת",null,110,null,{"$f":"IF('עבודות מרובות'!$L13=\"\",\"\",\nIFERROR(IF(SUMIFS(שעות_עבודה7[שעות],שעות_עבודה7[שם העבודה],'עבודות מרובות'!$L13)=0,\"\",SUMIFS(שעות_עבודה7[שעות],שעות_עבודה7[שם העבודה],'עבודות מרובות'!$L13)),\"\"))","v":3.4930555555555576E-2},{"$f":"IF(OR('עבודות מרובות'!$N13=\"\",'עבודות מרובות'!$P13=\"\"),\"\",\nIF('עבודות מרובות'!$P13*'עבודות מרובות'!$N13*24=0,\"\",'עבודות מרובות'!$P13*'עבודות מרובות'!$N13*24))","v":92.216666666666725},null,null,null,null,null,null,null,null,null,null,null,null,null,null,null,null,null,null,null,null,null,"שם עבודה נבחרת"]
[null,{"$f":"IF(שעות_עבודה7[[#This Row],[תאריך]]=\"\",\"\",ROW(A6))","v":6},"2024-01-06","העורך התורני","08:36:49","09:38:08",{"$f":"IFERROR(IF(שעות_עבודה7[[#This Row],[סיום]]=\"\",\"\",שעות_עבודה7[[#This Row],[סיום]]-שעות_עבודה7[[#This Row],[התחלה]]+(שעות_עבודה7[[#This Row],[סיום]]<שעות_עבודה7[[#This Row],[התחלה]])),\"\")","v":4.2581018518518476E-2},{"$f":"IF(שעות_עבודה7[[#This Row],[שעות]]=\"\",\"\",\nIF(SUMPRODUCT((שעות_עבודה7[[#This Row],[שם העבודה]]=$L$9:$M$28)*שעות_עבודה7[[#This Row],[שעות]]*($N$9:$O$28*24))=0,\"\",\nSUMPRODUCT((שעות_עבודה7[[#This Row],[שם העבודה]]=$L$9:$M$28)*שעות_עבודה7[[#This Row],[שעות]]*($N$9:$O$28*24))))","v":51.097222222222172},null,null,null,"עיון במקורות",null,70,50,{"$f":"IF('עבודות מרובות'!$L14=\"\",\"\",\nIFERROR(IF(SUMIFS(שעות_עבודה7[שעות],שעות_עבודה7[שם העבודה],'עבודות מרובות'!$L14)=0,\"\",SUMIFS(שעות_עבודה7[שעות],שעות_עבודה7[שם העבודה],'עבודות מרובות'!$L14)),\"\"))","v":0.26159722222222226},{"$f":"IF(OR('עבודות מרובות'!$N14=\"\",'עבודות מרובות'!$P14=\"\"),\"\",\nIF('עבודות מרובות'!$P14*'עבודות מרובות'!$N14*24=0,\"\",'עבודות מרובות'!$P14*'עבודות מרובות'!$N14*24))","v":439.48333333333341},null,null,null,null,null,null,null,null,null,null,null,null,null,null,null,null,null,null,null,null,null,{"$f":"INDEX('עבודות מרובות'!$L$9:$L$28,AM12)","v":"הבית לעורך"}]
[null,{"$f":"IF(שעות_עבודה7[[#This Row],[תאריך]]=\"\",\"\",ROW(A7))","v":7},"2024-01-05","המאיר לדרים","10:04:14","14:07:47",{"$f":"IFERROR(IF(שעות_עבודה7[[#This Row],[סיום]]=\"\",\"\",שעות_עבודה7[[#This Row],[סיום]]-שעות_עבודה7[[#This Row],[התחלה]]+(שעות_עבודה7[[#This Row],[סיום]]<שעות_עבודה7[[#This Row],[התחלה]])),\"\")","v":0.16913194444444446},{"$f":"IF(שעות_עבודה7[[#This Row],[שעות]]=\"\",\"\",\nIF(SUMPRODUCT((שעות_עבודה7[[#This Row],[שם העבודה]]=$L$9:$M$28)*שעות_עבודה7[[#This Row],[שעות]]*($N$9:$O$28*24))=0,\"\",\nSUMPRODUCT((שעות_עבודה7[[#This Row],[שם העבודה]]=$L$9:$M$28)*שעות_עבודה7[[#This Row],[שעות]]*($N$9:$O$28*24))))","v":243.55},null,null,null,null,null,null,null,{"$f":"IF('עבודות מרובות'!$L15=\"\",\"\",\nIFERROR(IF(SUMIFS(שעות_עבודה7[שעות],שעות_עבודה7[שם העבודה],'עבודות מרובות'!$L15)=0,\"\",SUMIFS(שעות_עבודה7[שעות],שעות_עבודה7[שם העבודה],'עבודות מרובות'!$L15)),\"\"))","v":""},{"$f":"IF(OR('עבודות מרובות'!$N15=\"\",'עבודות מרובות'!$P15=\"\"),\"\",\nIF('עבודות מרובות'!$P15*'עבודות מרובות'!$N15*24=0,\"\",'עבודות מרובות'!$P15*'עבודות מרובות'!$N15*24))","v":""},null,null,null,null,null,null,null,null,null,null,null,null,null,null,null,null,null,null,null,null,null,"שכר לעבודה נבחרת"]
[null,{"$f":"IF(שעות_עבודה7[[#This Row],[תאריך]]=\"\",\"\",ROW(A8))","v":""},null,null,null,null,{"$f":"IFERROR(IF(שעות_עבודה7[[#This Row],[סיום]]=\"\",\"\",שעות_עבודה7[[#This Row],[סיום]]-שעות_עבודה7[[#This Row],[התחלה]]+(שעות_עבודה7[[#This Row],[סיום]]<שעות_עבודה7[[#This Row],[התחלה]])),\"\")","v":""},{"$f":"IF(שעות_עבודה7[[#This Row],[שעות]]=\"\",\"\",\nIF(SUMPRODUCT((שעות_עבודה7[[#This Row],[שם העבודה]]=$L$9:$M$28)*שעות_עבודה7[[#This Row],[שעות]]*($N$9:$O$28*24))=0,\"\",\nSUMPRODUCT((שעות_עבודה7[[#This Row],[שם העבודה]]=$L$9:$M$28)*שעות_עבודה7[[#This Row],[שעות]]*($N$9:$O$28*24))))","v":""},null,null,null,null,null,null,null,{"$f":"IF('עבודות מרובות'!$L16=\"\",\"\",\nIFERROR(IF(SUMIFS(שעות_עבודה7[שעות],שעות_עבודה7[שם העבודה],'עבודות מרובות'!$L16)=0,\"\",SUMIFS(שעות_עבודה7[שעות],שעות_עבודה7[שם העבודה],'עבודות מרובות'!$L16)),\"\"))","v":""},{"$f":"IF(OR('עבודות מרובות'!$N16=\"\",'עבודות מרובות'!$P16=\"\"),\"\",\nIF('עבודות מרובות'!$P16*'עבודות מרובות'!$N16*24=0,\"\",'עבודות מרובות'!$P16*'עבודות מרובות'!$N16*24))","v":""},null,null,null,null,null,null,null,null,null,null,null,null,null,null,null,null,null,null,null,null,null,{"$f":"VLOOKUP(שם_העבודה,'עבודות מרובות'!$L$9:$Q$28,3)","v":30}]
[null,{"$f":"IF(שעות_עבודה7[[#This Row],[תאריך]]=\"\",\"\",ROW(A9))","v":""},null,null,null,null,{"$f":"IFERROR(IF(שעות_עבודה7[[#This Row],[סיום]]=\"\",\"\",שעות_עבודה7[[#This Row],[סיום]]-שעות_עבודה7[[#This Row],[התחלה]]+(שעות_עבודה7[[#This Row],[סיום]]<שעות_עבודה7[[#This Row],[התחלה]])),\"\")","v":""},{"$f":"IF(שעות_עבודה7[[#This Row],[שעות]]=\"\",\"\",\nIF(SUMPRODUCT((שעות_עבודה7[[#This Row],[שם העבודה]]=$L$9:$M$28)*שעות_עבודה7[[#This Row],[שעות]]*($N$9:$O$28*24))=0,\"\",\nSUMPRODUCT((שעות_עבודה7[[#This Row],[שם העבודה]]=$L$9:$M$28)*שעות_עבודה7[[#This Row],[שעות]]*($N$9:$O$28*24))))","v":""},null,null,null,null,null,null,null,{"$f":"IF('עבודות מרובות'!$L17=\"\",\"\",\nIFERROR(IF(SUMIFS(שעות_עבודה7[שעות],שעות_עבודה7[שם העבודה],'עבודות מרובות'!$L17)=0,\"\",SUMIFS(שעות_עבודה7[שעות],שעות_עבודה7[שם העבודה],'עבודות מרובות'!$L17)),\"\"))","v":""},{"$f":"IF(OR('עבודות מרובות'!$N17=\"\",'עבודות מרובות'!$P17=\"\"),\"\",\nIF('עבודות מרובות'!$P17*'עבודות מרובות'!$N17*24=0,\"\",'עבודות מרובות'!$P17*'עבודות מרובות'!$N17*24))","v":""},null,null,null,null,null,null,null,null,null,null,null,null,null,null,null,null,null,null,null,null,null,"סימנים"]
[null,{"$f":"IF(שעות_עבודה7[[#This Row],[תאריך]]=\"\",\"\",ROW(A10))","v":""},null,null,null,null,{"$f":"IFERROR(IF(שעות_עבודה7[[#This Row],[סיום]]=\"\",\"\",שעות_עבודה7[[#This Row],[סיום]]-שעות_עבודה7[[#This Row],[התחלה]]+(שעות_עבודה7[[#This Row],[סיום]]<שעות_עבודה7[[#This Row],[התחלה]])),\"\")","v":""},{"$f":"IF(שעות_עבודה7[[#This Row],[שעות]]=\"\",\"\",\nIF(SUMPRODUCT((שעות_עבודה7[[#This Row],[שם העבודה]]=$L$9:$M$28)*שעות_עבודה7[[#This Row],[שעות]]*($N$9:$O$28*24))=0,\"\",\nSUMPRODUCT((שעות_עבודה7[[#This Row],[שם העבודה]]=$L$9:$M$28)*שעות_עבודה7[[#This Row],[שעות]]*($N$9:$O$28*24))))","v":""},null,null,null,null,null,null,null,{"$f":"IF('עבודות מרובות'!$L18=\"\",\"\",\nIFERROR(IF(SUMIFS(שעות_עבודה7[שעות],שעות_עבודה7[שם העבודה],'עבודות מרובות'!$L18)=0,\"\",SUMIFS(שעות_עבודה7[שעות],שעות_עבודה7[שם העבודה],'עבודות מרובות'!$L18)),\"\"))","v":""},{"$f":"IF(OR('עבודות מרובות'!$N18=\"\",'עבודות מרובות'!$P18=\"\"),\"\",\nIF('עבודות מרובות'!$P18*'עבודות מרובות'!$N18*24=0,\"\",'עבודות מרובות'!$P18*'עבודות מרובות'!$N18*24))","v":""},null,null,null,null,null,null,null,null,null,null,null,null,null,null,null,null,null,null,null,null,null,"ü"]
[null,{"$f":"IF(שעות_עבודה7[[#This Row],[תאריך]]=\"\",\"\",ROW(A11))","v":""},null,null,null,null,{"$f":"IFERROR(IF(שעות_עבודה7[[#This Row],[סיום]]=\"\",\"\",שעות_עבודה7[[#This Row],[סיום]]-שעות_עבודה7[[#This Row],[התחלה]]+(שעות_עבודה7[[#This Row],[סיום]]<שעות_עבודה7[[#This Row],[התחלה]])),\"\")","v":""},{"$f":"IF(שעות_עבודה7[[#This Row],[שעות]]=\"\",\"\",\nIF(SUMPRODUCT((שעות_עבודה7[[#This Row],[שם העבודה]]=$L$9:$M$28)*שעות_עבודה7[[#This Row],[שעות]]*($N$9:$O$28*24))=0,\"\",\nSUMPRODUCT((שעות_עבודה7[[#This Row],[שם העבודה]]=$L$9:$M$28)*שעות_עבודה7[[#This Row],[שעות]]*($N$9:$O$28*24))))","v":""},null,null,null,null,null,null,null,{"$f":"IF('עבודות מרובות'!$L19=\"\",\"\",\nIFERROR(IF(SUMIFS(שעות_עבודה7[שעות],שעות_עבודה7[שם העבודה],'עבודות מרובות'!$L19)=0,\"\",SUMIFS(שעות_עבודה7[שעות],שעות_עבודה7[שם העבודה],'עבודות מרובות'!$L19)),\"\"))","v":""},{"$f":"IF(OR('עבודות מרובות'!$N19=\"\",'עבודות מרובות'!$P19=\"\"),\"\",\nIF('עבודות מרובות'!$P19*'עבודות מרובות'!$N19*24=0,\"\",'עבודות מרובות'!$P19*'עבודות מרובות'!$N19*24))","v":""},null,null,null,null,null,null,null,null,null,null,null,null,null,null,null,null,null,null,null,null,null,"û"]
[null,{"$f":"IF(שעות_עבודה7[[#This Row],[תאריך]]=\"\",\"\",ROW(A12))","v":""},null,null,null,null,{"$f":"IFERROR(IF(שעות_עבודה7[[#This Row],[סיום]]=\"\",\"\",שעות_עבודה7[[#This Row],[סיום]]-שעות_עבודה7[[#This Row],[התחלה]]+(שעות_עבודה7[[#This Row],[סיום]]<שעות_עבודה7[[#This Row],[התחלה]])),\"\")","v":""},{"$f":"IF(שעות_עבודה7[[#This Row],[שעות]]=\"\",\"\",\nIF(SUMPRODUCT((שעות_עבודה7[[#This Row],[שם העבודה]]=$L$9:$M$28)*שעות_עבודה7[[#This Row],[שעות]]*($N$9:$O$28*24))=0,\"\",\nSUMPRODUCT((שעות_עבודה7[[#This Row],[שם העבודה]]=$L$9:$M$28)*שעות_עבודה7[[#This Row],[שעות]]*($N$9:$O$28*24))))","v":""},null,null,null,null,null,null,null,{"$f":"IF('עבודות מרובות'!$L20=\"\",\"\",\nIFERROR(IF(SUMIFS(שעות_עבודה7[שעות],שעות_עבודה7[שם העבודה],'עבודות מרובות'!$L20)=0,\"\",SUMIFS(שעות_עבודה7[שעות],שעות_עבודה7[שם העבודה],'עבודות מרובות'!$L20)),\"\"))","v":""},{"$f":"IF(OR('עבודות מרובות'!$N20=\"\",'עבודות מרובות'!$P20=\"\"),\"\",\nIF('עבודות מרובות'!$P20*'עבודות מרובות'!$N20*24=0,\"\",'עבודות מרובות'!$P20*'עבודות מרובות'!$N20*24))","v":""},null,null,null,null,null,null,null,null,null,null,null,null,null,null,null,null,null,null,null,null,null,"הקלקה כפולה"]
[null,{"$f":"IF(שעות_עבודה7[[#This Row],[תאריך]]=\"\",\"\",ROW(A13))","v":""},null,null,null,null,{"$f":"IFERROR(IF(שעות_עבודה7[[#This Row],[סיום]]=\"\",\"\",שעות_עבודה7[[#This Row],[סיום]]-שעות_עבודה7[[#This Row],[התחלה]]+(שעות_עבודה7[[#This Row],[סיום]]<שעות_עבודה7[[#This Row],[התחלה]])),\"\")","v":""},{"$f":"IF(שעות_עבודה7[[#This Row],[שעות]]=\"\",\"\",\nIF(SUMPRODUCT((שעות_עבודה7[[#This Row],[שם העבודה]]=$L$9:$M$28)*שעות_עבודה7[[#This Row],[שעות]]*($N$9:$O$28*24))=0,\"\",\nSUMPRODUCT((שעות_עבודה7[[#This Row],[שם העבודה]]=$L$9:$M$28)*שעות_עבודה7[[#This Row],[שעות]]*($N$9:$O$28*24))))","v":""},null,null,null,null,null,null,null,{"$f":"IF('עבודות מרובות'!$L21=\"\",\"\",\nIFERROR(IF(SUMIFS(שעות_עבודה7[שעות],שעות_עבודה7[שם העבודה],'עבודות מרובות'!$L21)=0,\"\",SUMIFS(שעות_עבודה7[שעות],שעות_עבודה7[שם העבודה],'עבודות מרובות'!$L21)),\"\"))","v":""},{"$f":"IF(OR('עבודות מרובות'!$N21=\"\",'עבודות מרובות'!$P21=\"\"),\"\",\nIF('עבודות מרובות'!$P21*'עבודות מרובות'!$N21*24=0,\"\",'עבודות מרובות'!$P21*'עבודות מרובות'!$N21*24))","v":""},null,null,null,null,null,null,null,null,null,null,null,null,null,null,null,null,null,null,null,null,null,1]
[null,{"$f":"IF(שעות_עבודה7[[#This Row],[תאריך]]=\"\",\"\",ROW(A14))","v":""},null,null,null,null,{"$f":"IFERROR(IF(שעות_עבודה7[[#This Row],[סיום]]=\"\",\"\",שעות_עבודה7[[#This Row],[סיום]]-שעות_עבודה7[[#This Row],[התחלה]]+(שעות_עבודה7[[#This Row],[סיום]]<שעות_עבודה7[[#This Row],[התחלה]])),\"\")","v":""},{"$f":"IF(שעות_עבודה7[[#This Row],[שעות]]=\"\",\"\",\nIF(SUMPRODUCT((שעות_עבודה7[[#This Row],[שם העבודה]]=$L$9:$M$28)*שעות_עבודה7[[#This Row],[שעות]]*($N$9:$O$28*24))=0,\"\",\nSUMPRODUCT((שעות_עבודה7[[#This Row],[שם העבודה]]=$L$9:$M$28)*שעות_עבודה7[[#This Row],[שעות]]*($N$9:$O$28*24))))","v":""},null,null,null,null,null,null,null,{"$f":"IF('עבודות מרובות'!$L22=\"\",\"\",\nIFERROR(IF(SUMIFS(שעות_עבודה7[שעות],שעות_עבודה7[שם העבודה],'עבודות מרובות'!$L22)=0,\"\",SUMIFS(שעות_עבודה7[שעות],שעות_עבודה7[שם העבודה],'עבודות מרובות'!$L22)),\"\"))","v":""},{"$f":"IF(OR('עבודות מרובות'!$N22=\"\",'עבודות מרובות'!$P22=\"\"),\"\",\nIF('עבודות מרובות'!$P22*'עבודות מרובות'!$N22*24=0,\"\",'עבודות מרובות'!$P22*'עבודות מרובות'!$N22*24))","v":""}]
[null,{"$f":"IF(שעות_עבודה7[[#This Row],[תאריך]]=\"\",\"\",ROW(A15))","v":""},null,null,null,null,{"$f":"IFERROR(IF(שעות_עבודה7[[#This Row],[סיום]]=\"\",\"\",שעות_עבודה7[[#This Row],[סיום]]-שעות_עבודה7[[#This Row],[התחלה]]+(שעות_עבודה7[[#This Row],[סיום]]<שעות_עבודה7[[#This Row],[התחלה]])),\"\")","v":""},{"$f":"IF(שעות_עבודה7[[#This Row],[שעות]]=\"\",\"\",\nIF(SUMPRODUCT((שעות_עבודה7[[#This Row],[שם העבודה]]=$L$9:$M$28)*שעות_עבודה7[[#This Row],[שעות]]*($N$9:$O$28*24))=0,\"\",\nSUMPRODUCT((שעות_עבודה7[[#This Row],[שם העבודה]]=$L$9:$M$28)*שעות_עבודה7[[#This Row],[שעות]]*($N$9:$O$28*24))))","v":""},null,null,null,null,null,null,null,{"$f":"IF('עבודות מרובות'!$L23=\"\",\"\",\nIFERROR(IF(SUMIFS(שעות_עבודה7[שעות],שעות_עבודה7[שם העבודה],'עבודות מרובות'!$L23)=0,\"\",SUMIFS(שעות_עבודה7[שעות],שעות_עבודה7[שם העבודה],'עבודות מרובות'!$L23)),\"\"))","v":""},{"$f":"IF(OR('עבודות מרובות'!$N23=\"\",'עבודות מרובות'!$P23=\"\"),\"\",\nIF('עבודות מרובות'!$P23*'עבודות מרובות'!$N23*24=0,\"\",'עבודות מרובות'!$P23*'עבודות מרובות'!$N23*24))","v":""}]
[null,{"$f":"IF(שעות_עבודה7[[#This Row],[תאריך]]=\"\",\"\",ROW(A16))","v":""},null,null,null,null,{"$f":"IFERROR(IF(שעות_עבודה7[[#This Row],[סיום]]=\"\",\"\",שעות_עבודה7[[#This Row],[סיום]]-שעות_עבודה7[[#This Row],[התחלה]]+(שעות_עבודה7[[#This Row],[סיום]]<שעות_עבודה7[[#This Row],[התחלה]])),\"\")","v":""},{"$f":"IF(שעות_עבודה7[[#This Row],[שעות]]=\"\",\"\",\nIF(SUMPRODUCT((שעות_עבודה7[[#This Row],[שם העבודה]]=$L$9:$M$28)*שעות_עבודה7[[#This Row],[שעות]]*($N$9:$O$28*24))=0,\"\",\nSUMPRODUCT((שעות_עבודה7[[#This Row],[שם העבודה]]=$L$9:$M$28)*שעות_עבודה7[[#This Row],[שעות]]*($N$9:$O$28*24))))","v":""},null,null,null,null,null,null,null,{"$f":"IF('עבודות מרובות'!$L24=\"\",\"\",\nIFERROR(IF(SUMIFS(שעות_עבודה7[שעות],שעות_עבודה7[שם העבודה],'עבודות מרובות'!$L24)=0,\"\",SUMIFS(שעות_עבודה7[שעות],שעות_עבודה7[שם העבודה],'עבודות מרובות'!$L24)),\"\"))","v":""},{"$f":"IF(OR('עבודות מרובות'!$N24=\"\",'עבודות מרובות'!$P24=\"\"),\"\",\nIF('עבודות מרובות'!$P24*'עבודות מרובות'!$N24*24=0,\"\",'עבודות מרובות'!$P24*'עבודות מרובות'!$N24*24))","v":""}]
[null,{"$f":"IF(שעות_עבודה7[[#This Row],[תאריך]]=\"\",\"\",ROW(A17))","v":""},null,null,null,null,{"$f":"IFERROR(IF(שעות_עבודה7[[#This Row],[סיום]]=\"\",\"\",שעות_עבודה7[[#This Row],[סיום]]-שעות_עבודה7[[#This Row],[התחלה]]+(שעות_עבודה7[[#This Row],[סיום]]<שעות_עבודה7[[#This Row],[התחלה]])),\"\")","v":""},{"$f":"IF(שעות_עבודה7[[#This Row],[שעות]]=\"\",\"\",\nIF(SUMPRODUCT((שעות_עבודה7[[#This Row],[שם העבודה]]=$L$9:$M$28)*שעות_עבודה7[[#This Row],[שעות]]*($N$9:$O$28*24))=0,\"\",\nSUMPRODUCT((שעות_עבודה7[[#This Row],[שם העבודה]]=$L$9:$M$28)*שעות_עבודה7[[#This Row],[שעות]]*($N$9:$O$28*24))))","v":""},null,null,null,null,null,null,null,{"$f":"IF('עבודות מרובות'!$L25=\"\",\"\",\nIFERROR(IF(SUMIFS(שעות_עבודה7[שעות],שעות_עבודה7[שם העבודה],'עבודות מרובות'!$L25)=0,\"\",SUMIFS(שעות_עבודה7[שעות],שעות_עבודה7[שם העבודה],'עבודות מרובות'!$L25)),\"\"))","v":""},{"$f":"IF(OR('עבודות מרובות'!$N25=\"\",'עבודות מרובות'!$P25=\"\"),\"\",\nIF('עבודות מרובות'!$P25*'עבודות מרובות'!$N25*24=0,\"\",'עבודות מרובות'!$P25*'עבודות מרובות'!$N25*24))","v":""}]
[null,{"$f":"IF(שעות_עבודה7[[#This Row],[תאריך]]=\"\",\"\",ROW(A18))","v":""},null,null,null,null,{"$f":"IFERROR(IF(שעות_עבודה7[[#This Row],[סיום]]=\"\",\"\",שעות_עבודה7[[#This Row],[סיום]]-שעות_עבודה7[[#This Row],[התחלה]]+(שעות_עבודה7[[#This Row],[סיום]]<שעות_עבודה7[[#This Row],[התחלה]])),\"\")","v":""},{"$f":"IF(שעות_עבודה7[[#This Row],[שעות]]=\"\",\"\",\nIF(SUMPRODUCT((שעות_עבודה7[[#This Row],[שם העבודה]]=$L$9:$M$28)*שעות_עבודה7[[#This Row],[שעות]]*($N$9:$O$28*24))=0,\"\",\nSUMPRODUCT((שעות_עבודה7[[#This Row],[שם העבודה]]=$L$9:$M$28)*שעות_עבודה7[[#This Row],[שעות]]*($N$9:$O$28*24))))","v":""},null,null,null,null,null,null,null,{"$f":"IF('עבודות מרובות'!$L26=\"\",\"\",\nIFERROR(IF(SUMIFS(שעות_עבודה7[שעות],שעות_עבודה7[שם העבודה],'עבודות מרובות'!$L26)=0,\"\",SUMIFS(שעות_עבודה7[שעות],שעות_עבודה7[שם העבודה],'עבודות מרובות'!$L26)),\"\"))","v":""},{"$f":"IF(OR('עבודות מרובות'!$N26=\"\",'עבודות מרובות'!$P26=\"\"),\"\",\nIF('עבודות מרובות'!$P26*'עבודות מרובות'!$N26*24=0,\"\",'עבודות מרובות'!$P26*'עבודות מרובות'!$N26*24))","v":""}]
[null,{"$f":"IF(שעות_עבודה7[[#This Row],[תאריך]]=\"\",\"\",ROW(A19))","v":""},null,null,null,null,{"$f":"IFERROR(IF(שעות_עבודה7[[#This Row],[סיום]]=\"\",\"\",שעות_עבודה7[[#This Row],[סיום]]-שעות_עבודה7[[#This Row],[התחלה]]+(שעות_עבודה7[[#This Row],[סיום]]<שעות_עבודה7[[#This Row],[התחלה]])),\"\")","v":""},{"$f":"IF(שעות_עבודה7[[#This Row],[שעות]]=\"\",\"\",\nIF(SUMPRODUCT((שעות_עבודה7[[#This Row],[שם העבודה]]=$L$9:$M$28)*שעות_עבודה7[[#This Row],[שעות]]*($N$9:$O$28*24))=0,\"\",\nSUMPRODUCT((שעות_עבודה7[[#This Row],[שם העבודה]]=$L$9:$M$28)*שעות_עבודה7[[#This Row],[שעות]]*($N$9:$O$28*24))))","v":""},null,null,null,null,null,null,null,{"$f":"IF('עבודות מרובות'!$L27=\"\",\"\",\nIFERROR(IF(SUMIFS(שעות_עבודה7[שעות],שעות_עבודה7[שם העבודה],'עבודות מרובות'!$L27)=0,\"\",SUMIFS(שעות_עבודה7[שעות],שעות_עבודה7[שם העבודה],'עבודות מרובות'!$L27)),\"\"))","v":""},{"$f":"IF(OR('עבודות מרובות'!$N27=\"\",'עבודות מרובות'!$P27=\"\"),\"\",\nIF('עבודות מרובות'!$P27*'עבודות מרובות'!$N27*24=0,\"\",'עבודות מרובות'!$P27*'עבודות מרובות'!$N27*24))","v":""}]
[null,{"$f":"IF(שעות_עבודה7[[#This Row],[תאריך]]=\"\",\"\",ROW(A20))","v":""},null,null,null,null,{"$f":"IFERROR(IF(שעות_עבודה7[[#This Row],[סיום]]=\"\",\"\",שעות_עבודה7[[#This Row],[סיום]]-שעות_עבודה7[[#This Row],[התחלה]]+(שעות_עבודה7[[#This Row],[סיום]]<שעות_עבודה7[[#This Row],[התחלה]])),\"\")","v":""},{"$f":"IF(שעות_עבודה7[[#This Row],[שעות]]=\"\",\"\",\nIF(SUMPRODUCT((שעות_עבודה7[[#This Row],[שם העבודה]]=$L$9:$M$28)*שעות_עבודה7[[#This Row],[שעות]]*($N$9:$O$28*24))=0,\"\",\nSUMPRODUCT((שעות_עבודה7[[#This Row],[שם העבודה]]=$L$9:$M$28)*שעות_עבודה7[[#This Row],[שעות]]*($N$9:$O$28*24))))","v":""},null,null,null,null,null,null,null,{"$f":"IF('עבודות מרובות'!$L28=\"\",\"\",\nIFERROR(IF(SUMIFS(שעות_עבודה7[שעות],שעות_עבודה7[שם העבודה],'עבודות מרובות'!$L28)=0,\"\",SUMIFS(שעות_עבודה7[שעות],שעות_עבודה7[שם העבודה],'עבודות מרובות'!$L28)),\"\"))","v":""},{"$f":"IF(OR('עבודות מרובות'!$N28=\"\",'עבודות מרובות'!$P28=\"\"),\"\",\nIF('עבודות מרובות'!$P28*'עבודות מרובות'!$N28*24=0,\"\",'עבודות מרובות'!$P28*'עבודות מרובות'!$N28*24))","v":""}]
[null,{"$f":"IF(שעות_עבודה7[[#This Row],[תאריך]]=\"\",\"\",ROW(A21))","v":""},null,null,null,null,{"$f":"IFERROR(IF(שעות_עבודה7[[#This Row],[סיום]]=\"\",\"\",שעות_עבודה7[[#This Row],[סיום]]-שעות_עבודה7[[#This Row],[התחלה]]+(שעות_עבודה7[[#This Row],[סיום]]<שעות_עבודה7[[#This Row],[התחלה]])),\"\")","v":""},{"$f":"IF(שעות_עבודה7[[#This Row],[שעות]]=\"\",\"\",\nIF(SUMPRODUCT((שעות_עבודה7[[#This Row],[שם העבודה]]=$L$9:$M$28)*שעות_עבודה7[[#This Row],[שעות]]*($N$9:$O$28*24))=0,\"\",\nSUMPRODUCT((שעות_עבודה7[[#This Row],[שם העבודה]]=$L$9:$M$28)*שעות_עבודה7[[#This Row],[שעות]]*($N$9:$O$28*24))))","v":""}]
[null,{"$f":"IF(שעות_עבודה7[[#This Row],[תאריך]]=\"\",\"\",ROW(A22))","v":""},null,null,null,null,{"$f":"IFERROR(IF(שעות_עבודה7[[#This Row],[סיום]]=\"\",\"\",שעות_עבודה7[[#This Row],[סיום]]-שעות_עבודה7[[#This Row],[התחלה]]+(שעות_עבודה7[[#This Row],[סיום]]<שעות_עבודה7[[#This Row],[התחלה]])),\"\")","v":""},{"$f":"IF(שעות_עבודה7[[#This Row],[שעות]]=\"\",\"\",\nIF(SUMPRODUCT((שעות_עבודה7[[#This Row],[שם העבודה]]=$L$9:$M$28)*שעות_עבודה7[[#This Row],[שעות]]*($N$9:$O$28*24))=0,\"\",\nSUMPRODUCT((שעות_עבודה7[[#This Row],[שם העבודה]]=$L$9:$M$28)*שעות_עבודה7[[#This Row],[שעות]]*($N$9:$O$28*24))))","v":""}]
[null,{"$f":"IF(שעות_עבודה7[[#This Row],[תאריך]]=\"\",\"\",ROW(A23))","v":""},null,null,null,null,{"$f":"IFERROR(IF(שעות_עבודה7[[#This Row],[סיום]]=\"\",\"\",שעות_עבודה7[[#This Row],[סיום]]-שעות_עבודה7[[#This Row],[התחלה]]+(שעות_עבודה7[[#This Row],[סיום]]<שעות_עבודה7[[#This Row],[התחלה]])),\"\")","v":""},{"$f":"IF(שעות_עבודה7[[#This Row],[שעות]]=\"\",\"\",\nIF(SUMPRODUCT((שעות_עבודה7[[#This Row],[שם העבודה]]=$L$9:$M$28)*שעות_עבודה7[[#This Row],[שעות]]*($N$9:$O$28*24))=0,\"\",\nSUMPRODUCT((שעות_עבודה7[[#This Row],[שם העבודה]]=$L$9:$M$28)*שעות_עבודה7[[#This Row],[שעות]]*($N$9:$O$28*24))))","v":""},null,null,null,"הדרכה"]
[null,{"$f":"IF(שעות_עבודה7[[#This Row],[תאריך]]=\"\",\"\",ROW(A24))","v":""},null,null,null,null,{"$f":"IFERROR(IF(שעות_עבודה7[[#This Row],[סיום]]=\"\",\"\",שעות_עבודה7[[#This Row],[סיום]]-שעות_עבודה7[[#This Row],[התחלה]]+(שעות_עבודה7[[#This Row],[סיום]]<שעות_עבודה7[[#This Row],[התחלה]])),\"\")","v":""},{"$f":"IF(שעות_עבודה7[[#This Row],[שעות]]=\"\",\"\",\nIF(SUMPRODUCT((שעות_עבודה7[[#This Row],[שם העבודה]]=$L$9:$M$28)*שעות_עבודה7[[#This Row],[שעות]]*($N$9:$O$28*24))=0,\"\",\nSUMPRODUCT((שעות_עבודה7[[#This Row],[שם העבודה]]=$L$9:$M$28)*שעות_עבודה7[[#This Row],[שעות]]*($N$9:$O$28*24))))","v":""},null,null,null,"ראשית, עליכם לוודא שיש לכם הרשאות מתאימות להרצת פקודות המאקרו, לצורך כך יש לבדוק 2 בדיקות-\n1- הקליקו ימנית על הקובץ מתוך סייר הקבצים, היכנסו ל'מאפינים' ובידקו אם מוצעת שם למטה האופציה של 'בטל חסימה', אם כן יש לאשרו בתיבת הסימון שלצידו.\n2- לאחר פתיחת הקובץ היכנסו ל- קובץ > אפשרויות > מרכז יחסי האמון > הגדרות מרכז יחסי האמון > הגדרות מאקרו, וסמנו או 'הפוך פקודות מאקרו לבלתי זמינות עם הודעה', או 'הפוך פקודות מאקרו לזמינות' לבחירתכם."]
[null,{"$f":"IF(שעות_עבודה7[[#This Row],[תאריך]]=\"\",\"\",ROW(A25))","v":""},null,null,null,null,{"$f":"IFERROR(IF(שעות_עבודה7[[#This Row],[סיום]]=\"\",\"\",שעות_עבודה7[[#This Row],[סיום]]-שעות_עבודה7[[#This Row],[התחלה]]+(שעות_עבודה7[[#This Row],[סיום]]<שעות_עבודה7[[#This Row],[התחלה]])),\"\")","v":""},{"$f":"IF(שעות_עבודה7[[#This Row],[שעות]]=\"\",\"\",\nIF(SUMPRODUCT((שעות_עבודה7[[#This Row],[שם העבודה]]=$L$9:$M$28)*שעות_עבודה7[[#This Row],[שעות]]*($N$9:$O$28*24))=0,\"\",\nSUMPRODUCT((שעות_עבודה7[[#This Row],[שם העבודה]]=$L$9:$M$28)*שעות_עבודה7[[#This Row],[שעות]]*($N$9:$O$28*24))))","v":""}]
[null,{"$f":"IF(שעות_עבודה7[[#This Row],[תאריך]]=\"\",\"\",ROW(A26))","v":""},null,null,null,null,{"$f":"IFERROR(IF(שעות_עבודה7[[#This Row],[סיום]]=\"\",\"\",שעות_עבודה7[[#This Row],[סיום]]-שעות_עבודה7[[#This Row],[התחלה]]+(שעות_עבודה7[[#This Row],[סיום]]<שעות_עבודה7[[#This Row],[התחלה]])),\"\")","v":""},{"$f":"IF(שעות_עבודה7[[#This Row],[שעות]]=\"\",\"\",\nIF(SUMPRODUCT((שעות_עבודה7[[#This Row],[שם העבודה]]=$L$9:$M$28)*שעות_עבודה7[[#This Row],[שעות]]*($N$9:$O$28*24))=0,\"\",\nSUMPRODUCT((שעות_עבודה7[[#This Row],[שם העבודה]]=$L$9:$M$28)*שעות_עבודה7[[#This Row],[שעות]]*($N$9:$O$28*24))))","v":""}]
[null,{"$f":"IF(שעות_עבודה7[[#This Row],[תאריך]]=\"\",\"\",ROW(A27))","v":""},null,null,null,null,{"$f":"IFERROR(IF(שעות_עבודה7[[#This Row],[סיום]]=\"\",\"\",שעות_עבודה7[[#This Row],[סיום]]-שעות_עבודה7[[#This Row],[התחלה]]+(שעות_עבודה7[[#This Row],[סיום]]<שעות_עבודה7[[#This Row],[התחלה]])),\"\")","v":""},{"$f":"IF(שעות_עבודה7[[#This Row],[שעות]]=\"\",\"\",\nIF(SUMPRODUCT((שעות_עבודה7[[#This Row],[שם העבודה]]=$L$9:$M$28)*שעות_עבודה7[[#This Row],[שעות]]*($N$9:$O$28*24))=0,\"\",\nSUMPRODUCT((שעות_עבודה7[[#This Row],[שם העבודה]]=$L$9:$M$28)*שעות_עבודה7[[#This Row],[שעות]]*($N$9:$O$28*24))))","v":""}]
[null,{"$f":"IF(שעות_עבודה7[[#This Row],[תאריך]]=\"\",\"\",ROW(A28))","v":""},null,null,null,null,{"$f":"IFERROR(IF(שעות_עבודה7[[#This Row],[סיום]]=\"\",\"\",שעות_עבודה7[[#This Row],[סיום]]-שעות_עבודה7[[#This Row],[התחלה]]+(שעות_עבודה7[[#This Row],[סיום]]<שעות_עבודה7[[#This Row],[התחלה]])),\"\")","v":""},{"$f":"IF(שעות_עבודה7[[#This Row],[שעות]]=\"\",\"\",\nIF(SUMPRODUCT((שעות_עבודה7[[#This Row],[שם העבודה]]=$L$9:$M$28)*שעות_עבודה7[[#This Row],[שעות]]*($N$9:$O$28*24))=0,\"\",\nSUMPRODUCT((שעות_עבודה7[[#This Row],[שם העבודה]]=$L$9:$M$28)*שעות_עבודה7[[#This Row],[שעות]]*($N$9:$O$28*24))))","v":""}]
[null,{"$f":"IF(שעות_עבודה7[[#This Row],[תאריך]]=\"\",\"\",ROW(A29))","v":""},null,null,null,null,{"$f":"IFERROR(IF(שעות_עבודה7[[#This Row],[סיום]]=\"\",\"\",שעות_עבודה7[[#This Row],[סיום]]-שעות_עבודה7[[#This Row],[התחלה]]+(שעות_עבודה7[[#This Row],[סיום]]<שעות_עבודה7[[#This Row],[התחלה]])),\"\")","v":""},{"$f":"IF(שעות_עבודה7[[#This Row],[שעות]]=\"\",\"\",\nIF(SUMPRODUCT((שעות_עבודה7[[#This Row],[שם העבודה]]=$L$9:$M$28)*שעות_עבודה7[[#This Row],[שעות]]*($N$9:$O$28*24))=0,\"\",\nSUMPRODUCT((שעות_עבודה7[[#This Row],[שם העבודה]]=$L$9:$M$28)*שעות_עבודה7[[#This Row],[שעות]]*($N$9:$O$28*24))))","v":""},null,null,null,"וכעת לגיליון העבודה, גיליון העבודה הנוכחי מחולק ל-4 חלקים, בחלק העליון של הגיליון נמצאים, מימין 'פאנל העדכון' שבתוכו מוצבים כל הפקדים, ומשמאל 'שורת הסיכום', ובחלק התחתון 2 טבלאות, מימין 'טבלת העדכון', ומשמאל 'טבלת הסיכום'."]
[null,{"$f":"IF(שעות_עבודה7[[#This Row],[תאריך]]=\"\",\"\",ROW(A30))","v":""},null,null,null,null,{"$f":"IFERROR(IF(שעות_עבודה7[[#This Row],[סיום]]=\"\",\"\",שעות_עבודה7[[#This Row],[סיום]]-שעות_עבודה7[[#This Row],[התחלה]]+(שעות_עבודה7[[#This Row],[סיום]]<שעות_עבודה7[[#This Row],[התחלה]])),\"\")","v":""},{"$f":"IF(שעות_עבודה7[[#This Row],[שעות]]=\"\",\"\",\nIF(SUMPRODUCT((שעות_עבודה7[[#This Row],[שם העבודה]]=$L$9:$M$28)*שעות_עבודה7[[#This Row],[שעות]]*($N$9:$O$28*24))=0,\"\",\nSUMPRODUCT((שעות_עבודה7[[#This Row],[שם העבודה]]=$L$9:$M$28)*שעות_עבודה7[[#This Row],[שעות]]*($N$9:$O$28*24))))","v":""}]
[null,{"$f":"IF(שעות_עבודה7[[#This Row],[תאריך]]=\"\",\"\",ROW(A31))","v":""},null,null,null,null,{"$f":"IFERROR(IF(שעות_עבודה7[[#This Row],[סיום]]=\"\",\"\",שעות_עבודה7[[#This Row],[סיום]]-שעות_עבודה7[[#This Row],[התחלה]]+(שעות_עבודה7[[#This Row],[סיום]]<שעות_עבודה7[[#This Row],[התחלה]])),\"\")","v":""},{"$f":"IF(שעות_עבודה7[[#This Row],[שעות]]=\"\",\"\",\nIF(SUMPRODUCT((שעות_עבודה7[[#This Row],[שם העבודה]]=$L$9:$M$28)*שעות_עבודה7[[#This Row],[שעות]]*($N$9:$O$28*24))=0,\"\",\nSUMPRODUCT((שעות_עבודה7[[#This Row],[שם העבודה]]=$L$9:$M$28)*שעות_עבודה7[[#This Row],[שעות]]*($N$9:$O$28*24))))","v":""}]
[null,{"$f":"IF(שעות_עבודה7[[#This Row],[תאריך]]=\"\",\"\",ROW(A32))","v":""},null,null,null,null,{"$f":"IFERROR(IF(שעות_עבודה7[[#This Row],[סיום]]=\"\",\"\",שעות_עבודה7[[#This Row],[סיום]]-שעות_עבודה7[[#This Row],[התחלה]]+(שעות_עבודה7[[#This Row],[סיום]]<שעות_עבודה7[[#This Row],[התחלה]])),\"\")","v":""},{"$f":"IF(שעות_עבודה7[[#This Row],[שעות]]=\"\",\"\",\nIF(SUMPRODUCT((שעות_עבודה7[[#This Row],[שם העבודה]]=$L$9:$M$28)*שעות_עבודה7[[#This Row],[שעות]]*($N$9:$O$28*24))=0,\"\",\nSUMPRODUCT((שעות_עבודה7[[#This Row],[שם העבודה]]=$L$9:$M$28)*שעות_עבודה7[[#This Row],[שעות]]*($N$9:$O$28*24))))","v":""},null,null,null,"צבעי התאים- רוב התאים בגיליון הינם תאים של חישובים אוטומטיים- התאים שבצבע ירוק הם תאים של 'מילוי אוטומטי' והתאים שבצבע תכלת הם תאים של 'חישוב אוטומטי', חוץ מהתאים שבצבע אפור שהם תאים שנועדו למילוי ידני."]
[null,{"$f":"IF(שעות_עבודה7[[#This Row],[תאריך]]=\"\",\"\",ROW(A33))","v":""},null,null,null,null,{"$f":"IFERROR(IF(שעות_עבודה7[[#This Row],[סיום]]=\"\",\"\",שעות_עבודה7[[#This Row],[סיום]]-שעות_עבודה7[[#This Row],[התחלה]]+(שעות_עבודה7[[#This Row],[סיום]]<שעות_עבודה7[[#This Row],[התחלה]])),\"\")","v":""},{"$f":"IF(שעות_עבודה7[[#This Row],[שעות]]=\"\",\"\",\nIF(SUMPRODUCT((שעות_עבודה7[[#This Row],[שם העבודה]]=$L$9:$M$28)*שעות_עבודה7[[#This Row],[שעות]]*($N$9:$O$28*24))=0,\"\",\nSUMPRODUCT((שעות_עבודה7[[#This Row],[שם העבודה]]=$L$9:$M$28)*שעות_עבודה7[[#This Row],[שעות]]*($N$9:$O$28*24))))","v":""}]
[null,{"$f":"IF(שעות_עבודה7[[#This Row],[תאריך]]=\"\",\"\",ROW(A34))","v":""},null,null,null,null,{"$f":"IFERROR(IF(שעות_עבודה7[[#This Row],[סיום]]=\"\",\"\",שעות_עבודה7[[#This Row],[סיום]]-שעות_עבודה7[[#This Row],[התחלה]]+(שעות_עבודה7[[#This Row],[סיום]]<שעות_עבודה7[[#This Row],[התחלה]])),\"\")","v":""},{"$f":"IF(שעות_עבודה7[[#This Row],[שעות]]=\"\",\"\",\nIF(SUMPRODUCT((שעות_עבודה7[[#This Row],[שם העבודה]]=$L$9:$M$28)*שעות_עבודה7[[#This Row],[שעות]]*($N$9:$O$28*24))=0,\"\",\nSUMPRODUCT((שעות_עבודה7[[#This Row],[שם העבודה]]=$L$9:$M$28)*שעות_עבודה7[[#This Row],[שעות]]*($N$9:$O$28*24))))","v":""},null,null,null,"קודם התחלת השימוש, (במידה והקובץ הגיע אליכם אם חלק נתונים מלאים, ניתן לנקות את הגיליון בלחיצה על פקד 'ניקוי הנתונים' כמפורט למטה), עליכם להזין פרטים בטבלת הסיכום, בעמודת 'שמות העבודות' יש להזין סוגי עבודות בהם אתם עובדים, זו יכולה להיות גם עבודה אחת, ובעמודת 'שכר לשעה' יש להזין את השכר המתאים עבור כל עבודה מהעבודות שהזנתם בעמודת 'שמות העבודות'."]
[null,{"$f":"IF(שעות_עבודה7[[#This Row],[תאריך]]=\"\",\"\",ROW(A35))","v":""},null,null,null,null,{"$f":"IFERROR(IF(שעות_עבודה7[[#This Row],[סיום]]=\"\",\"\",שעות_עבודה7[[#This Row],[סיום]]-שעות_עבודה7[[#This Row],[התחלה]]+(שעות_עבודה7[[#This Row],[סיום]]<שעות_עבודה7[[#This Row],[התחלה]])),\"\")","v":""},{"$f":"IF(שעות_עבודה7[[#This Row],[שעות]]=\"\",\"\",\nIF(SUMPRODUCT((שעות_עבודה7[[#This Row],[שם העבודה]]=$L$9:$M$28)*שעות_עבודה7[[#This Row],[שעות]]*($N$9:$O$28*24))=0,\"\",\nSUMPRODUCT((שעות_עבודה7[[#This Row],[שם העבודה]]=$L$9:$M$28)*שעות_עבודה7[[#This Row],[שעות]]*($N$9:$O$28*24))))","v":""}]
[null,{"$f":"IF(שעות_עבודה7[[#This Row],[תאריך]]=\"\",\"\",ROW(A36))","v":""},null,null,null,null,{"$f":"IFERROR(IF(שעות_עבודה7[[#This Row],[סיום]]=\"\",\"\",שעות_עבודה7[[#This Row],[סיום]]-שעות_עבודה7[[#This Row],[התחלה]]+(שעות_עבודה7[[#This Row],[סיום]]<שעות_עבודה7[[#This Row],[התחלה]])),\"\")","v":""},{"$f":"IF(שעות_עבודה7[[#This Row],[שעות]]=\"\",\"\",\nIF(SUMPRODUCT((שעות_עבודה7[[#This Row],[שם העבודה]]=$L$9:$M$28)*שעות_עבודה7[[#This Row],[שעות]]*($N$9:$O$28*24))=0,\"\",\nSUMPRODUCT((שעות_עבודה7[[#This Row],[שם העבודה]]=$L$9:$M$28)*שעות_עבודה7[[#This Row],[שעות]]*($N$9:$O$28*24))))","v":""}]
[null,{"$f":"IF(שעות_עבודה7[[#This Row],[תאריך]]=\"\",\"\",ROW(A37))","v":""},null,null,null,null,{"$f":"IFERROR(IF(שעות_עבודה7[[#This Row],[סיום]]=\"\",\"\",שעות_עבודה7[[#This Row],[סיום]]-שעות_עבודה7[[#This Row],[התחלה]]+(שעות_עבודה7[[#This Row],[סיום]]<שעות_עבודה7[[#This Row],[התחלה]])),\"\")","v":""},{"$f":"IF(שעות_עבודה7[[#This Row],[שעות]]=\"\",\"\",\nIF(SUMPRODUCT((שעות_עבודה7[[#This Row],[שם העבודה]]=$L$9:$M$28)*שעות_עבודה7[[#This Row],[שעות]]*($N$9:$O$28*24))=0,\"\",\nSUMPRODUCT((שעות_עבודה7[[#This Row],[שם העבודה]]=$L$9:$M$28)*שעות_עבודה7[[#This Row],[שעות]]*($N$9:$O$28*24))))","v":""}]
[null,{"$f":"IF(שעות_עבודה7[[#This Row],[תאריך]]=\"\",\"\",ROW(A38))","v":""},null,null,null,null,{"$f":"IFERROR(IF(שעות_עבודה7[[#This Row],[סיום]]=\"\",\"\",שעות_עבודה7[[#This Row],[סיום]]-שעות_עבודה7[[#This Row],[התחלה]]+(שעות_עבודה7[[#This Row],[סיום]]<שעות_עבודה7[[#This Row],[התחלה]])),\"\")","v":""},{"$f":"IF(שעות_עבודה7[[#This Row],[שעות]]=\"\",\"\",\nIF(SUMPRODUCT((שעות_עבודה7[[#This Row],[שם העבודה]]=$L$9:$M$28)*שעות_עבודה7[[#This Row],[שעות]]*($N$9:$O$28*24))=0,\"\",\nSUMPRODUCT((שעות_עבודה7[[#This Row],[שם העבודה]]=$L$9:$M$28)*שעות_עבודה7[[#This Row],[שעות]]*($N$9:$O$28*24))))","v":""},null,null,null,"כעת ניתן להתחיל בעבודה, בתחילת כל עבודה אתם פותחים את הגיליון הנוכחי, ועוברים על פאנל העדכון, לוחצים על פקד 'העבודה' כדי לבחור את העבודה בה אתם עומדים לעסוק כעת, תפתח לפניכם רשימת העבודות שהזנתם בטבלת הסיכום בעמודת 'העבודות שלי', (כדי לנווט ברשימת העבודות תגשו לצד שמאל של הרשימה הנפתחת שם נמצא מחוון הניווט, קיימים שם גם חיצי ניווט למעלה ולמטה), משם תבחרו את העבודה הרלוונטית, אחר כך לוחצים על 'התחלה', ואוטומטית יתמלאו בטבלת העדכון פרטי העבודה- התאריך שם העבודה ושעת ההתחלה."]
[null,{"$f":"IF(שעות_עבודה7[[#This Row],[תאריך]]=\"\",\"\",ROW(A39))","v":""},null,null,null,null,{"$f":"IFERROR(IF(שעות_עבודה7[[#This Row],[סיום]]=\"\",\"\",שעות_עבודה7[[#This Row],[סיום]]-שעות_עבודה7[[#This Row],[התחלה]]+(שעות_עבודה7[[#This Row],[סיום]]<שעות_עבודה7[[#This Row],[התחלה]])),\"\")","v":""},{"$f":"IF(שעות_עבודה7[[#This Row],[שעות]]=\"\",\"\",\nIF(SUMPRODUCT((שעות_עבודה7[[#This Row],[שם העבודה]]=$L$9:$M$28)*שעות_עבודה7[[#This Row],[שעות]]*($N$9:$O$28*24))=0,\"\",\nSUMPRODUCT((שעות_עבודה7[[#This Row],[שם העבודה]]=$L$9:$M$28)*שעות_עבודה7[[#This Row],[שעות]]*($N$9:$O$28*24))))","v":""}]
[null,{"$f":"IF(שעות_עבודה7[[#This Row],[תאריך]]=\"\",\"\",ROW(A40))","v":""},null,null,null,null,{"$f":"IFERROR(IF(שעות_עבודה7[[#This Row],[סיום]]=\"\",\"\",שעות_עבודה7[[#This Row],[סיום]]-שעות_עבודה7[[#This Row],[התחלה]]+(שעות_עבודה7[[#This Row],[סיום]]<שעות_עבודה7[[#This Row],[התחלה]])),\"\")","v":""},{"$f":"IF(שעות_עבודה7[[#This Row],[שעות]]=\"\",\"\",\nIF(SUMPRODUCT((שעות_עבודה7[[#This Row],[שם העבודה]]=$L$9:$M$28)*שעות_עבודה7[[#This Row],[שעות]]*($N$9:$O$28*24))=0,\"\",\nSUMPRODUCT((שעות_עבודה7[[#This Row],[שם העבודה]]=$L$9:$M$28)*שעות_עבודה7[[#This Row],[שעות]]*($N$9:$O$28*24))))","v":""}]
[null,{"$f":"IF(שעות_עבודה7[[#This Row],[תאריך]]=\"\",\"\",ROW(A41))","v":""},null,null,null,null,{"$f":"IFERROR(IF(שעות_עבודה7[[#This Row],[סיום]]=\"\",\"\",שעות_עבודה7[[#This Row],[סיום]]-שעות_עבודה7[[#This Row],[התחלה]]+(שעות_עבודה7[[#This Row],[סיום]]<שעות_עבודה7[[#This Row],[התחלה]])),\"\")","v":""},{"$f":"IF(שעות_עבודה7[[#This Row],[שעות]]=\"\",\"\",\nIF(SUMPRODUCT((שעות_עבודה7[[#This Row],[שם העבודה]]=$L$9:$M$28)*שעות_עבודה7[[#This Row],[שעות]]*($N$9:$O$28*24))=0,\"\",\nSUMPRODUCT((שעות_עבודה7[[#This Row],[שם העבודה]]=$L$9:$M$28)*שעות_עבודה7[[#This Row],[שעות]]*($N$9:$O$28*24))))","v":""}]
[null,{"$f":"IF(שעות_עבודה7[[#This Row],[תאריך]]=\"\",\"\",ROW(A42))","v":""},null,null,null,null,{"$f":"IFERROR(IF(שעות_עבודה7[[#This Row],[סיום]]=\"\",\"\",שעות_עבודה7[[#This Row],[סיום]]-שעות_עבודה7[[#This Row],[התחלה]]+(שעות_עבודה7[[#This Row],[סיום]]<שעות_עבודה7[[#This Row],[התחלה]])),\"\")","v":""},{"$f":"IF(שעות_עבודה7[[#This Row],[שעות]]=\"\",\"\",\nIF(SUMPRODUCT((שעות_עבודה7[[#This Row],[שם העבודה]]=$L$9:$M$28)*שעות_עבודה7[[#This Row],[שעות]]*($N$9:$O$28*24))=0,\"\",\nSUMPRODUCT((שעות_עבודה7[[#This Row],[שם העבודה]]=$L$9:$M$28)*שעות_עבודה7[[#This Row],[שעות]]*($N$9:$O$28*24))))","v":""}]
[null,{"$f":"IF(שעות_עבודה7[[#This Row],[תאריך]]=\"\",\"\",ROW(A43))","v":""},null,null,null,null,{"$f":"IFERROR(IF(שעות_עבודה7[[#This Row],[סיום]]=\"\",\"\",שעות_עבודה7[[#This Row],[סיום]]-שעות_עבודה7[[#This Row],[התחלה]]+(שעות_עבודה7[[#This Row],[סיום]]<שעות_עבודה7[[#This Row],[התחלה]])),\"\")","v":""},{"$f":"IF(שעות_עבודה7[[#This Row],[שעות]]=\"\",\"\",\nIF(SUMPRODUCT((שעות_עבודה7[[#This Row],[שם העבודה]]=$L$9:$M$28)*שעות_עבודה7[[#This Row],[שעות]]*($N$9:$O$28*24))=0,\"\",\nSUMPRODUCT((שעות_עבודה7[[#This Row],[שם העבודה]]=$L$9:$M$28)*שעות_עבודה7[[#This Row],[שעות]]*($N$9:$O$28*24))))","v":""},null,null,null,"בסיום העבודה, אתם לוחצים על 'סוף', ותתעדכן אוטומטית השעה הנוכחית כשעת סיום העבודה שלכם בטבלת העדכון."]
[null,{"$f":"IF(שעות_עבודה7[[#This Row],[תאריך]]=\"\",\"\",ROW(A44))","v":""},null,null,null,null,{"$f":"IFERROR(IF(שעות_עבודה7[[#This Row],[סיום]]=\"\",\"\",שעות_עבודה7[[#This Row],[סיום]]-שעות_עבודה7[[#This Row],[התחלה]]+(שעות_עבודה7[[#This Row],[סיום]]<שעות_עבודה7[[#This Row],[התחלה]])),\"\")","v":""},{"$f":"IF(שעות_עבודה7[[#This Row],[שעות]]=\"\",\"\",\nIF(SUMPRODUCT((שעות_עבודה7[[#This Row],[שם העבודה]]=$L$9:$M$28)*שעות_עבודה7[[#This Row],[שעות]]*($N$9:$O$28*24))=0,\"\",\nSUMPRODUCT((שעות_עבודה7[[#This Row],[שם העבודה]]=$L$9:$M$28)*שעות_עבודה7[[#This Row],[שעות]]*($N$9:$O$28*24))))","v":""},null,null,null,"ניתן להשתמש גם בקיצורי מקשים בכדי לדווח על התחלה וסיום עבודה, בקונטרול ח' תתעדכן התחלת העבודה, ובקונטרול כ' סיום העבודה, השימוש בקיצורי המקשים הללו מתאפשר רק כאשר אתם נמצאים בתוך קובץ האקסל הנוכחי."]
[null,{"$f":"IF(שעות_עבודה7[[#This Row],[תאריך]]=\"\",\"\",ROW(A45))","v":""},null,null,null,null,{"$f":"IFERROR(IF(שעות_עבודה7[[#This Row],[סיום]]=\"\",\"\",שעות_עבודה7[[#This Row],[סיום]]-שעות_עבודה7[[#This Row],[התחלה]]+(שעות_עבודה7[[#This Row],[סיום]]<שעות_עבודה7[[#This Row],[התחלה]])),\"\")","v":""},{"$f":"IF(שעות_עבודה7[[#This Row],[שעות]]=\"\",\"\",\nIF(SUMPRODUCT((שעות_עבודה7[[#This Row],[שם העבודה]]=$L$9:$M$28)*שעות_עבודה7[[#This Row],[שעות]]*($N$9:$O$28*24))=0,\"\",\nSUMPRODUCT((שעות_עבודה7[[#This Row],[שם העבודה]]=$L$9:$M$28)*שעות_עבודה7[[#This Row],[שעות]]*($N$9:$O$28*24))))","v":""}]
[null,{"$f":"IF(שעות_עבודה7[[#This Row],[תאריך]]=\"\",\"\",ROW(A46))","v":""},null,null,null,null,{"$f":"IFERROR(IF(שעות_עבודה7[[#This Row],[סיום]]=\"\",\"\",שעות_עבודה7[[#This Row],[סיום]]-שעות_עבודה7[[#This Row],[התחלה]]+(שעות_עבודה7[[#This Row],[סיום]]<שעות_עבודה7[[#This Row],[התחלה]])),\"\")","v":""},{"$f":"IF(שעות_עבודה7[[#This Row],[שעות]]=\"\",\"\",\nIF(SUMPRODUCT((שעות_עבודה7[[#This Row],[שם העבודה]]=$L$9:$M$28)*שעות_עבודה7[[#This Row],[שעות]]*($N$9:$O$28*24))=0,\"\",\nSUMPRODUCT((שעות_עבודה7[[#This Row],[שם העבודה]]=$L$9:$M$28)*שעות_עבודה7[[#This Row],[שעות]]*($N$9:$O$28*24))))","v":""},null,null,null,"וזהו, זה כל מה שאתם צריכים לעשות, כל השאר מתעדכן אוטומטית, בטבלת העדכון תוכלו לראות את סך השעות שעבדתם והשכר שלכם לכל עבודה, ובטבלת הסיכום תוכלו לראות את סך שעות העבודה והתשלום המגיע לכם לכל סוג עבודה בנפרד."]
[null,{"$f":"IF(שעות_עבודה7[[#This Row],[תאריך]]=\"\",\"\",ROW(A47))","v":""},null,null,null,null,{"$f":"IFERROR(IF(שעות_עבודה7[[#This Row],[סיום]]=\"\",\"\",שעות_עבודה7[[#This Row],[סיום]]-שעות_עבודה7[[#This Row],[התחלה]]+(שעות_עבודה7[[#This Row],[סיום]]<שעות_עבודה7[[#This Row],[התחלה]])),\"\")","v":""},{"$f":"IF(שעות_עבודה7[[#This Row],[שעות]]=\"\",\"\",\nIF(SUMPRODUCT((שעות_עבודה7[[#This Row],[שם העבודה]]=$L$9:$M$28)*שעות_עבודה7[[#This Row],[שעות]]*($N$9:$O$28*24))=0,\"\",\nSUMPRODUCT((שעות_עבודה7[[#This Row],[שם העבודה]]=$L$9:$M$28)*שעות_עבודה7[[#This Row],[שעות]]*($N$9:$O$28*24))))","v":""}]
[null,{"$f":"IF(שעות_עבודה7[[#This Row],[תאריך]]=\"\",\"\",ROW(A48))","v":""},null,null,null,null,{"$f":"IFERROR(IF(שעות_עבודה7[[#This Row],[סיום]]=\"\",\"\",שעות_עבודה7[[#This Row],[סיום]]-שעות_עבודה7[[#This Row],[התחלה]]+(שעות_עבודה7[[#This Row],[סיום]]<שעות_עבודה7[[#This Row],[התחלה]])),\"\")","v":""},{"$f":"IF(שעות_עבודה7[[#This Row],[שעות]]=\"\",\"\",\nIF(SUMPRODUCT((שעות_עבודה7[[#This Row],[שם העבודה]]=$L$9:$M$28)*שעות_עבודה7[[#This Row],[שעות]]*($N$9:$O$28*24))=0,\"\",\nSUMPRODUCT((שעות_עבודה7[[#This Row],[שם העבודה]]=$L$9:$M$28)*שעות_עבודה7[[#This Row],[שעות]]*($N$9:$O$28*24))))","v":""},null,null,null,"הקלקה כפולה"]
[null,{"$f":"IF(שעות_עבודה7[[#This Row],[תאריך]]=\"\",\"\",ROW(A49))","v":""},null,null,null,null,{"$f":"IFERROR(IF(שעות_עבודה7[[#This Row],[סיום]]=\"\",\"\",שעות_עבודה7[[#This Row],[סיום]]-שעות_עבודה7[[#This Row],[התחלה]]+(שעות_עבודה7[[#This Row],[סיום]]<שעות_עבודה7[[#This Row],[התחלה]])),\"\")","v":""},{"$f":"IF(שעות_עבודה7[[#This Row],[שעות]]=\"\",\"\",\nIF(SUMPRODUCT((שעות_עבודה7[[#This Row],[שם העבודה]]=$L$9:$M$28)*שעות_עבודה7[[#This Row],[שעות]]*($N$9:$O$28*24))=0,\"\",\nSUMPRODUCT((שעות_עבודה7[[#This Row],[שם העבודה]]=$L$9:$M$28)*שעות_עבודה7[[#This Row],[שעות]]*($N$9:$O$28*24))))","v":""},null,null,null,"אופציה נוספת לעדכון התחלה וסוף- באמצעות הקלקה כפולה בתוך טבלת העדכון, הקלקה כפולה על התא הראשון הפנוי שבעמודה הראשונה עמודת ה'תאריך' תעדכן לכם את שעת ופרטי ההתחלה כמו בלחיצה על פקד ה'התחלה', הקלקה כפולה על התא הראשון הפנוי שבעמודת 'סיום' תעדכן לכם את שעת הסיום כמו בלחיצה על 'סוף'.\nובעמודת 'העבודה' באפשרותכם להקליק הקלקה כפולה על התא בכדי להעתיק את שם העבודה הקיים בתא שלמעלה ממנו בעבודה הקודמת גם לתא הזה, או להיכנס לחץ שמצד שמאל של התא ותפתח לפניכם רשימת העבודות לבחירה מתוכם."]
[null,{"$f":"IF(שעות_עבודה7[[#This Row],[תאריך]]=\"\",\"\",ROW(A50))","v":""},null,null,null,null,{"$f":"IFERROR(IF(שעות_עבודה7[[#This Row],[סיום]]=\"\",\"\",שעות_עבודה7[[#This Row],[סיום]]-שעות_עבודה7[[#This Row],[התחלה]]+(שעות_עבודה7[[#This Row],[סיום]]<שעות_עבודה7[[#This Row],[התחלה]])),\"\")","v":""},{"$f":"IF(שעות_עבודה7[[#This Row],[שעות]]=\"\",\"\",\nIF(SUMPRODUCT((שעות_עבודה7[[#This Row],[שם העבודה]]=$L$9:$M$28)*שעות_עבודה7[[#This Row],[שעות]]*($N$9:$O$28*24))=0,\"\",\nSUMPRODUCT((שעות_עבודה7[[#This Row],[שם העבודה]]=$L$9:$M$28)*שעות_עבודה7[[#This Row],[שעות]]*($N$9:$O$28*24))))","v":""}]
[null,{"$f":"IF(שעות_עבודה7[[#This Row],[תאריך]]=\"\",\"\",ROW(A51))","v":""},null,null,null,null,{"$f":"IFERROR(IF(שעות_עבודה7[[#This Row],[סיום]]=\"\",\"\",שעות_עבודה7[[#This Row],[סיום]]-שעות_עבודה7[[#This Row],[התחלה]]+(שעות_עבודה7[[#This Row],[סיום]]<שעות_עבודה7[[#This Row],[התחלה]])),\"\")","v":""},{"$f":"IF(שעות_עבודה7[[#This Row],[שעות]]=\"\",\"\",\nIF(SUMPRODUCT((שעות_עבודה7[[#This Row],[שם העבודה]]=$L$9:$M$28)*שעות_עבודה7[[#This Row],[שעות]]*($N$9:$O$28*24))=0,\"\",\nSUMPRODUCT((שעות_עבודה7[[#This Row],[שם העבודה]]=$L$9:$M$28)*שעות_עבודה7[[#This Row],[שעות]]*($N$9:$O$28*24))))","v":""}]
[null,{"$f":"IF(שעות_עבודה7[[#This Row],[תאריך]]=\"\",\"\",ROW(A52))","v":""},null,null,null,null,{"$f":"IFERROR(IF(שעות_עבודה7[[#This Row],[סיום]]=\"\",\"\",שעות_עבודה7[[#This Row],[סיום]]-שעות_עבודה7[[#This Row],[התחלה]]+(שעות_עבודה7[[#This Row],[סיום]]<שעות_עבודה7[[#This Row],[התחלה]])),\"\")","v":""},{"$f":"IF(שעות_עבודה7[[#This Row],[שעות]]=\"\",\"\",\nIF(SUMPRODUCT((שעות_עבודה7[[#This Row],[שם העבודה]]=$L$9:$M$28)*שעות_עבודה7[[#This Row],[שעות]]*($N$9:$O$28*24))=0,\"\",\nSUMPRODUCT((שעות_עבודה7[[#This Row],[שם העבודה]]=$L$9:$M$28)*שעות_עבודה7[[#This Row],[שעות]]*($N$9:$O$28*24))))","v":""}]
[null,{"$f":"IF(שעות_עבודה7[[#This Row],[תאריך]]=\"\",\"\",ROW(A53))","v":""},null,null,null,null,{"$f":"IFERROR(IF(שעות_עבודה7[[#This Row],[סיום]]=\"\",\"\",שעות_עבודה7[[#This Row],[סיום]]-שעות_עבודה7[[#This Row],[התחלה]]+(שעות_עבודה7[[#This Row],[סיום]]<שעות_עבודה7[[#This Row],[התחלה]])),\"\")","v":""},{"$f":"IF(שעות_עבודה7[[#This Row],[שעות]]=\"\",\"\",\nIF(SUMPRODUCT((שעות_עבודה7[[#This Row],[שם העבודה]]=$L$9:$M$28)*שעות_עבודה7[[#This Row],[שעות]]*($N$9:$O$28*24))=0,\"\",\nSUMPRODUCT((שעות_עבודה7[[#This Row],[שם העבודה]]=$L$9:$M$28)*שעות_עבודה7[[#This Row],[שעות]]*($N$9:$O$28*24))))","v":""}]
[null,{"$f":"IF(שעות_עבודה7[[#This Row],[תאריך]]=\"\",\"\",ROW(A54))","v":""},null,null,null,null,{"$f":"IFERROR(IF(שעות_עבודה7[[#This Row],[סיום]]=\"\",\"\",שעות_עבודה7[[#This Row],[סיום]]-שעות_עבודה7[[#This Row],[התחלה]]+(שעות_עבודה7[[#This Row],[סיום]]<שעות_עבודה7[[#This Row],[התחלה]])),\"\")","v":""},{"$f":"IF(שעות_עבודה7[[#This Row],[שעות]]=\"\",\"\",\nIF(SUMPRODUCT((שעות_עבודה7[[#This Row],[שם העבודה]]=$L$9:$M$28)*שעות_עבודה7[[#This Row],[שעות]]*($N$9:$O$28*24))=0,\"\",\nSUMPRODUCT((שעות_עבודה7[[#This Row],[שם העבודה]]=$L$9:$M$28)*שעות_עבודה7[[#This Row],[שעות]]*($N$9:$O$28*24))))","v":""},null,null,null,"אופציה זו שימושית יותר כאשר אתם רוצים לעדכן שעת התחלה או סוף שכבר הזנתם לשעה הנוכחית, כגון שעדכנתם שעת התחלה ולבסוף עדיין לא התחלתם, אז כשאתם רוצים להתחיל באפשרותכם לגשת על תא התאריך בשורה שאתם רוצים לעדכן להקליק עליו פעמיים והוא יתעדכן לכם מחדש לשעה הנוכחית, וכמו כן בעדכון שעת סיום באופן שהמשכתם בעבודה לאחר עדכון הסיום."]
[null,{"$f":"IF(שעות_עבודה7[[#This Row],[תאריך]]=\"\",\"\",ROW(A55))","v":""},null,null,null,null,{"$f":"IFERROR(IF(שעות_עבודה7[[#This Row],[סיום]]=\"\",\"\",שעות_עבודה7[[#This Row],[סיום]]-שעות_עבודה7[[#This Row],[התחלה]]+(שעות_עבודה7[[#This Row],[סיום]]<שעות_עבודה7[[#This Row],[התחלה]])),\"\")","v":""},{"$f":"IF(שעות_עבודה7[[#This Row],[שעות]]=\"\",\"\",\nIF(SUMPRODUCT((שעות_עבודה7[[#This Row],[שם העבודה]]=$L$9:$M$28)*שעות_עבודה7[[#This Row],[שעות]]*($N$9:$O$28*24))=0,\"\",\nSUMPRODUCT((שעות_עבודה7[[#This Row],[שם העבודה]]=$L$9:$M$28)*שעות_עבודה7[[#This Row],[שעות]]*($N$9:$O$28*24))))","v":""}]
[null,{"$f":"IF(שעות_עבודה7[[#This Row],[תאריך]]=\"\",\"\",ROW(A56))","v":""},null,null,null,null,{"$f":"IFERROR(IF(שעות_עבודה7[[#This Row],[סיום]]=\"\",\"\",שעות_עבודה7[[#This Row],[סיום]]-שעות_עבודה7[[#This Row],[התחלה]]+(שעות_עבודה7[[#This Row],[סיום]]<שעות_עבודה7[[#This Row],[התחלה]])),\"\")","v":""},{"$f":"IF(שעות_עבודה7[[#This Row],[שעות]]=\"\",\"\",\nIF(SUMPRODUCT((שעות_עבודה7[[#This Row],[שם העבודה]]=$L$9:$M$28)*שעות_עבודה7[[#This Row],[שעות]]*($N$9:$O$28*24))=0,\"\",\nSUMPRODUCT((שעות_עבודה7[[#This Row],[שם העבודה]]=$L$9:$M$28)*שעות_עבודה7[[#This Row],[שעות]]*($N$9:$O$28*24))))","v":""}]
[null,{"$f":"IF(שעות_עבודה7[[#This Row],[תאריך]]=\"\",\"\",ROW(A57))","v":""},null,null,null,null,{"$f":"IFERROR(IF(שעות_עבודה7[[#This Row],[סיום]]=\"\",\"\",שעות_עבודה7[[#This Row],[סיום]]-שעות_עבודה7[[#This Row],[התחלה]]+(שעות_עבודה7[[#This Row],[סיום]]<שעות_עבודה7[[#This Row],[התחלה]])),\"\")","v":""},{"$f":"IF(שעות_עבודה7[[#This Row],[שעות]]=\"\",\"\",\nIF(SUMPRODUCT((שעות_עבודה7[[#This Row],[שם העבודה]]=$L$9:$M$28)*שעות_עבודה7[[#This Row],[שעות]]*($N$9:$O$28*24))=0,\"\",\nSUMPRODUCT((שעות_עבודה7[[#This Row],[שם העבודה]]=$L$9:$M$28)*שעות_עבודה7[[#This Row],[שעות]]*($N$9:$O$28*24))))","v":""}]
[null,{"$f":"IF(שעות_עבודה7[[#This Row],[תאריך]]=\"\",\"\",ROW(A58))","v":""},null,null,null,null,{"$f":"IFERROR(IF(שעות_עבודה7[[#This Row],[סיום]]=\"\",\"\",שעות_עבודה7[[#This Row],[סיום]]-שעות_עבודה7[[#This Row],[התחלה]]+(שעות_עבודה7[[#This Row],[סיום]]<שעות_עבודה7[[#This Row],[התחלה]])),\"\")","v":""},{"$f":"IF(שעות_עבודה7[[#This Row],[שעות]]=\"\",\"\",\nIF(SUMPRODUCT((שעות_עבודה7[[#This Row],[שם העבודה]]=$L$9:$M$28)*שעות_עבודה7[[#This Row],[שעות]]*($N$9:$O$28*24))=0,\"\",\nSUMPRODUCT((שעות_עבודה7[[#This Row],[שם העבודה]]=$L$9:$M$28)*שעות_עבודה7[[#This Row],[שעות]]*($N$9:$O$28*24))))","v":""},null,null,null,"מכיון שהשימוש בהקלקה כפולה יכול לקרוא לפעמים בטעות ועלול לגרום לשגיאות, קיימת אפשרות לחסום את אופציה זו בלחיצה על פקד 'הקלקה כפולה' שבפאנל העדכון, את מצב הפקד הזה ניתן לראות בתא שלצידו בסימון V או X."]
[null,{"$f":"IF(שעות_עבודה7[[#This Row],[תאריך]]=\"\",\"\",ROW(A59))","v":""},null,null,null,null,{"$f":"IFERROR(IF(שעות_עבודה7[[#This Row],[סיום]]=\"\",\"\",שעות_עבודה7[[#This Row],[סיום]]-שעות_עבודה7[[#This Row],[התחלה]]+(שעות_עבודה7[[#This Row],[סיום]]<שעות_עבודה7[[#This Row],[התחלה]])),\"\")","v":""},{"$f":"IF(שעות_עבודה7[[#This Row],[שעות]]=\"\",\"\",\nIF(SUMPRODUCT((שעות_עבודה7[[#This Row],[שם העבודה]]=$L$9:$M$28)*שעות_עבודה7[[#This Row],[שעות]]*($N$9:$O$28*24))=0,\"\",\nSUMPRODUCT((שעות_עבודה7[[#This Row],[שם העבודה]]=$L$9:$M$28)*שעות_עבודה7[[#This Row],[שעות]]*($N$9:$O$28*24))))","v":""}]
[null,{"$f":"IF(שעות_עבודה7[[#This Row],[תאריך]]=\"\",\"\",ROW(A60))","v":""},null,null,null,null,{"$f":"IFERROR(IF(שעות_עבודה7[[#This Row],[סיום]]=\"\",\"\",שעות_עבודה7[[#This Row],[סיום]]-שעות_עבודה7[[#This Row],[התחלה]]+(שעות_עבודה7[[#This Row],[סיום]]<שעות_עבודה7[[#This Row],[התחלה]])),\"\")","v":""},{"$f":"IF(שעות_עבודה7[[#This Row],[שעות]]=\"\",\"\",\nIF(SUMPRODUCT((שעות_עבודה7[[#This Row],[שם העבודה]]=$L$9:$M$28)*שעות_עבודה7[[#This Row],[שעות]]*($N$9:$O$28*24))=0,\"\",\nSUMPRODUCT((שעות_עבודה7[[#This Row],[שם העבודה]]=$L$9:$M$28)*שעות_עבודה7[[#This Row],[שעות]]*($N$9:$O$28*24))))","v":""},null,null,null,"במידה ואתם רוצים לתקן שעה או תאריך מסויים שכבר עדכנתם, אתם יכולים להיכנס לתא הרלוונטי מתוך טבלת העדכון ולתקן ידנית, אך קודם כל רצוי להשבית את אופציית 'הקלקה כפולה' שלא תעדכנו בטעות מחדש את הזמן בהקלקה כפולה."]
[null,{"$f":"IF(שעות_עבודה7[[#This Row],[תאריך]]=\"\",\"\",ROW(A61))","v":""},null,null,null,null,{"$f":"IFERROR(IF(שעות_עבודה7[[#This Row],[סיום]]=\"\",\"\",שעות_עבודה7[[#This Row],[סיום]]-שעות_עבודה7[[#This Row],[התחלה]]+(שעות_עבודה7[[#This Row],[סיום]]<שעות_עבודה7[[#This Row],[התחלה]])),\"\")","v":""},{"$f":"IF(שעות_עבודה7[[#This Row],[שעות]]=\"\",\"\",\nIF(SUMPRODUCT((שעות_עבודה7[[#This Row],[שם העבודה]]=$L$9:$M$28)*שעות_עבודה7[[#This Row],[שעות]]*($N$9:$O$28*24))=0,\"\",\nSUMPRODUCT((שעות_עבודה7[[#This Row],[שם העבודה]]=$L$9:$M$28)*שעות_עבודה7[[#This Row],[שעות]]*($N$9:$O$28*24))))","v":""}]
[null,{"$f":"IF(שעות_עבודה7[[#This Row],[תאריך]]=\"\",\"\",ROW(A62))","v":""},null,null,null,null,{"$f":"IFERROR(IF(שעות_עבודה7[[#This Row],[סיום]]=\"\",\"\",שעות_עבודה7[[#This Row],[סיום]]-שעות_עבודה7[[#This Row],[התחלה]]+(שעות_עבודה7[[#This Row],[סיום]]<שעות_עבודה7[[#This Row],[התחלה]])),\"\")","v":""},{"$f":"IF(שעות_עבודה7[[#This Row],[שעות]]=\"\",\"\",\nIF(SUMPRODUCT((שעות_עבודה7[[#This Row],[שם העבודה]]=$L$9:$M$28)*שעות_עבודה7[[#This Row],[שעות]]*($N$9:$O$28*24))=0,\"\",\nSUMPRODUCT((שעות_עבודה7[[#This Row],[שם העבודה]]=$L$9:$M$28)*שעות_עבודה7[[#This Row],[שעות]]*($N$9:$O$28*24))))","v":""},null,null,null,"שורת הסיכום"]
[null,{"$f":"IF(שעות_עבודה7[[#This Row],[תאריך]]=\"\",\"\",ROW(A63))","v":""},null,null,null,null,{"$f":"IFERROR(IF(שעות_עבודה7[[#This Row],[סיום]]=\"\",\"\",שעות_עבודה7[[#This Row],[סיום]]-שעות_עבודה7[[#This Row],[התחלה]]+(שעות_עבודה7[[#This Row],[סיום]]<שעות_עבודה7[[#This Row],[התחלה]])),\"\")","v":""},{"$f":"IF(שעות_עבודה7[[#This Row],[שעות]]=\"\",\"\",\nIF(SUMPRODUCT((שעות_עבודה7[[#This Row],[שם העבודה]]=$L$9:$M$28)*שעות_עבודה7[[#This Row],[שעות]]*($N$9:$O$28*24))=0,\"\",\nSUMPRODUCT((שעות_עבודה7[[#This Row],[שם העבודה]]=$L$9:$M$28)*שעות_עבודה7[[#This Row],[שעות]]*($N$9:$O$28*24))))","v":""},null,null,null,"שורת הסיכום מורכבת בעצם מטבלה קטנה, שדרכה ניתן לסנן ולשלוף מידע מסך הנתונים של שעות ושכר העבודות שלכם."]
[null,{"$f":"IF(שעות_עבודה7[[#This Row],[תאריך]]=\"\",\"\",ROW(A64))","v":""},null,null,null,null,{"$f":"IFERROR(IF(שעות_עבודה7[[#This Row],[סיום]]=\"\",\"\",שעות_עבודה7[[#This Row],[סיום]]-שעות_עבודה7[[#This Row],[התחלה]]+(שעות_עבודה7[[#This Row],[סיום]]<שעות_עבודה7[[#This Row],[התחלה]])),\"\")","v":""},{"$f":"IF(שעות_עבודה7[[#This Row],[שעות]]=\"\",\"\",\nIF(SUMPRODUCT((שעות_עבודה7[[#This Row],[שם העבודה]]=$L$9:$M$28)*שעות_עבודה7[[#This Row],[שעות]]*($N$9:$O$28*24))=0,\"\",\nSUMPRODUCT((שעות_עבודה7[[#This Row],[שם העבודה]]=$L$9:$M$28)*שעות_עבודה7[[#This Row],[שעות]]*($N$9:$O$28*24))))","v":""},null,null,null,"בעמודות 'מתאריך' ו'עד תאריך' אתם מזינים את טווח התאריכים עליהם תרצו לקבל את המידע, בלחיצה על אחד מהתאים שבעמודות הללו יצוץ לכם חץ קטן משמאל לתא שבלחיצה עליו תפתח לפניכם רשימה של כל התאריכים שהזנתם בטבלת העדכון, ומהם תוכלו לבחור את התאריך הרצוי לכם, רשימה זו אינה מגבילה אתכם ואתם יכולים להזין גם כל תאריך אחר שלא השתמשתם בו בטבלת העדכון."]
[null,{"$f":"IF(שעות_עבודה7[[#This Row],[תאריך]]=\"\",\"\",ROW(A65))","v":""},null,null,null,null,{"$f":"IFERROR(IF(שעות_עבודה7[[#This Row],[סיום]]=\"\",\"\",שעות_עבודה7[[#This Row],[סיום]]-שעות_עבודה7[[#This Row],[התחלה]]+(שעות_עבודה7[[#This Row],[סיום]]<שעות_עבודה7[[#This Row],[התחלה]])),\"\")","v":""},{"$f":"IF(שעות_עבודה7[[#This Row],[שעות]]=\"\",\"\",\nIF(SUMPRODUCT((שעות_עבודה7[[#This Row],[שם העבודה]]=$L$9:$M$28)*שעות_עבודה7[[#This Row],[שעות]]*($N$9:$O$28*24))=0,\"\",\nSUMPRODUCT((שעות_עבודה7[[#This Row],[שם העבודה]]=$L$9:$M$28)*שעות_עבודה7[[#This Row],[שעות]]*($N$9:$O$28*24))))","v":""}]
[null,{"$f":"IF(שעות_עבודה7[[#This Row],[תאריך]]=\"\",\"\",ROW(A66))","v":""},null,null,null,null,{"$f":"IFERROR(IF(שעות_עבודה7[[#This Row],[סיום]]=\"\",\"\",שעות_עבודה7[[#This Row],[סיום]]-שעות_עבודה7[[#This Row],[התחלה]]+(שעות_עבודה7[[#This Row],[סיום]]<שעות_עבודה7[[#This Row],[התחלה]])),\"\")","v":""},{"$f":"IF(שעות_עבודה7[[#This Row],[שעות]]=\"\",\"\",\nIF(SUMPRODUCT((שעות_עבודה7[[#This Row],[שם העבודה]]=$L$9:$M$28)*שעות_עבודה7[[#This Row],[שעות]]*($N$9:$O$28*24))=0,\"\",\nSUMPRODUCT((שעות_עבודה7[[#This Row],[שם העבודה]]=$L$9:$M$28)*שעות_עבודה7[[#This Row],[שעות]]*($N$9:$O$28*24))))","v":""}]
[null,{"$f":"IF(שעות_עבודה7[[#This Row],[תאריך]]=\"\",\"\",ROW(A67))","v":""},null,null,null,null,{"$f":"IFERROR(IF(שעות_עבודה7[[#This Row],[סיום]]=\"\",\"\",שעות_עבודה7[[#This Row],[סיום]]-שעות_עבודה7[[#This Row],[התחלה]]+(שעות_עבודה7[[#This Row],[סיום]]<שעות_עבודה7[[#This Row],[התחלה]])),\"\")","v":""},{"$f":"IF(שעות_עבודה7[[#This Row],[שעות]]=\"\",\"\",\nIF(SUMPRODUCT((שעות_עבודה7[[#This Row],[שם העבודה]]=$L$9:$M$28)*שעות_עבודה7[[#This Row],[שעות]]*($N$9:$O$28*24))=0,\"\",\nSUMPRODUCT((שעות_עבודה7[[#This Row],[שם העבודה]]=$L$9:$M$28)*שעות_עבודה7[[#This Row],[שעות]]*($N$9:$O$28*24))))","v":""}]
[null,{"$f":"IF(שעות_עבודה7[[#This Row],[תאריך]]=\"\",\"\",ROW(A68))","v":""},null,null,null,null,{"$f":"IFERROR(IF(שעות_עבודה7[[#This Row],[סיום]]=\"\",\"\",שעות_עבודה7[[#This Row],[סיום]]-שעות_עבודה7[[#This Row],[התחלה]]+(שעות_עבודה7[[#This Row],[סיום]]<שעות_עבודה7[[#This Row],[התחלה]])),\"\")","v":""},{"$f":"IF(שעות_עבודה7[[#This Row],[שעות]]=\"\",\"\",\nIF(SUMPRODUCT((שעות_עבודה7[[#This Row],[שם העבודה]]=$L$9:$M$28)*שעות_עבודה7[[#This Row],[שעות]]*($N$9:$O$28*24))=0,\"\",\nSUMPRODUCT((שעות_עבודה7[[#This Row],[שם העבודה]]=$L$9:$M$28)*שעות_עבודה7[[#This Row],[שעות]]*($N$9:$O$28*24))))","v":""},null,null,null,"בעמודת 'העבודה' אתם נכנסים גם כן לרשימה הנפתחת בלחיצה על החץ הקטן שמשמאל לתא ובוחרים את העבודה עליה תרצו לקבל את המידע, בשורה התחתונה לא ניתן לשנות את תוכן התא, שורה זו מיועדת לחשב באופן קבוע את 'כל העבודות'."]
[null,{"$f":"IF(שעות_עבודה7[[#This Row],[תאריך]]=\"\",\"\",ROW(A69))","v":""},null,null,null,null,{"$f":"IFERROR(IF(שעות_עבודה7[[#This Row],[סיום]]=\"\",\"\",שעות_עבודה7[[#This Row],[סיום]]-שעות_עבודה7[[#This Row],[התחלה]]+(שעות_עבודה7[[#This Row],[סיום]]<שעות_עבודה7[[#This Row],[התחלה]])),\"\")","v":""},{"$f":"IF(שעות_עבודה7[[#This Row],[שעות]]=\"\",\"\",\nIF(SUMPRODUCT((שעות_עבודה7[[#This Row],[שם העבודה]]=$L$9:$M$28)*שעות_עבודה7[[#This Row],[שעות]]*($N$9:$O$28*24))=0,\"\",\nSUMPRODUCT((שעות_עבודה7[[#This Row],[שם העבודה]]=$L$9:$M$28)*שעות_עבודה7[[#This Row],[שעות]]*($N$9:$O$28*24))))","v":""}]
[null,{"$f":"IF(שעות_עבודה7[[#This Row],[תאריך]]=\"\",\"\",ROW(A70))","v":""},null,null,null,null,{"$f":"IFERROR(IF(שעות_עבודה7[[#This Row],[סיום]]=\"\",\"\",שעות_עבודה7[[#This Row],[סיום]]-שעות_עבודה7[[#This Row],[התחלה]]+(שעות_עבודה7[[#This Row],[סיום]]<שעות_עבודה7[[#This Row],[התחלה]])),\"\")","v":""},{"$f":"IF(שעות_עבודה7[[#This Row],[שעות]]=\"\",\"\",\nIF(SUMPRODUCT((שעות_עבודה7[[#This Row],[שם העבודה]]=$L$9:$M$28)*שעות_עבודה7[[#This Row],[שעות]]*($N$9:$O$28*24))=0,\"\",\nSUMPRODUCT((שעות_עבודה7[[#This Row],[שם העבודה]]=$L$9:$M$28)*שעות_עבודה7[[#This Row],[שעות]]*($N$9:$O$28*24))))","v":""},null,null,null,"ובעמודת 'יעד שכר' תוכלו לקבוע יעד של סכום כלשהוא אליו תרצו להגיע בטווח התאריכים שקבעתם לעצמכם בעמודות 'מתאריך' ו'עד תאריך', ובעמודה שלצידו 'אחוזים מהיעד' תוכלו לראות היכן אתם אוחזים ביחס ליעד הסופי שלכם."]
[null,{"$f":"IF(שעות_עבודה7[[#This Row],[תאריך]]=\"\",\"\",ROW(A71))","v":""},null,null,null,null,{"$f":"IFERROR(IF(שעות_עבודה7[[#This Row],[סיום]]=\"\",\"\",שעות_עבודה7[[#This Row],[סיום]]-שעות_עבודה7[[#This Row],[התחלה]]+(שעות_עבודה7[[#This Row],[סיום]]<שעות_עבודה7[[#This Row],[התחלה]])),\"\")","v":""},{"$f":"IF(שעות_עבודה7[[#This Row],[שעות]]=\"\",\"\",\nIF(SUMPRODUCT((שעות_עבודה7[[#This Row],[שם העבודה]]=$L$9:$M$28)*שעות_עבודה7[[#This Row],[שעות]]*($N$9:$O$28*24))=0,\"\",\nSUMPRODUCT((שעות_עבודה7[[#This Row],[שם העבודה]]=$L$9:$M$28)*שעות_עבודה7[[#This Row],[שעות]]*($N$9:$O$28*24))))","v":""}]
[null,{"$f":"IF(שעות_עבודה7[[#This Row],[תאריך]]=\"\",\"\",ROW(A72))","v":""},null,null,null,null,{"$f":"IFERROR(IF(שעות_עבודה7[[#This Row],[סיום]]=\"\",\"\",שעות_עבודה7[[#This Row],[סיום]]-שעות_עבודה7[[#This Row],[התחלה]]+(שעות_עבודה7[[#This Row],[סיום]]<שעות_עבודה7[[#This Row],[התחלה]])),\"\")","v":""},{"$f":"IF(שעות_עבודה7[[#This Row],[שעות]]=\"\",\"\",\nIF(SUMPRODUCT((שעות_עבודה7[[#This Row],[שם העבודה]]=$L$9:$M$28)*שעות_עבודה7[[#This Row],[שעות]]*($N$9:$O$28*24))=0,\"\",\nSUMPRODUCT((שעות_עבודה7[[#This Row],[שם העבודה]]=$L$9:$M$28)*שעות_עבודה7[[#This Row],[שעות]]*($N$9:$O$28*24))))","v":""},null,null,null,"שמירה אוטומטית"]
[null,{"$f":"IF(שעות_עבודה7[[#This Row],[תאריך]]=\"\",\"\",ROW(A73))","v":""},null,null,null,null,{"$f":"IFERROR(IF(שעות_עבודה7[[#This Row],[סיום]]=\"\",\"\",שעות_עבודה7[[#This Row],[סיום]]-שעות_עבודה7[[#This Row],[התחלה]]+(שעות_עבודה7[[#This Row],[סיום]]<שעות_עבודה7[[#This Row],[התחלה]])),\"\")","v":""},{"$f":"IF(שעות_עבודה7[[#This Row],[שעות]]=\"\",\"\",\nIF(SUMPRODUCT((שעות_עבודה7[[#This Row],[שם העבודה]]=$L$9:$M$28)*שעות_עבודה7[[#This Row],[שעות]]*($N$9:$O$28*24))=0,\"\",\nSUMPRODUCT((שעות_עבודה7[[#This Row],[שם העבודה]]=$L$9:$M$28)*שעות_עבודה7[[#This Row],[שעות]]*($N$9:$O$28*24))))","v":""},null,null,null,"פקד 'שמירה אוטומטית' מפעיל שמירה אוטומטית על הקובץ לאחר כל שימוש באחד הפקדים, או בקיצורי המקשים של הפקדים, או בהקלקה כפולה.\nהשמירה האוטומטית חלה על כל השינויים שעשיתם בקובץ לפני השימוש בפקד וכו', גם שינויים ידניים וכתיבת הערות."]
[null,{"$f":"IF(שעות_עבודה7[[#This Row],[תאריך]]=\"\",\"\",ROW(A74))","v":""},null,null,null,null,{"$f":"IFERROR(IF(שעות_עבודה7[[#This Row],[סיום]]=\"\",\"\",שעות_עבודה7[[#This Row],[סיום]]-שעות_עבודה7[[#This Row],[התחלה]]+(שעות_עבודה7[[#This Row],[סיום]]<שעות_עבודה7[[#This Row],[התחלה]])),\"\")","v":""},{"$f":"IF(שעות_עבודה7[[#This Row],[שעות]]=\"\",\"\",\nIF(SUMPRODUCT((שעות_עבודה7[[#This Row],[שם העבודה]]=$L$9:$M$28)*שעות_עבודה7[[#This Row],[שעות]]*($N$9:$O$28*24))=0,\"\",\nSUMPRODUCT((שעות_עבודה7[[#This Row],[שם העבודה]]=$L$9:$M$28)*שעות_עבודה7[[#This Row],[שעות]]*($N$9:$O$28*24))))","v":""}]
[null,{"$f":"IF(שעות_עבודה7[[#This Row],[תאריך]]=\"\",\"\",ROW(A75))","v":""},null,null,null,null,{"$f":"IFERROR(IF(שעות_עבודה7[[#This Row],[סיום]]=\"\",\"\",שעות_עבודה7[[#This Row],[סיום]]-שעות_עבודה7[[#This Row],[התחלה]]+(שעות_עבודה7[[#This Row],[סיום]]<שעות_עבודה7[[#This Row],[התחלה]])),\"\")","v":""},{"$f":"IF(שעות_עבודה7[[#This Row],[שעות]]=\"\",\"\",\nIF(SUMPRODUCT((שעות_עבודה7[[#This Row],[שם העבודה]]=$L$9:$M$28)*שעות_עבודה7[[#This Row],[שעות]]*($N$9:$O$28*24))=0,\"\",\nSUMPRODUCT((שעות_עבודה7[[#This Row],[שם העבודה]]=$L$9:$M$28)*שעות_עבודה7[[#This Row],[שעות]]*($N$9:$O$28*24))))","v":""}]
[null,{"$f":"IF(שעות_עבודה7[[#This Row],[תאריך]]=\"\",\"\",ROW(A76))","v":""},null,null,null,null,{"$f":"IFERROR(IF(שעות_עבודה7[[#This Row],[סיום]]=\"\",\"\",שעות_עבודה7[[#This Row],[סיום]]-שעות_עבודה7[[#This Row],[התחלה]]+(שעות_עבודה7[[#This Row],[סיום]]<שעות_עבודה7[[#This Row],[התחלה]])),\"\")","v":""},{"$f":"IF(שעות_עבודה7[[#This Row],[שעות]]=\"\",\"\",\nIF(SUMPRODUCT((שעות_עבודה7[[#This Row],[שם העבודה]]=$L$9:$M$28)*שעות_עבודה7[[#This Row],[שעות]]*($N$9:$O$28*24))=0,\"\",\nSUMPRODUCT((שעות_עבודה7[[#This Row],[שם העבודה]]=$L$9:$M$28)*שעות_עבודה7[[#This Row],[שעות]]*($N$9:$O$28*24))))","v":""},null,null,null,"המשמעות של 'שמירה אוטומטית' היא שבשונה מכל קובץ וורד אקסל וכדו' שכשאתם סוגרים אותו אתם יכולים לבחור אם ברצונכם לשמור את השינויים שביצעתם בו, כאן במידה והשמירה האוטומטית מופעלת השינויים שביצעתם באמצעות הפקדים קיצורי המקשים שלהם והקלקה כפולה, וכן כל השינויים שעשיתם באופן ידני לפני השימוש בפקדים וכו', ישמרו אוטומטית."]
[null,{"$f":"IF(שעות_עבודה7[[#This Row],[תאריך]]=\"\",\"\",ROW(A77))","v":""},null,null,null,null,{"$f":"IFERROR(IF(שעות_עבודה7[[#This Row],[סיום]]=\"\",\"\",שעות_עבודה7[[#This Row],[סיום]]-שעות_עבודה7[[#This Row],[התחלה]]+(שעות_עבודה7[[#This Row],[סיום]]<שעות_עבודה7[[#This Row],[התחלה]])),\"\")","v":""},{"$f":"IF(שעות_עבודה7[[#This Row],[שעות]]=\"\",\"\",\nIF(SUMPRODUCT((שעות_עבודה7[[#This Row],[שם העבודה]]=$L$9:$M$28)*שעות_עבודה7[[#This Row],[שעות]]*($N$9:$O$28*24))=0,\"\",\nSUMPRODUCT((שעות_עבודה7[[#This Row],[שם העבודה]]=$L$9:$M$28)*שעות_עבודה7[[#This Row],[שעות]]*($N$9:$O$28*24))))","v":""}]
[null,{"$f":"IF(שעות_עבודה7[[#This Row],[תאריך]]=\"\",\"\",ROW(A78))","v":""},null,null,null,null,{"$f":"IFERROR(IF(שעות_עבודה7[[#This Row],[סיום]]=\"\",\"\",שעות_עבודה7[[#This Row],[סיום]]-שעות_עבודה7[[#This Row],[התחלה]]+(שעות_עבודה7[[#This Row],[סיום]]<שעות_עבודה7[[#This Row],[התחלה]])),\"\")","v":""},{"$f":"IF(שעות_עבודה7[[#This Row],[שעות]]=\"\",\"\",\nIF(SUMPRODUCT((שעות_עבודה7[[#This Row],[שם העבודה]]=$L$9:$M$28)*שעות_עבודה7[[#This Row],[שעות]]*($N$9:$O$28*24))=0,\"\",\nSUMPRODUCT((שעות_עבודה7[[#This Row],[שם העבודה]]=$L$9:$M$28)*שעות_עבודה7[[#This Row],[שעות]]*($N$9:$O$28*24))))","v":""}]
[null,{"$f":"IF(שעות_עבודה7[[#This Row],[תאריך]]=\"\",\"\",ROW(A79))","v":""},null,null,null,null,{"$f":"IFERROR(IF(שעות_עבודה7[[#This Row],[סיום]]=\"\",\"\",שעות_עבודה7[[#This Row],[סיום]]-שעות_עבודה7[[#This Row],[התחלה]]+(שעות_עבודה7[[#This Row],[סיום]]<שעות_עבודה7[[#This Row],[התחלה]])),\"\")","v":""},{"$f":"IF(שעות_עבודה7[[#This Row],[שעות]]=\"\",\"\",\nIF(SUMPRODUCT((שעות_עבודה7[[#This Row],[שם העבודה]]=$L$9:$M$28)*שעות_עבודה7[[#This Row],[שעות]]*($N$9:$O$28*24))=0,\"\",\nSUMPRODUCT((שעות_עבודה7[[#This Row],[שם העבודה]]=$L$9:$M$28)*שעות_עבודה7[[#This Row],[שעות]]*($N$9:$O$28*24))))","v":""}]
[null,{"$f":"IF(שעות_עבודה7[[#This Row],[תאריך]]=\"\",\"\",ROW(A80))","v":""},null,null,null,null,{"$f":"IFERROR(IF(שעות_עבודה7[[#This Row],[סיום]]=\"\",\"\",שעות_עבודה7[[#This Row],[סיום]]-שעות_עבודה7[[#This Row],[התחלה]]+(שעות_עבודה7[[#This Row],[סיום]]<שעות_עבודה7[[#This Row],[התחלה]])),\"\")","v":""},{"$f":"IF(שעות_עבודה7[[#This Row],[שעות]]=\"\",\"\",\nIF(SUMPRODUCT((שעות_עבודה7[[#This Row],[שם העבודה]]=$L$9:$M$28)*שעות_עבודה7[[#This Row],[שעות]]*($N$9:$O$28*24))=0,\"\",\nSUMPRODUCT((שעות_עבודה7[[#This Row],[שם העבודה]]=$L$9:$M$28)*שעות_עבודה7[[#This Row],[שעות]]*($N$9:$O$28*24))))","v":""},null,null,null,"התועלת שלה שהיא תציל את העדכונים שלכם גמקרה שבטעות לא תשמרו את השינויים בסגירת הקובץ או שתשכחו לסגור את הקובץ."]
[null,{"$f":"IF(שעות_עבודה7[[#This Row],[תאריך]]=\"\",\"\",ROW(A81))","v":""},null,null,null,null,{"$f":"IFERROR(IF(שעות_עבודה7[[#This Row],[סיום]]=\"\",\"\",שעות_עבודה7[[#This Row],[סיום]]-שעות_עבודה7[[#This Row],[התחלה]]+(שעות_עבודה7[[#This Row],[סיום]]<שעות_עבודה7[[#This Row],[התחלה]])),\"\")","v":""},{"$f":"IF(שעות_עבודה7[[#This Row],[שעות]]=\"\",\"\",\nIF(SUMPRODUCT((שעות_עבודה7[[#This Row],[שם העבודה]]=$L$9:$M$28)*שעות_עבודה7[[#This Row],[שעות]]*($N$9:$O$28*24))=0,\"\",\nSUMPRODUCT((שעות_עבודה7[[#This Row],[שם העבודה]]=$L$9:$M$28)*שעות_עבודה7[[#This Row],[שעות]]*($N$9:$O$28*24))))","v":""}]
[null,{"$f":"IF(שעות_עבודה7[[#This Row],[תאריך]]=\"\",\"\",ROW(A82))","v":""},null,null,null,null,{"$f":"IFERROR(IF(שעות_עבודה7[[#This Row],[סיום]]=\"\",\"\",שעות_עבודה7[[#This Row],[סיום]]-שעות_עבודה7[[#This Row],[התחלה]]+(שעות_עבודה7[[#This Row],[סיום]]<שעות_עבודה7[[#This Row],[התחלה]])),\"\")","v":""},{"$f":"IF(שעות_עבודה7[[#This Row],[שעות]]=\"\",\"\",\nIF(SUMPRODUCT((שעות_עבודה7[[#This Row],[שם העבודה]]=$L$9:$M$28)*שעות_עבודה7[[#This Row],[שעות]]*($N$9:$O$28*24))=0,\"\",\nSUMPRODUCT((שעות_עבודה7[[#This Row],[שם העבודה]]=$L$9:$M$28)*שעות_עבודה7[[#This Row],[שעות]]*($N$9:$O$28*24))))","v":""},null,null,null,"תועלת נוספת שאם השימוש האחרון שעשיתם בקובץ נעשה באמצעות הפקדים וקיצורי המקשים שלהם מה ששכיח כשאתם מעדכנים עדכון התחלה או סוף, כשתסגרו את הקובץ הוא ייסגר לכם ישר ולא ישאל אתכם אם ברצונכם לשמור את השינויים שביצעתם מפני שהם כבר נשמרו, מה שיחסוך לכם קצת זמן.\nבשימוש באמצעות הקלקה כפולה, בסגירת הקובץ כן תשאלו אם ברצונכם לשמור את הנתונים, למרות שגם אם תבחרו ב'אל תשמור' הכל ישמר."]
[null,{"$f":"IF(שעות_עבודה7[[#This Row],[תאריך]]=\"\",\"\",ROW(A83))","v":""},null,null,null,null,{"$f":"IFERROR(IF(שעות_עבודה7[[#This Row],[סיום]]=\"\",\"\",שעות_עבודה7[[#This Row],[סיום]]-שעות_עבודה7[[#This Row],[התחלה]]+(שעות_עבודה7[[#This Row],[סיום]]<שעות_עבודה7[[#This Row],[התחלה]])),\"\")","v":""},{"$f":"IF(שעות_עבודה7[[#This Row],[שעות]]=\"\",\"\",\nIF(SUMPRODUCT((שעות_עבודה7[[#This Row],[שם העבודה]]=$L$9:$M$28)*שעות_עבודה7[[#This Row],[שעות]]*($N$9:$O$28*24))=0,\"\",\nSUMPRODUCT((שעות_עבודה7[[#This Row],[שם העבודה]]=$L$9:$M$28)*שעות_עבודה7[[#This Row],[שעות]]*($N$9:$O$28*24))))","v":""}]
[null,{"$f":"IF(שעות_עבודה7[[#This Row],[תאריך]]=\"\",\"\",ROW(A84))","v":""},null,null,null,null,{"$f":"IFERROR(IF(שעות_עבודה7[[#This Row],[סיום]]=\"\",\"\",שעות_עבודה7[[#This Row],[סיום]]-שעות_עבודה7[[#This Row],[התחלה]]+(שעות_עבודה7[[#This Row],[סיום]]<שעות_עבודה7[[#This Row],[התחלה]])),\"\")","v":""},{"$f":"IF(שעות_עבודה7[[#This Row],[שעות]]=\"\",\"\",\nIF(SUMPRODUCT((שעות_עבודה7[[#This Row],[שם העבודה]]=$L$9:$M$28)*שעות_עבודה7[[#This Row],[שעות]]*($N$9:$O$28*24))=0,\"\",\nSUMPRODUCT((שעות_עבודה7[[#This Row],[שם העבודה]]=$L$9:$M$28)*שעות_עבודה7[[#This Row],[שעות]]*($N$9:$O$28*24))))","v":""}]
[null,{"$f":"IF(שעות_עבודה7[[#This Row],[תאריך]]=\"\",\"\",ROW(A85))","v":""},null,null,null,null,{"$f":"IFERROR(IF(שעות_עבודה7[[#This Row],[סיום]]=\"\",\"\",שעות_עבודה7[[#This Row],[סיום]]-שעות_עבודה7[[#This Row],[התחלה]]+(שעות_עבודה7[[#This Row],[סיום]]<שעות_עבודה7[[#This Row],[התחלה]])),\"\")","v":""},{"$f":"IF(שעות_עבודה7[[#This Row],[שעות]]=\"\",\"\",\nIF(SUMPRODUCT((שעות_עבודה7[[#This Row],[שם העבודה]]=$L$9:$M$28)*שעות_עבודה7[[#This Row],[שעות]]*($N$9:$O$28*24))=0,\"\",\nSUMPRODUCT((שעות_עבודה7[[#This Row],[שם העבודה]]=$L$9:$M$28)*שעות_עבודה7[[#This Row],[שעות]]*($N$9:$O$28*24))))","v":""}]
[null,{"$f":"IF(שעות_עבודה7[[#This Row],[תאריך]]=\"\",\"\",ROW(A86))","v":""},null,null,null,null,{"$f":"IFERROR(IF(שעות_עבודה7[[#This Row],[סיום]]=\"\",\"\",שעות_עבודה7[[#This Row],[סיום]]-שעות_עבודה7[[#This Row],[התחלה]]+(שעות_עבודה7[[#This Row],[סיום]]<שעות_עבודה7[[#This Row],[התחלה]])),\"\")","v":""},{"$f":"IF(שעות_עבודה7[[#This Row],[שעות]]=\"\",\"\",\nIF(SUMPRODUCT((שעות_עבודה7[[#This Row],[שם העבודה]]=$L$9:$M$28)*שעות_עבודה7[[#This Row],[שעות]]*($N$9:$O$28*24))=0,\"\",\nSUMPRODUCT((שעות_עבודה7[[#This Row],[שם העבודה]]=$L$9:$M$28)*שעות_עבודה7[[#This Row],[שעות]]*($N$9:$O$28*24))))","v":""}]
[null,{"$f":"IF(שעות_עבודה7[[#This Row],[תאריך]]=\"\",\"\",ROW(A87))","v":""},null,null,null,null,{"$f":"IFERROR(IF(שעות_עבודה7[[#This Row],[סיום]]=\"\",\"\",שעות_עבודה7[[#This Row],[סיום]]-שעות_עבודה7[[#This Row],[התחלה]]+(שעות_עבודה7[[#This Row],[סיום]]<שעות_עבודה7[[#This Row],[התחלה]])),\"\")","v":""},{"$f":"IF(שעות_עבודה7[[#This Row],[שעות]]=\"\",\"\",\nIF(SUMPRODUCT((שעות_עבודה7[[#This Row],[שם העבודה]]=$L$9:$M$28)*שעות_עבודה7[[#This Row],[שעות]]*($N$9:$O$28*24))=0,\"\",\nSUMPRODUCT((שעות_עבודה7[[#This Row],[שם העבודה]]=$L$9:$M$28)*שעות_עבודה7[[#This Row],[שעות]]*($N$9:$O$28*24))))","v":""},null,null,null,"קיימת האפשרות גם לבטל את המצב הזה בלחיצה נוספת על הפקד אם אתם מעדיפים שתשמר לכם האופציה להחליט בסוף עם סגירת הקובץ אם ברצונכם לשמור את השינויים שביצעתם בו, את מצב הפקד ניתן לראות בתא שלצידו כמו ב'הקלקה כפולה'."]
[null,{"$f":"IF(שעות_עבודה7[[#This Row],[תאריך]]=\"\",\"\",ROW(A88))","v":""},null,null,null,null,{"$f":"IFERROR(IF(שעות_עבודה7[[#This Row],[סיום]]=\"\",\"\",שעות_עבודה7[[#This Row],[סיום]]-שעות_עבודה7[[#This Row],[התחלה]]+(שעות_עבודה7[[#This Row],[סיום]]<שעות_עבודה7[[#This Row],[התחלה]])),\"\")","v":""},{"$f":"IF(שעות_עבודה7[[#This Row],[שעות]]=\"\",\"\",\nIF(SUMPRODUCT((שעות_עבודה7[[#This Row],[שם העבודה]]=$L$9:$M$28)*שעות_עבודה7[[#This Row],[שעות]]*($N$9:$O$28*24))=0,\"\",\nSUMPRODUCT((שעות_עבודה7[[#This Row],[שם העבודה]]=$L$9:$M$28)*שעות_עבודה7[[#This Row],[שעות]]*($N$9:$O$28*24))))","v":""}]
[null,{"$f":"IF(שעות_עבודה7[[#This Row],[תאריך]]=\"\",\"\",ROW(A89))","v":""},null,null,null,null,{"$f":"IFERROR(IF(שעות_עבודה7[[#This Row],[סיום]]=\"\",\"\",שעות_עבודה7[[#This Row],[סיום]]-שעות_עבודה7[[#This Row],[התחלה]]+(שעות_עבודה7[[#This Row],[סיום]]<שעות_עבודה7[[#This Row],[התחלה]])),\"\")","v":""},{"$f":"IF(שעות_עבודה7[[#This Row],[שעות]]=\"\",\"\",\nIF(SUMPRODUCT((שעות_עבודה7[[#This Row],[שם העבודה]]=$L$9:$M$28)*שעות_עבודה7[[#This Row],[שעות]]*($N$9:$O$28*24))=0,\"\",\nSUMPRODUCT((שעות_עבודה7[[#This Row],[שם העבודה]]=$L$9:$M$28)*שעות_עבודה7[[#This Row],[שעות]]*($N$9:$O$28*24))))","v":""}]
[null,{"$f":"IF(שעות_עבודה7[[#This Row],[תאריך]]=\"\",\"\",ROW(A90))","v":""},null,null,null,null,{"$f":"IFERROR(IF(שעות_עבודה7[[#This Row],[סיום]]=\"\",\"\",שעות_עבודה7[[#This Row],[סיום]]-שעות_עבודה7[[#This Row],[התחלה]]+(שעות_עבודה7[[#This Row],[סיום]]<שעות_עבודה7[[#This Row],[התחלה]])),\"\")","v":""},{"$f":"IF(שעות_עבודה7[[#This Row],[שעות]]=\"\",\"\",\nIF(SUMPRODUCT((שעות_עבודה7[[#This Row],[שם העבודה]]=$L$9:$M$28)*שעות_עבודה7[[#This Row],[שעות]]*($N$9:$O$28*24))=0,\"\",\nSUMPRODUCT((שעות_עבודה7[[#This Row],[שם העבודה]]=$L$9:$M$28)*שעות_עבודה7[[#This Row],[שעות]]*($N$9:$O$28*24))))","v":""},null,null,null,"פעולות נוספות"]
[null,{"$f":"IF(שעות_עבודה7[[#This Row],[תאריך]]=\"\",\"\",ROW(A91))","v":""},null,null,null,null,{"$f":"IFERROR(IF(שעות_עבודה7[[#This Row],[סיום]]=\"\",\"\",שעות_עבודה7[[#This Row],[סיום]]-שעות_עבודה7[[#This Row],[התחלה]]+(שעות_עבודה7[[#This Row],[סיום]]<שעות_עבודה7[[#This Row],[התחלה]])),\"\")","v":""},{"$f":"IF(שעות_עבודה7[[#This Row],[שעות]]=\"\",\"\",\nIF(SUMPRODUCT((שעות_עבודה7[[#This Row],[שם העבודה]]=$L$9:$M$28)*שעות_עבודה7[[#This Row],[שעות]]*($N$9:$O$28*24))=0,\"\",\nSUMPRODUCT((שעות_עבודה7[[#This Row],[שם העבודה]]=$L$9:$M$28)*שעות_עבודה7[[#This Row],[שעות]]*($N$9:$O$28*24))))","v":""},null,null,null,"פקד 'בטל' יציג לכם הודעה האם ברצונכם למחוק את התוכן שהזנתם לתוך שורת העבודה האחרונה שקיימת בטבלת העדכון, ובהקשה על 'אישור' היא תימחק."]
[null,{"$f":"IF(שעות_עבודה7[[#This Row],[תאריך]]=\"\",\"\",ROW(A92))","v":""},null,null,null,null,{"$f":"IFERROR(IF(שעות_עבודה7[[#This Row],[סיום]]=\"\",\"\",שעות_עבודה7[[#This Row],[סיום]]-שעות_עבודה7[[#This Row],[התחלה]]+(שעות_עבודה7[[#This Row],[סיום]]<שעות_עבודה7[[#This Row],[התחלה]])),\"\")","v":""},{"$f":"IF(שעות_עבודה7[[#This Row],[שעות]]=\"\",\"\",\nIF(SUMPRODUCT((שעות_עבודה7[[#This Row],[שם העבודה]]=$L$9:$M$28)*שעות_עבודה7[[#This Row],[שעות]]*($N$9:$O$28*24))=0,\"\",\nSUMPRODUCT((שעות_עבודה7[[#This Row],[שם העבודה]]=$L$9:$M$28)*שעות_עבודה7[[#This Row],[שעות]]*($N$9:$O$28*24))))","v":""}]
[null,{"$f":"IF(שעות_עבודה7[[#This Row],[תאריך]]=\"\",\"\",ROW(A93))","v":""},null,null,null,null,{"$f":"IFERROR(IF(שעות_עבודה7[[#This Row],[סיום]]=\"\",\"\",שעות_עבודה7[[#This Row],[סיום]]-שעות_עבודה7[[#This Row],[התחלה]]+(שעות_עבודה7[[#This Row],[סיום]]<שעות_עבודה7[[#This Row],[התחלה]])),\"\")","v":""},{"$f":"IF(שעות_עבודה7[[#This Row],[שעות]]=\"\",\"\",\nIF(SUMPRODUCT((שעות_עבודה7[[#This Row],[שם העבודה]]=$L$9:$M$28)*שעות_עבודה7[[#This Row],[שעות]]*($N$9:$O$28*24))=0,\"\",\nSUMPRODUCT((שעות_עבודה7[[#This Row],[שם העבודה]]=$L$9:$M$28)*שעות_עבודה7[[#This Row],[שעות]]*($N$9:$O$28*24))))","v":""},null,null,null,"פקד 'ניקוי הנתונים' נועד כשברצונכם לנקות את כל הנתונים שהזנתם לגיליון הנוכחי כולל שמות העבודות ויעדי השכר, בלחיצה עליו תקבלו הודעה האם ברצונכם לנקות את כל הנתונים מהגיליון, וב'אישור' ימחקו כל הנתונים, כמובן שהעיצוב והנוסחאות ישארו ותוכלו להזין נתונים חדשים."]
[null,{"$f":"IF(שעות_עבודה7[[#This Row],[תאריך]]=\"\",\"\",ROW(A94))","v":""},null,null,null,null,{"$f":"IFERROR(IF(שעות_עבודה7[[#This Row],[סיום]]=\"\",\"\",שעות_עבודה7[[#This Row],[סיום]]-שעות_עבודה7[[#This Row],[התחלה]]+(שעות_עבודה7[[#This Row],[סיום]]<שעות_עבודה7[[#This Row],[התחלה]])),\"\")","v":""},{"$f":"IF(שעות_עבודה7[[#This Row],[שעות]]=\"\",\"\",\nIF(SUMPRODUCT((שעות_עבודה7[[#This Row],[שם העבודה]]=$L$9:$M$28)*שעות_עבודה7[[#This Row],[שעות]]*($N$9:$O$28*24))=0,\"\",\nSUMPRODUCT((שעות_עבודה7[[#This Row],[שם העבודה]]=$L$9:$M$28)*שעות_עבודה7[[#This Row],[שעות]]*($N$9:$O$28*24))))","v":""}]
[null,{"$f":"IF(שעות_עבודה7[[#This Row],[תאריך]]=\"\",\"\",ROW(A95))","v":""},null,null,null,null,{"$f":"IFERROR(IF(שעות_עבודה7[[#This Row],[סיום]]=\"\",\"\",שעות_עבודה7[[#This Row],[סיום]]-שעות_עבודה7[[#This Row],[התחלה]]+(שעות_עבודה7[[#This Row],[סיום]]<שעות_עבודה7[[#This Row],[התחלה]])),\"\")","v":""},{"$f":"IF(שעות_עבודה7[[#This Row],[שעות]]=\"\",\"\",\nIF(SUMPRODUCT((שעות_עבודה7[[#This Row],[שם העבודה]]=$L$9:$M$28)*שעות_עבודה7[[#This Row],[שעות]]*($N$9:$O$28*24))=0,\"\",\nSUMPRODUCT((שעות_עבודה7[[#This Row],[שם העבודה]]=$L$9:$M$28)*שעות_עבודה7[[#This Row],[שעות]]*($N$9:$O$28*24))))","v":""}]
[null,{"$f":"IF(שעות_עבודה7[[#This Row],[תאריך]]=\"\",\"\",ROW(A96))","v":""},null,null,null,null,{"$f":"IFERROR(IF(שעות_עבודה7[[#This Row],[סיום]]=\"\",\"\",שעות_עבודה7[[#This Row],[סיום]]-שעות_עבודה7[[#This Row],[התחלה]]+(שעות_עבודה7[[#This Row],[סיום]]<שעות_עבודה7[[#This Row],[התחלה]])),\"\")","v":""},{"$f":"IF(שעות_עבודה7[[#This Row],[שעות]]=\"\",\"\",\nIF(SUMPRODUCT((שעות_עבודה7[[#This Row],[שם העבודה]]=$L$9:$M$28)*שעות_עבודה7[[#This Row],[שעות]]*($N$9:$O$28*24))=0,\"\",\nSUMPRODUCT((שעות_עבודה7[[#This Row],[שם העבודה]]=$L$9:$M$28)*שעות_עבודה7[[#This Row],[שעות]]*($N$9:$O$28*24))))","v":""},null,null,null,"פקד \"צור גיליון חדש\", נועד כשנגמר לכם המקום בטבלת העדכון (לאחר 200 שורות), או סתם כשאתם רוצים ליצור גיליון חדש ריק בקובץ האקסל הנוכחי, בלחיצה עליו תתבקשו להזין שם לגיליון החדש, ואחר כך בלחיצה על 'OK' יתווסף לכם אוטומטית גיליון חדש ריק לצד הגיליון הנוכחי, אליו תוכלו להגיע דרך לשוניות הגילונות למטה מימין."]
[null,{"$f":"IF(שעות_עבודה7[[#This Row],[תאריך]]=\"\",\"\",ROW(A97))","v":""},null,null,null,null,{"$f":"IFERROR(IF(שעות_עבודה7[[#This Row],[סיום]]=\"\",\"\",שעות_עבודה7[[#This Row],[סיום]]-שעות_עבודה7[[#This Row],[התחלה]]+(שעות_עבודה7[[#This Row],[סיום]]<שעות_עבודה7[[#This Row],[התחלה]])),\"\")","v":""},{"$f":"IF(שעות_עבודה7[[#This Row],[שעות]]=\"\",\"\",\nIF(SUMPRODUCT((שעות_עבודה7[[#This Row],[שם העבודה]]=$L$9:$M$28)*שעות_עבודה7[[#This Row],[שעות]]*($N$9:$O$28*24))=0,\"\",\nSUMPRODUCT((שעות_עבודה7[[#This Row],[שם העבודה]]=$L$9:$M$28)*שעות_עבודה7[[#This Row],[שעות]]*($N$9:$O$28*24))))","v":""}]
[null,{"$f":"IF(שעות_עבודה7[[#This Row],[תאריך]]=\"\",\"\",ROW(A98))","v":""},null,null,null,null,{"$f":"IFERROR(IF(שעות_עבודה7[[#This Row],[סיום]]=\"\",\"\",שעות_עבודה7[[#This Row],[סיום]]-שעות_עבודה7[[#This Row],[התחלה]]+(שעות_עבודה7[[#This Row],[סיום]]<שעות_עבודה7[[#This Row],[התחלה]])),\"\")","v":""},{"$f":"IF(שעות_עבודה7[[#This Row],[שעות]]=\"\",\"\",\nIF(SUMPRODUCT((שעות_עבודה7[[#This Row],[שם העבודה]]=$L$9:$M$28)*שעות_עבודה7[[#This Row],[שעות]]*($N$9:$O$28*24))=0,\"\",\nSUMPRODUCT((שעות_עבודה7[[#This Row],[שם העבודה]]=$L$9:$M$28)*שעות_עבודה7[[#This Row],[שעות]]*($N$9:$O$28*24))))","v":""}]
[null,{"$f":"IF(שעות_עבודה7[[#This Row],[תאריך]]=\"\",\"\",ROW(A99))","v":""},null,null,null,null,{"$f":"IFERROR(IF(שעות_עבודה7[[#This Row],[סיום]]=\"\",\"\",שעות_עבודה7[[#This Row],[סיום]]-שעות_עבודה7[[#This Row],[התחלה]]+(שעות_עבודה7[[#This Row],[סיום]]<שעות_עבודה7[[#This Row],[התחלה]])),\"\")","v":""},{"$f":"IF(שעות_עבודה7[[#This Row],[שעות]]=\"\",\"\",\nIF(SUMPRODUCT((שעות_עבודה7[[#This Row],[שם העבודה]]=$L$9:$M$28)*שעות_עבודה7[[#This Row],[שעות]]*($N$9:$O$28*24))=0,\"\",\nSUMPRODUCT((שעות_עבודה7[[#This Row],[שם העבודה]]=$L$9:$M$28)*שעות_עבודה7[[#This Row],[שעות]]*($N$9:$O$28*24))))","v":""},null,null,null,"וקצת על מבנה קובץ אקסל"]
[null,{"$f":"IF(שעות_עבודה7[[#This Row],[תאריך]]=\"\",\"\",ROW(A100))","v":""},null,null,null,null,{"$f":"IFERROR(IF(שעות_עבודה7[[#This Row],[סיום]]=\"\",\"\",שעות_עבודה7[[#This Row],[סיום]]-שעות_עבודה7[[#This Row],[התחלה]]+(שעות_עבודה7[[#This Row],[סיום]]<שעות_עבודה7[[#This Row],[התחלה]])),\"\")","v":""},{"$f":"IF(שעות_עבודה7[[#This Row],[שעות]]=\"\",\"\",\nIF(SUMPRODUCT((שעות_עבודה7[[#This Row],[שם העבודה]]=$L$9:$M$28)*שעות_עבודה7[[#This Row],[שעות]]*($N$9:$O$28*24))=0,\"\",\nSUMPRODUCT((שעות_עבודה7[[#This Row],[שם העבודה]]=$L$9:$M$28)*שעות_עבודה7[[#This Row],[שעות]]*($N$9:$O$28*24))))","v":""},null,null,null,"קובץ אקסל מורכב מ-3 כיווני פריסה-"]
[null,{"$f":"IF(שעות_עבודה7[[#This Row],[תאריך]]=\"\",\"\",ROW(A101))","v":""},null,null,null,null,{"$f":"IFERROR(IF(שעות_עבודה7[[#This Row],[סיום]]=\"\",\"\",שעות_עבודה7[[#This Row],[סיום]]-שעות_עבודה7[[#This Row],[התחלה]]+(שעות_עבודה7[[#This Row],[סיום]]<שעות_עבודה7[[#This Row],[התחלה]])),\"\")","v":""},{"$f":"IF(שעות_עבודה7[[#This Row],[שעות]]=\"\",\"\",\nIF(SUMPRODUCT((שעות_עבודה7[[#This Row],[שם העבודה]]=$L$9:$M$28)*שעות_עבודה7[[#This Row],[שעות]]*($N$9:$O$28*24))=0,\"\",\nSUMPRODUCT((שעות_עבודה7[[#This Row],[שם העבודה]]=$L$9:$M$28)*שעות_עבודה7[[#This Row],[שעות]]*($N$9:$O$28*24))))","v":""},null,null,null,"עמודות- זה הקווים שעומדים לרוחב כל הגיליון במאונח וממוספרים למעלה באמצעות האותיות באנגלית, יש מאות עמודות כאלה שממשיכות לשמאל הקובץ, הניווט בעמודות נעשה באמצעות המחוון שבתחתית התוכנה מצד שמאל."]
[null,{"$f":"IF(שעות_עבודה7[[#This Row],[תאריך]]=\"\",\"\",ROW(A102))","v":""},null,null,null,null,{"$f":"IFERROR(IF(שעות_עבודה7[[#This Row],[סיום]]=\"\",\"\",שעות_עבודה7[[#This Row],[סיום]]-שעות_עבודה7[[#This Row],[התחלה]]+(שעות_עבודה7[[#This Row],[סיום]]<שעות_עבודה7[[#This Row],[התחלה]])),\"\")","v":""},{"$f":"IF(שעות_עבודה7[[#This Row],[שעות]]=\"\",\"\",\nIF(SUMPRODUCT((שעות_עבודה7[[#This Row],[שם העבודה]]=$L$9:$M$28)*שעות_עבודה7[[#This Row],[שעות]]*($N$9:$O$28*24))=0,\"\",\nSUMPRODUCT((שעות_עבודה7[[#This Row],[שם העבודה]]=$L$9:$M$28)*שעות_עבודה7[[#This Row],[שעות]]*($N$9:$O$28*24))))","v":""}]
[null,{"$f":"IF(שעות_עבודה7[[#This Row],[תאריך]]=\"\",\"\",ROW(A103))","v":""},null,null,null,null,{"$f":"IFERROR(IF(שעות_עבודה7[[#This Row],[סיום]]=\"\",\"\",שעות_עבודה7[[#This Row],[סיום]]-שעות_עבודה7[[#This Row],[התחלה]]+(שעות_עבודה7[[#This Row],[סיום]]<שעות_עבודה7[[#This Row],[התחלה]])),\"\")","v":""},{"$f":"IF(שעות_עבודה7[[#This Row],[שעות]]=\"\",\"\",\nIF(SUMPRODUCT((שעות_עבודה7[[#This Row],[שם העבודה]]=$L$9:$M$28)*שעות_עבודה7[[#This Row],[שעות]]*($N$9:$O$28*24))=0,\"\",\nSUMPRODUCT((שעות_עבודה7[[#This Row],[שם העבודה]]=$L$9:$M$28)*שעות_עבודה7[[#This Row],[שעות]]*($N$9:$O$28*24))))","v":""},null,null,null,"שורות- קובץ האקסל נמשך למטה עם אלפי שורות, וגם שם ניתן לנווט באמצעות מחוון שנמצא בשולי התוכנה מצד שמאל."]
[null,{"$f":"IF(שעות_עבודה7[[#This Row],[תאריך]]=\"\",\"\",ROW(A104))","v":""},null,null,null,null,{"$f":"IFERROR(IF(שעות_עבודה7[[#This Row],[סיום]]=\"\",\"\",שעות_עבודה7[[#This Row],[סיום]]-שעות_עבודה7[[#This Row],[התחלה]]+(שעות_עבודה7[[#This Row],[סיום]]<שעות_עבודה7[[#This Row],[התחלה]])),\"\")","v":""},{"$f":"IF(שעות_עבודה7[[#This Row],[שעות]]=\"\",\"\",\nIF(SUMPRODUCT((שעות_עבודה7[[#This Row],[שם העבודה]]=$L$9:$M$28)*שעות_עבודה7[[#This Row],[שעות]]*($N$9:$O$28*24))=0,\"\",\nSUMPRODUCT((שעות_עבודה7[[#This Row],[שם העבודה]]=$L$9:$M$28)*שעות_עבודה7[[#This Row],[שעות]]*($N$9:$O$28*24))))","v":""},null,null,null,"גיליונות- בקובץ אקסל ניתן ליצור מספר רב של גיליונות, כאשר כל גיליון מכיל מאות עמודות ואלפי שורות כנ\"ל, בקובץ הנוכחי קיימים 3 גיליונות, המעבר בין גיליון לגיליון נעשה באמצעות לשוניות הגיליונות שנמצאות בתחתית התוכנה מצד ימין."]
[null,{"$f":"IF(שעות_עבודה7[[#This Row],[תאריך]]=\"\",\"\",ROW(A105))","v":""},null,null,null,null,{"$f":"IFERROR(IF(שעות_עבודה7[[#This Row],[סיום]]=\"\",\"\",שעות_עבודה7[[#This Row],[סיום]]-שעות_עבודה7[[#This Row],[התחלה]]+(שעות_עבודה7[[#This Row],[סיום]]<שעות_עבודה7[[#This Row],[התחלה]])),\"\")","v":""},{"$f":"IF(שעות_עבודה7[[#This Row],[שעות]]=\"\",\"\",\nIF(SUMPRODUCT((שעות_עבודה7[[#This Row],[שם העבודה]]=$L$9:$M$28)*שעות_עבודה7[[#This Row],[שעות]]*($N$9:$O$28*24))=0,\"\",\nSUMPRODUCT((שעות_עבודה7[[#This Row],[שם העבודה]]=$L$9:$M$28)*שעות_עבודה7[[#This Row],[שעות]]*($N$9:$O$28*24))))","v":""}]
[null,{"$f":"IF(שעות_עבודה7[[#This Row],[תאריך]]=\"\",\"\",ROW(A106))","v":""},null,null,null,null,{"$f":"IFERROR(IF(שעות_עבודה7[[#This Row],[סיום]]=\"\",\"\",שעות_עבודה7[[#This Row],[סיום]]-שעות_עבודה7[[#This Row],[התחלה]]+(שעות_עבודה7[[#This Row],[סיום]]<שעות_עבודה7[[#This Row],[התחלה]])),\"\")","v":""},{"$f":"IF(שעות_עבודה7[[#This Row],[שעות]]=\"\",\"\",\nIF(SUMPRODUCT((שעות_עבודה7[[#This Row],[שם העבודה]]=$L$9:$M$28)*שעות_עבודה7[[#This Row],[שעות]]*($N$9:$O$28*24))=0,\"\",\nSUMPRODUCT((שעות_עבודה7[[#This Row],[שם העבודה]]=$L$9:$M$28)*שעות_עבודה7[[#This Row],[שעות]]*($N$9:$O$28*24))))","v":""}]
[null,{"$f":"IF(שעות_עבודה7[[#This Row],[תאריך]]=\"\",\"\",ROW(A107))","v":""},null,null,null,null,{"$f":"IFERROR(IF(שעות_עבודה7[[#This Row],[סיום]]=\"\",\"\",שעות_עבודה7[[#This Row],[סיום]]-שעות_עבודה7[[#This Row],[התחלה]]+(שעות_עבודה7[[#This Row],[סיום]]<שעות_עבודה7[[#This Row],[התחלה]])),\"\")","v":""},{"$f":"IF(שעות_עבודה7[[#This Row],[שעות]]=\"\",\"\",\nIF(SUMPRODUCT((שעות_עבודה7[[#This Row],[שם העבודה]]=$L$9:$M$28)*שעות_עבודה7[[#This Row],[שעות]]*($N$9:$O$28*24))=0,\"\",\nSUMPRODUCT((שעות_עבודה7[[#This Row],[שם העבודה]]=$L$9:$M$28)*שעות_עבודה7[[#This Row],[שעות]]*($N$9:$O$28*24))))","v":""},null,null,null,null,null,null,null,null,"נוצר על ידי החפץ בעילו\"ש לזיכוי הרבים.\nקרדיט ל-a5092920673@gmail.com.\nעותק חופשי - סיסמא 1234"]
[null,{"$f":"IF(שעות_עבודה7[[#This Row],[תאריך]]=\"\",\"\",ROW(A108))","v":""},null,null,null,null,{"$f":"IFERROR(IF(שעות_עבודה7[[#This Row],[סיום]]=\"\",\"\",שעות_עבודה7[[#This Row],[סיום]]-שעות_עבודה7[[#This Row],[התחלה]]+(שעות_עבודה7[[#This Row],[סיום]]<שעות_עבודה7[[#This Row],[התחלה]])),\"\")","v":""},{"$f":"IF(שעות_עבודה7[[#This Row],[שעות]]=\"\",\"\",\nIF(SUMPRODUCT((שעות_עבודה7[[#This Row],[שם העבודה]]=$L$9:$M$28)*שעות_עבודה7[[#This Row],[שעות]]*($N$9:$O$28*24))=0,\"\",\nSUMPRODUCT((שעות_עבודה7[[#This Row],[שם העבודה]]=$L$9:$M$28)*שעות_עבודה7[[#This Row],[שעות]]*($N$9:$O$28*24))))","v":""}]
[null,{"$f":"IF(שעות_עבודה7[[#This Row],[תאריך]]=\"\",\"\",ROW(A109))","v":""},null,null,null,null,{"$f":"IFERROR(IF(שעות_עבודה7[[#This Row],[סיום]]=\"\",\"\",שעות_עבודה7[[#This Row],[סיום]]-שעות_עבודה7[[#This Row],[התחלה]]+(שעות_עבודה7[[#This Row],[סיום]]<שעות_עבודה7[[#This Row],[התחלה]])),\"\")","v":""},{"$f":"IF(שעות_עבודה7[[#This Row],[שעות]]=\"\",\"\",\nIF(SUMPRODUCT((שעות_עבודה7[[#This Row],[שם העבודה]]=$L$9:$M$28)*שעות_עבודה7[[#This Row],[שעות]]*($N$9:$O$28*24))=0,\"\",\nSUMPRODUCT((שעות_עבודה7[[#This Row],[שם העבודה]]=$L$9:$M$28)*שעות_עבודה7[[#This Row],[שעות]]*($N$9:$O$28*24))))","v":""}]
[null,{"$f":"IF(שעות_עבודה7[[#This Row],[תאריך]]=\"\",\"\",ROW(A110))","v":""},null,null,null,null,{"$f":"IFERROR(IF(שעות_עבודה7[[#This Row],[סיום]]=\"\",\"\",שעות_עבודה7[[#This Row],[סיום]]-שעות_עבודה7[[#This Row],[התחלה]]+(שעות_עבודה7[[#This Row],[סיום]]<שעות_עבודה7[[#This Row],[התחלה]])),\"\")","v":""},{"$f":"IF(שעות_עבודה7[[#This Row],[שעות]]=\"\",\"\",\nIF(SUMPRODUCT((שעות_עבודה7[[#This Row],[שם העבודה]]=$L$9:$M$28)*שעות_עבודה7[[#This Row],[שעות]]*($N$9:$O$28*24))=0,\"\",\nSUMPRODUCT((שעות_עבודה7[[#This Row],[שם העבודה]]=$L$9:$M$28)*שעות_עבודה7[[#This Row],[שעות]]*($N$9:$O$28*24))))","v":""}]
[null,{"$f":"IF(שעות_עבודה7[[#This Row],[תאריך]]=\"\",\"\",ROW(A111))","v":""},null,null,null,null,{"$f":"IFERROR(IF(שעות_עבודה7[[#This Row],[סיום]]=\"\",\"\",שעות_עבודה7[[#This Row],[סיום]]-שעות_עבודה7[[#This Row],[התחלה]]+(שעות_עבודה7[[#This Row],[סיום]]<שעות_עבודה7[[#This Row],[התחלה]])),\"\")","v":""},{"$f":"IF(שעות_עבודה7[[#This Row],[שעות]]=\"\",\"\",\nIF(SUMPRODUCT((שעות_עבודה7[[#This Row],[שם העבודה]]=$L$9:$M$28)*שעות_עבודה7[[#This Row],[שעות]]*($N$9:$O$28*24))=0,\"\",\nSUMPRODUCT((שעות_עבודה7[[#This Row],[שם העבודה]]=$L$9:$M$28)*שעות_עבודה7[[#This Row],[שעות]]*($N$9:$O$28*24))))","v":""}]
[null,{"$f":"IF(שעות_עבודה7[[#This Row],[תאריך]]=\"\",\"\",ROW(A112))","v":""},null,null,null,null,{"$f":"IFERROR(IF(שעות_עבודה7[[#This Row],[סיום]]=\"\",\"\",שעות_עבודה7[[#This Row],[סיום]]-שעות_עבודה7[[#This Row],[התחלה]]+(שעות_עבודה7[[#This Row],[סיום]]<שעות_עבודה7[[#This Row],[התחלה]])),\"\")","v":""},{"$f":"IF(שעות_עבודה7[[#This Row],[שעות]]=\"\",\"\",\nIF(SUMPRODUCT((שעות_עבודה7[[#This Row],[שם העבודה]]=$L$9:$M$28)*שעות_עבודה7[[#This Row],[שעות]]*($N$9:$O$28*24))=0,\"\",\nSUMPRODUCT((שעות_עבודה7[[#This Row],[שם העבודה]]=$L$9:$M$28)*שעות_עבודה7[[#This Row],[שעות]]*($N$9:$O$28*24))))","v":""}]
[null,{"$f":"IF(שעות_עבודה7[[#This Row],[תאריך]]=\"\",\"\",ROW(A113))","v":""},null,null,null,null,{"$f":"IFERROR(IF(שעות_עבודה7[[#This Row],[סיום]]=\"\",\"\",שעות_עבודה7[[#This Row],[סיום]]-שעות_עבודה7[[#This Row],[התחלה]]+(שעות_עבודה7[[#This Row],[סיום]]<שעות_עבודה7[[#This Row],[התחלה]])),\"\")","v":""},{"$f":"IF(שעות_עבודה7[[#This Row],[שעות]]=\"\",\"\",\nIF(SUMPRODUCT((שעות_עבודה7[[#This Row],[שם העבודה]]=$L$9:$M$28)*שעות_עבודה7[[#This Row],[שעות]]*($N$9:$O$28*24))=0,\"\",\nSUMPRODUCT((שעות_עבודה7[[#This Row],[שם העבודה]]=$L$9:$M$28)*שעות_עבודה7[[#This Row],[שעות]]*($N$9:$O$28*24))))","v":""}]
[null,{"$f":"IF(שעות_עבודה7[[#This Row],[תאריך]]=\"\",\"\",ROW(A114))","v":""},null,null,null,null,{"$f":"IFERROR(IF(שעות_עבודה7[[#This Row],[סיום]]=\"\",\"\",שעות_עבודה7[[#This Row],[סיום]]-שעות_עבודה7[[#This Row],[התחלה]]+(שעות_עבודה7[[#This Row],[סיום]]<שעות_עבודה7[[#This Row],[התחלה]])),\"\")","v":""},{"$f":"IF(שעות_עבודה7[[#This Row],[שעות]]=\"\",\"\",\nIF(SUMPRODUCT((שעות_עבודה7[[#This Row],[שם העבודה]]=$L$9:$M$28)*שעות_עבודה7[[#This Row],[שעות]]*($N$9:$O$28*24))=0,\"\",\nSUMPRODUCT((שעות_עבודה7[[#This Row],[שם העבודה]]=$L$9:$M$28)*שעות_עבודה7[[#This Row],[שעות]]*($N$9:$O$28*24))))","v":""}]
[null,{"$f":"IF(שעות_עבודה7[[#This Row],[תאריך]]=\"\",\"\",ROW(A115))","v":""},null,null,null,null,{"$f":"IFERROR(IF(שעות_עבודה7[[#This Row],[סיום]]=\"\",\"\",שעות_עבודה7[[#This Row],[סיום]]-שעות_עבודה7[[#This Row],[התחלה]]+(שעות_עבודה7[[#This Row],[סיום]]<שעות_עבודה7[[#This Row],[התחלה]])),\"\")","v":""},{"$f":"IF(שעות_עבודה7[[#This Row],[שעות]]=\"\",\"\",\nIF(SUMPRODUCT((שעות_עבודה7[[#This Row],[שם העבודה]]=$L$9:$M$28)*שעות_עבודה7[[#This Row],[שעות]]*($N$9:$O$28*24))=0,\"\",\nSUMPRODUCT((שעות_עבודה7[[#This Row],[שם העבודה]]=$L$9:$M$28)*שעות_עבודה7[[#This Row],[שעות]]*($N$9:$O$28*24))))","v":""}]
[null,{"$f":"IF(שעות_עבודה7[[#This Row],[תאריך]]=\"\",\"\",ROW(A116))","v":""},null,null,null,null,{"$f":"IFERROR(IF(שעות_עבודה7[[#This Row],[סיום]]=\"\",\"\",שעות_עבודה7[[#This Row],[סיום]]-שעות_עבודה7[[#This Row],[התחלה]]+(שעות_עבודה7[[#This Row],[סיום]]<שעות_עבודה7[[#This Row],[התחלה]])),\"\")","v":""},{"$f":"IF(שעות_עבודה7[[#This Row],[שעות]]=\"\",\"\",\nIF(SUMPRODUCT((שעות_עבודה7[[#This Row],[שם העבודה]]=$L$9:$M$28)*שעות_עבודה7[[#This Row],[שעות]]*($N$9:$O$28*24))=0,\"\",\nSUMPRODUCT((שעות_עבודה7[[#This Row],[שם העבודה]]=$L$9:$M$28)*שעות_עבודה7[[#This Row],[שעות]]*($N$9:$O$28*24))))","v":""}]
[null,{"$f":"IF(שעות_עבודה7[[#This Row],[תאריך]]=\"\",\"\",ROW(A117))","v":""},null,null,null,null,{"$f":"IFERROR(IF(שעות_עבודה7[[#This Row],[סיום]]=\"\",\"\",שעות_עבודה7[[#This Row],[סיום]]-שעות_עבודה7[[#This Row],[התחלה]]+(שעות_עבודה7[[#This Row],[סיום]]<שעות_עבודה7[[#This Row],[התחלה]])),\"\")","v":""},{"$f":"IF(שעות_עבודה7[[#This Row],[שעות]]=\"\",\"\",\nIF(SUMPRODUCT((שעות_עבודה7[[#This Row],[שם העבודה]]=$L$9:$M$28)*שעות_עבודה7[[#This Row],[שעות]]*($N$9:$O$28*24))=0,\"\",\nSUMPRODUCT((שעות_עבודה7[[#This Row],[שם העבודה]]=$L$9:$M$28)*שעות_עבודה7[[#This Row],[שעות]]*($N$9:$O$28*24))))","v":""}]
[null,{"$f":"IF(שעות_עבודה7[[#This Row],[תאריך]]=\"\",\"\",ROW(A118))","v":""},null,null,null,null,{"$f":"IFERROR(IF(שעות_עבודה7[[#This Row],[סיום]]=\"\",\"\",שעות_עבודה7[[#This Row],[סיום]]-שעות_עבודה7[[#This Row],[התחלה]]+(שעות_עבודה7[[#This Row],[סיום]]<שעות_עבודה7[[#This Row],[התחלה]])),\"\")","v":""},{"$f":"IF(שעות_עבודה7[[#This Row],[שעות]]=\"\",\"\",\nIF(SUMPRODUCT((שעות_עבודה7[[#This Row],[שם העבודה]]=$L$9:$M$28)*שעות_עבודה7[[#This Row],[שעות]]*($N$9:$O$28*24))=0,\"\",\nSUMPRODUCT((שעות_עבודה7[[#This Row],[שם העבודה]]=$L$9:$M$28)*שעות_עבודה7[[#This Row],[שעות]]*($N$9:$O$28*24))))","v":""}]
[null,{"$f":"IF(שעות_עבודה7[[#This Row],[תאריך]]=\"\",\"\",ROW(A119))","v":""},null,null,null,null,{"$f":"IFERROR(IF(שעות_עבודה7[[#This Row],[סיום]]=\"\",\"\",שעות_עבודה7[[#This Row],[סיום]]-שעות_עבודה7[[#This Row],[התחלה]]+(שעות_עבודה7[[#This Row],[סיום]]<שעות_עבודה7[[#This Row],[התחלה]])),\"\")","v":""},{"$f":"IF(שעות_עבודה7[[#This Row],[שעות]]=\"\",\"\",\nIF(SUMPRODUCT((שעות_עבודה7[[#This Row],[שם העבודה]]=$L$9:$M$28)*שעות_עבודה7[[#This Row],[שעות]]*($N$9:$O$28*24))=0,\"\",\nSUMPRODUCT((שעות_עבודה7[[#This Row],[שם העבודה]]=$L$9:$M$28)*שעות_עבודה7[[#This Row],[שעות]]*($N$9:$O$28*24))))","v":""}]
[null,{"$f":"IF(שעות_עבודה7[[#This Row],[תאריך]]=\"\",\"\",ROW(A120))","v":""},null,null,null,null,{"$f":"IFERROR(IF(שעות_עבודה7[[#This Row],[סיום]]=\"\",\"\",שעות_עבודה7[[#This Row],[סיום]]-שעות_עבודה7[[#This Row],[התחלה]]+(שעות_עבודה7[[#This Row],[סיום]]<שעות_עבודה7[[#This Row],[התחלה]])),\"\")","v":""},{"$f":"IF(שעות_עבודה7[[#This Row],[שעות]]=\"\",\"\",\nIF(SUMPRODUCT((שעות_עבודה7[[#This Row],[שם העבודה]]=$L$9:$M$28)*שעות_עבודה7[[#This Row],[שעות]]*($N$9:$O$28*24))=0,\"\",\nSUMPRODUCT((שעות_עבודה7[[#This Row],[שם העבודה]]=$L$9:$M$28)*שעות_עבודה7[[#This Row],[שעות]]*($N$9:$O$28*24))))","v":""}]
[null,{"$f":"IF(שעות_עבודה7[[#This Row],[תאריך]]=\"\",\"\",ROW(A121))","v":""},null,null,null,null,{"$f":"IFERROR(IF(שעות_עבודה7[[#This Row],[סיום]]=\"\",\"\",שעות_עבודה7[[#This Row],[סיום]]-שעות_עבודה7[[#This Row],[התחלה]]+(שעות_עבודה7[[#This Row],[סיום]]<שעות_עבודה7[[#This Row],[התחלה]])),\"\")","v":""},{"$f":"IF(שעות_עבודה7[[#This Row],[שעות]]=\"\",\"\",\nIF(SUMPRODUCT((שעות_עבודה7[[#This Row],[שם העבודה]]=$L$9:$M$28)*שעות_עבודה7[[#This Row],[שעות]]*($N$9:$O$28*24))=0,\"\",\nSUMPRODUCT((שעות_עבודה7[[#This Row],[שם העבודה]]=$L$9:$M$28)*שעות_עבודה7[[#This Row],[שעות]]*($N$9:$O$28*24))))","v":""}]
[null,{"$f":"IF(שעות_עבודה7[[#This Row],[תאריך]]=\"\",\"\",ROW(A122))","v":""},null,null,null,null,{"$f":"IFERROR(IF(שעות_עבודה7[[#This Row],[סיום]]=\"\",\"\",שעות_עבודה7[[#This Row],[סיום]]-שעות_עבודה7[[#This Row],[התחלה]]+(שעות_עבודה7[[#This Row],[סיום]]<שעות_עבודה7[[#This Row],[התחלה]])),\"\")","v":""},{"$f":"IF(שעות_עבודה7[[#This Row],[שעות]]=\"\",\"\",\nIF(SUMPRODUCT((שעות_עבודה7[[#This Row],[שם העבודה]]=$L$9:$M$28)*שעות_עבודה7[[#This Row],[שעות]]*($N$9:$O$28*24))=0,\"\",\nSUMPRODUCT((שעות_עבודה7[[#This Row],[שם העבודה]]=$L$9:$M$28)*שעות_עבודה7[[#This Row],[שעות]]*($N$9:$O$28*24))))","v":""}]
[null,{"$f":"IF(שעות_עבודה7[[#This Row],[תאריך]]=\"\",\"\",ROW(A123))","v":""},null,null,null,null,{"$f":"IFERROR(IF(שעות_עבודה7[[#This Row],[סיום]]=\"\",\"\",שעות_עבודה7[[#This Row],[סיום]]-שעות_עבודה7[[#This Row],[התחלה]]+(שעות_עבודה7[[#This Row],[סיום]]<שעות_עבודה7[[#This Row],[התחלה]])),\"\")","v":""},{"$f":"IF(שעות_עבודה7[[#This Row],[שעות]]=\"\",\"\",\nIF(SUMPRODUCT((שעות_עבודה7[[#This Row],[שם העבודה]]=$L$9:$M$28)*שעות_עבודה7[[#This Row],[שעות]]*($N$9:$O$28*24))=0,\"\",\nSUMPRODUCT((שעות_עבודה7[[#This Row],[שם העבודה]]=$L$9:$M$28)*שעות_עבודה7[[#This Row],[שעות]]*($N$9:$O$28*24))))","v":""}]
[null,{"$f":"IF(שעות_עבודה7[[#This Row],[תאריך]]=\"\",\"\",ROW(A124))","v":""},null,null,null,null,{"$f":"IFERROR(IF(שעות_עבודה7[[#This Row],[סיום]]=\"\",\"\",שעות_עבודה7[[#This Row],[סיום]]-שעות_עבודה7[[#This Row],[התחלה]]+(שעות_עבודה7[[#This Row],[סיום]]<שעות_עבודה7[[#This Row],[התחלה]])),\"\")","v":""},{"$f":"IF(שעות_עבודה7[[#This Row],[שעות]]=\"\",\"\",\nIF(SUMPRODUCT((שעות_עבודה7[[#This Row],[שם העבודה]]=$L$9:$M$28)*שעות_עבודה7[[#This Row],[שעות]]*($N$9:$O$28*24))=0,\"\",\nSUMPRODUCT((שעות_עבודה7[[#This Row],[שם העבודה]]=$L$9:$M$28)*שעות_עבודה7[[#This Row],[שעות]]*($N$9:$O$28*24))))","v":""}]
[null,{"$f":"IF(שעות_עבודה7[[#This Row],[תאריך]]=\"\",\"\",ROW(A125))","v":""},null,null,null,null,{"$f":"IFERROR(IF(שעות_עבודה7[[#This Row],[סיום]]=\"\",\"\",שעות_עבודה7[[#This Row],[סיום]]-שעות_עבודה7[[#This Row],[התחלה]]+(שעות_עבודה7[[#This Row],[סיום]]<שעות_עבודה7[[#This Row],[התחלה]])),\"\")","v":""},{"$f":"IF(שעות_עבודה7[[#This Row],[שעות]]=\"\",\"\",\nIF(SUMPRODUCT((שעות_עבודה7[[#This Row],[שם העבודה]]=$L$9:$M$28)*שעות_עבודה7[[#This Row],[שעות]]*($N$9:$O$28*24))=0,\"\",\nSUMPRODUCT((שעות_עבודה7[[#This Row],[שם העבודה]]=$L$9:$M$28)*שעות_עבודה7[[#This Row],[שעות]]*($N$9:$O$28*24))))","v":""}]
[null,{"$f":"IF(שעות_עבודה7[[#This Row],[תאריך]]=\"\",\"\",ROW(A126))","v":""},null,null,null,null,{"$f":"IFERROR(IF(שעות_עבודה7[[#This Row],[סיום]]=\"\",\"\",שעות_עבודה7[[#This Row],[סיום]]-שעות_עבודה7[[#This Row],[התחלה]]+(שעות_עבודה7[[#This Row],[סיום]]<שעות_עבודה7[[#This Row],[התחלה]])),\"\")","v":""},{"$f":"IF(שעות_עבודה7[[#This Row],[שעות]]=\"\",\"\",\nIF(SUMPRODUCT((שעות_עבודה7[[#This Row],[שם העבודה]]=$L$9:$M$28)*שעות_עבודה7[[#This Row],[שעות]]*($N$9:$O$28*24))=0,\"\",\nSUMPRODUCT((שעות_עבודה7[[#This Row],[שם העבודה]]=$L$9:$M$28)*שעות_עבודה7[[#This Row],[שעות]]*($N$9:$O$28*24))))","v":""}]
[null,{"$f":"IF(שעות_עבודה7[[#This Row],[תאריך]]=\"\",\"\",ROW(A127))","v":""},null,null,null,null,{"$f":"IFERROR(IF(שעות_עבודה7[[#This Row],[סיום]]=\"\",\"\",שעות_עבודה7[[#This Row],[סיום]]-שעות_עבודה7[[#This Row],[התחלה]]+(שעות_עבודה7[[#This Row],[סיום]]<שעות_עבודה7[[#This Row],[התחלה]])),\"\")","v":""},{"$f":"IF(שעות_עבודה7[[#This Row],[שעות]]=\"\",\"\",\nIF(SUMPRODUCT((שעות_עבודה7[[#This Row],[שם העבודה]]=$L$9:$M$28)*שעות_עבודה7[[#This Row],[שעות]]*($N$9:$O$28*24))=0,\"\",\nSUMPRODUCT((שעות_עבודה7[[#This Row],[שם העבודה]]=$L$9:$M$28)*שעות_עבודה7[[#This Row],[שעות]]*($N$9:$O$28*24))))","v":""}]
[null,{"$f":"IF(שעות_עבודה7[[#This Row],[תאריך]]=\"\",\"\",ROW(A128))","v":""},null,null,null,null,{"$f":"IFERROR(IF(שעות_עבודה7[[#This Row],[סיום]]=\"\",\"\",שעות_עבודה7[[#This Row],[סיום]]-שעות_עבודה7[[#This Row],[התחלה]]+(שעות_עבודה7[[#This Row],[סיום]]<שעות_עבודה7[[#This Row],[התחלה]])),\"\")","v":""},{"$f":"IF(שעות_עבודה7[[#This Row],[שעות]]=\"\",\"\",\nIF(SUMPRODUCT((שעות_עבודה7[[#This Row],[שם העבודה]]=$L$9:$M$28)*שעות_עבודה7[[#This Row],[שעות]]*($N$9:$O$28*24))=0,\"\",\nSUMPRODUCT((שעות_עבודה7[[#This Row],[שם העבודה]]=$L$9:$M$28)*שעות_עבודה7[[#This Row],[שעות]]*($N$9:$O$28*24))))","v":""}]
[null,{"$f":"IF(שעות_עבודה7[[#This Row],[תאריך]]=\"\",\"\",ROW(A129))","v":""},null,null,null,null,{"$f":"IFERROR(IF(שעות_עבודה7[[#This Row],[סיום]]=\"\",\"\",שעות_עבודה7[[#This Row],[סיום]]-שעות_עבודה7[[#This Row],[התחלה]]+(שעות_עבודה7[[#This Row],[סיום]]<שעות_עבודה7[[#This Row],[התחלה]])),\"\")","v":""},{"$f":"IF(שעות_עבודה7[[#This Row],[שעות]]=\"\",\"\",\nIF(SUMPRODUCT((שעות_עבודה7[[#This Row],[שם העבודה]]=$L$9:$M$28)*שעות_עבודה7[[#This Row],[שעות]]*($N$9:$O$28*24))=0,\"\",\nSUMPRODUCT((שעות_עבודה7[[#This Row],[שם העבודה]]=$L$9:$M$28)*שעות_עבודה7[[#This Row],[שעות]]*($N$9:$O$28*24))))","v":""}]
[null,{"$f":"IF(שעות_עבודה7[[#This Row],[תאריך]]=\"\",\"\",ROW(A130))","v":""},null,null,null,null,{"$f":"IFERROR(IF(שעות_עבודה7[[#This Row],[סיום]]=\"\",\"\",שעות_עבודה7[[#This Row],[סיום]]-שעות_עבודה7[[#This Row],[התחלה]]+(שעות_עבודה7[[#This Row],[סיום]]<שעות_עבודה7[[#This Row],[התחלה]])),\"\")","v":""},{"$f":"IF(שעות_עבודה7[[#This Row],[שעות]]=\"\",\"\",\nIF(SUMPRODUCT((שעות_עבודה7[[#This Row],[שם העבודה]]=$L$9:$M$28)*שעות_עבודה7[[#This Row],[שעות]]*($N$9:$O$28*24))=0,\"\",\nSUMPRODUCT((שעות_עבודה7[[#This Row],[שם העבודה]]=$L$9:$M$28)*שעות_עבודה7[[#This Row],[שעות]]*($N$9:$O$28*24))))","v":""}]
[null,{"$f":"IF(שעות_עבודה7[[#This Row],[תאריך]]=\"\",\"\",ROW(A131))","v":""},null,null,null,null,{"$f":"IFERROR(IF(שעות_עבודה7[[#This Row],[סיום]]=\"\",\"\",שעות_עבודה7[[#This Row],[סיום]]-שעות_עבודה7[[#This Row],[התחלה]]+(שעות_עבודה7[[#This Row],[סיום]]<שעות_עבודה7[[#This Row],[התחלה]])),\"\")","v":""},{"$f":"IF(שעות_עבודה7[[#This Row],[שעות]]=\"\",\"\",\nIF(SUMPRODUCT((שעות_עבודה7[[#This Row],[שם העבודה]]=$L$9:$M$28)*שעות_עבודה7[[#This Row],[שעות]]*($N$9:$O$28*24))=0,\"\",\nSUMPRODUCT((שעות_עבודה7[[#This Row],[שם העבודה]]=$L$9:$M$28)*שעות_עבודה7[[#This Row],[שעות]]*($N$9:$O$28*24))))","v":""}]
[null,{"$f":"IF(שעות_עבודה7[[#This Row],[תאריך]]=\"\",\"\",ROW(A132))","v":""},null,null,null,null,{"$f":"IFERROR(IF(שעות_עבודה7[[#This Row],[סיום]]=\"\",\"\",שעות_עבודה7[[#This Row],[סיום]]-שעות_עבודה7[[#This Row],[התחלה]]+(שעות_עבודה7[[#This Row],[סיום]]<שעות_עבודה7[[#This Row],[התחלה]])),\"\")","v":""},{"$f":"IF(שעות_עבודה7[[#This Row],[שעות]]=\"\",\"\",\nIF(SUMPRODUCT((שעות_עבודה7[[#This Row],[שם העבודה]]=$L$9:$M$28)*שעות_עבודה7[[#This Row],[שעות]]*($N$9:$O$28*24))=0,\"\",\nSUMPRODUCT((שעות_עבודה7[[#This Row],[שם העבודה]]=$L$9:$M$28)*שעות_עבודה7[[#This Row],[שעות]]*($N$9:$O$28*24))))","v":""}]
[null,{"$f":"IF(שעות_עבודה7[[#This Row],[תאריך]]=\"\",\"\",ROW(A133))","v":""},null,null,null,null,{"$f":"IFERROR(IF(שעות_עבודה7[[#This Row],[סיום]]=\"\",\"\",שעות_עבודה7[[#This Row],[סיום]]-שעות_עבודה7[[#This Row],[התחלה]]+(שעות_עבודה7[[#This Row],[סיום]]<שעות_עבודה7[[#This Row],[התחלה]])),\"\")","v":""},{"$f":"IF(שעות_עבודה7[[#This Row],[שעות]]=\"\",\"\",\nIF(SUMPRODUCT((שעות_עבודה7[[#This Row],[שם העבודה]]=$L$9:$M$28)*שעות_עבודה7[[#This Row],[שעות]]*($N$9:$O$28*24))=0,\"\",\nSUMPRODUCT((שעות_עבודה7[[#This Row],[שם העבודה]]=$L$9:$M$28)*שעות_עבודה7[[#This Row],[שעות]]*($N$9:$O$28*24))))","v":""}]
[null,{"$f":"IF(שעות_עבודה7[[#This Row],[תאריך]]=\"\",\"\",ROW(A134))","v":""},null,null,null,null,{"$f":"IFERROR(IF(שעות_עבודה7[[#This Row],[סיום]]=\"\",\"\",שעות_עבודה7[[#This Row],[סיום]]-שעות_עבודה7[[#This Row],[התחלה]]+(שעות_עבודה7[[#This Row],[סיום]]<שעות_עבודה7[[#This Row],[התחלה]])),\"\")","v":""},{"$f":"IF(שעות_עבודה7[[#This Row],[שעות]]=\"\",\"\",\nIF(SUMPRODUCT((שעות_עבודה7[[#This Row],[שם העבודה]]=$L$9:$M$28)*שעות_עבודה7[[#This Row],[שעות]]*($N$9:$O$28*24))=0,\"\",\nSUMPRODUCT((שעות_עבודה7[[#This Row],[שם העבודה]]=$L$9:$M$28)*שעות_עבודה7[[#This Row],[שעות]]*($N$9:$O$28*24))))","v":""}]
[null,{"$f":"IF(שעות_עבודה7[[#This Row],[תאריך]]=\"\",\"\",ROW(A135))","v":""},null,null,null,null,{"$f":"IFERROR(IF(שעות_עבודה7[[#This Row],[סיום]]=\"\",\"\",שעות_עבודה7[[#This Row],[סיום]]-שעות_עבודה7[[#This Row],[התחלה]]+(שעות_עבודה7[[#This Row],[סיום]]<שעות_עבודה7[[#This Row],[התחלה]])),\"\")","v":""},{"$f":"IF(שעות_עבודה7[[#This Row],[שעות]]=\"\",\"\",\nIF(SUMPRODUCT((שעות_עבודה7[[#This Row],[שם העבודה]]=$L$9:$M$28)*שעות_עבודה7[[#This Row],[שעות]]*($N$9:$O$28*24))=0,\"\",\nSUMPRODUCT((שעות_עבודה7[[#This Row],[שם העבודה]]=$L$9:$M$28)*שעות_עבודה7[[#This Row],[שעות]]*($N$9:$O$28*24))))","v":""}]
[null,{"$f":"IF(שעות_עבודה7[[#This Row],[תאריך]]=\"\",\"\",ROW(A136))","v":""},null,null,null,null,{"$f":"IFERROR(IF(שעות_עבודה7[[#This Row],[סיום]]=\"\",\"\",שעות_עבודה7[[#This Row],[סיום]]-שעות_עבודה7[[#This Row],[התחלה]]+(שעות_עבודה7[[#This Row],[סיום]]<שעות_עבודה7[[#This Row],[התחלה]])),\"\")","v":""},{"$f":"IF(שעות_עבודה7[[#This Row],[שעות]]=\"\",\"\",\nIF(SUMPRODUCT((שעות_עבודה7[[#This Row],[שם העבודה]]=$L$9:$M$28)*שעות_עבודה7[[#This Row],[שעות]]*($N$9:$O$28*24))=0,\"\",\nSUMPRODUCT((שעות_עבודה7[[#This Row],[שם העבודה]]=$L$9:$M$28)*שעות_עבודה7[[#This Row],[שעות]]*($N$9:$O$28*24))))","v":""}]
[null,{"$f":"IF(שעות_עבודה7[[#This Row],[תאריך]]=\"\",\"\",ROW(A137))","v":""},null,null,null,null,{"$f":"IFERROR(IF(שעות_עבודה7[[#This Row],[סיום]]=\"\",\"\",שעות_עבודה7[[#This Row],[סיום]]-שעות_עבודה7[[#This Row],[התחלה]]+(שעות_עבודה7[[#This Row],[סיום]]<שעות_עבודה7[[#This Row],[התחלה]])),\"\")","v":""},{"$f":"IF(שעות_עבודה7[[#This Row],[שעות]]=\"\",\"\",\nIF(SUMPRODUCT((שעות_עבודה7[[#This Row],[שם העבודה]]=$L$9:$M$28)*שעות_עבודה7[[#This Row],[שעות]]*($N$9:$O$28*24))=0,\"\",\nSUMPRODUCT((שעות_עבודה7[[#This Row],[שם העבודה]]=$L$9:$M$28)*שעות_עבודה7[[#This Row],[שעות]]*($N$9:$O$28*24))))","v":""}]
[null,{"$f":"IF(שעות_עבודה7[[#This Row],[תאריך]]=\"\",\"\",ROW(A138))","v":""},null,null,null,null,{"$f":"IFERROR(IF(שעות_עבודה7[[#This Row],[סיום]]=\"\",\"\",שעות_עבודה7[[#This Row],[סיום]]-שעות_עבודה7[[#This Row],[התחלה]]+(שעות_עבודה7[[#This Row],[סיום]]<שעות_עבודה7[[#This Row],[התחלה]])),\"\")","v":""},{"$f":"IF(שעות_עבודה7[[#This Row],[שעות]]=\"\",\"\",\nIF(SUMPRODUCT((שעות_עבודה7[[#This Row],[שם העבודה]]=$L$9:$M$28)*שעות_עבודה7[[#This Row],[שעות]]*($N$9:$O$28*24))=0,\"\",\nSUMPRODUCT((שעות_עבודה7[[#This Row],[שם העבודה]]=$L$9:$M$28)*שעות_עבודה7[[#This Row],[שעות]]*($N$9:$O$28*24))))","v":""}]
[null,{"$f":"IF(שעות_עבודה7[[#This Row],[תאריך]]=\"\",\"\",ROW(A139))","v":""},null,null,null,null,{"$f":"IFERROR(IF(שעות_עבודה7[[#This Row],[סיום]]=\"\",\"\",שעות_עבודה7[[#This Row],[סיום]]-שעות_עבודה7[[#This Row],[התחלה]]+(שעות_עבודה7[[#This Row],[סיום]]<שעות_עבודה7[[#This Row],[התחלה]])),\"\")","v":""},{"$f":"IF(שעות_עבודה7[[#This Row],[שעות]]=\"\",\"\",\nIF(SUMPRODUCT((שעות_עבודה7[[#This Row],[שם העבודה]]=$L$9:$M$28)*שעות_עבודה7[[#This Row],[שעות]]*($N$9:$O$28*24))=0,\"\",\nSUMPRODUCT((שעות_עבודה7[[#This Row],[שם העבודה]]=$L$9:$M$28)*שעות_עבודה7[[#This Row],[שעות]]*($N$9:$O$28*24))))","v":""}]
[null,{"$f":"IF(שעות_עבודה7[[#This Row],[תאריך]]=\"\",\"\",ROW(A140))","v":""},null,null,null,null,{"$f":"IFERROR(IF(שעות_עבודה7[[#This Row],[סיום]]=\"\",\"\",שעות_עבודה7[[#This Row],[סיום]]-שעות_עבודה7[[#This Row],[התחלה]]+(שעות_עבודה7[[#This Row],[סיום]]<שעות_עבודה7[[#This Row],[התחלה]])),\"\")","v":""},{"$f":"IF(שעות_עבודה7[[#This Row],[שעות]]=\"\",\"\",\nIF(SUMPRODUCT((שעות_עבודה7[[#This Row],[שם העבודה]]=$L$9:$M$28)*שעות_עבודה7[[#This Row],[שעות]]*($N$9:$O$28*24))=0,\"\",\nSUMPRODUCT((שעות_עבודה7[[#This Row],[שם העבודה]]=$L$9:$M$28)*שעות_עבודה7[[#This Row],[שעות]]*($N$9:$O$28*24))))","v":""}]
[null,{"$f":"IF(שעות_עבודה7[[#This Row],[תאריך]]=\"\",\"\",ROW(A141))","v":""},null,null,null,null,{"$f":"IFERROR(IF(שעות_עבודה7[[#This Row],[סיום]]=\"\",\"\",שעות_עבודה7[[#This Row],[סיום]]-שעות_עבודה7[[#This Row],[התחלה]]+(שעות_עבודה7[[#This Row],[סיום]]<שעות_עבודה7[[#This Row],[התחלה]])),\"\")","v":""},{"$f":"IF(שעות_עבודה7[[#This Row],[שעות]]=\"\",\"\",\nIF(SUMPRODUCT((שעות_עבודה7[[#This Row],[שם העבודה]]=$L$9:$M$28)*שעות_עבודה7[[#This Row],[שעות]]*($N$9:$O$28*24))=0,\"\",\nSUMPRODUCT((שעות_עבודה7[[#This Row],[שם העבודה]]=$L$9:$M$28)*שעות_עבודה7[[#This Row],[שעות]]*($N$9:$O$28*24))))","v":""}]
[null,{"$f":"IF(שעות_עבודה7[[#This Row],[תאריך]]=\"\",\"\",ROW(A142))","v":""},null,null,null,null,{"$f":"IFERROR(IF(שעות_עבודה7[[#This Row],[סיום]]=\"\",\"\",שעות_עבודה7[[#This Row],[סיום]]-שעות_עבודה7[[#This Row],[התחלה]]+(שעות_עבודה7[[#This Row],[סיום]]<שעות_עבודה7[[#This Row],[התחלה]])),\"\")","v":""},{"$f":"IF(שעות_עבודה7[[#This Row],[שעות]]=\"\",\"\",\nIF(SUMPRODUCT((שעות_עבודה7[[#This Row],[שם העבודה]]=$L$9:$M$28)*שעות_עבודה7[[#This Row],[שעות]]*($N$9:$O$28*24))=0,\"\",\nSUMPRODUCT((שעות_עבודה7[[#This Row],[שם העבודה]]=$L$9:$M$28)*שעות_עבודה7[[#This Row],[שעות]]*($N$9:$O$28*24))))","v":""}]
[null,{"$f":"IF(שעות_עבודה7[[#This Row],[תאריך]]=\"\",\"\",ROW(A143))","v":""},null,null,null,null,{"$f":"IFERROR(IF(שעות_עבודה7[[#This Row],[סיום]]=\"\",\"\",שעות_עבודה7[[#This Row],[סיום]]-שעות_עבודה7[[#This Row],[התחלה]]+(שעות_עבודה7[[#This Row],[סיום]]<שעות_עבודה7[[#This Row],[התחלה]])),\"\")","v":""},{"$f":"IF(שעות_עבודה7[[#This Row],[שעות]]=\"\",\"\",\nIF(SUMPRODUCT((שעות_עבודה7[[#This Row],[שם העבודה]]=$L$9:$M$28)*שעות_עבודה7[[#This Row],[שעות]]*($N$9:$O$28*24))=0,\"\",\nSUMPRODUCT((שעות_עבודה7[[#This Row],[שם העבודה]]=$L$9:$M$28)*שעות_עבודה7[[#This Row],[שעות]]*($N$9:$O$28*24))))","v":""}]
[null,{"$f":"IF(שעות_עבודה7[[#This Row],[תאריך]]=\"\",\"\",ROW(A144))","v":""},null,null,null,null,{"$f":"IFERROR(IF(שעות_עבודה7[[#This Row],[סיום]]=\"\",\"\",שעות_עבודה7[[#This Row],[סיום]]-שעות_עבודה7[[#This Row],[התחלה]]+(שעות_עבודה7[[#This Row],[סיום]]<שעות_עבודה7[[#This Row],[התחלה]])),\"\")","v":""},{"$f":"IF(שעות_עבודה7[[#This Row],[שעות]]=\"\",\"\",\nIF(SUMPRODUCT((שעות_עבודה7[[#This Row],[שם העבודה]]=$L$9:$M$28)*שעות_עבודה7[[#This Row],[שעות]]*($N$9:$O$28*24))=0,\"\",\nSUMPRODUCT((שעות_עבודה7[[#This Row],[שם העבודה]]=$L$9:$M$28)*שעות_עבודה7[[#This Row],[שעות]]*($N$9:$O$28*24))))","v":""}]
[null,{"$f":"IF(שעות_עבודה7[[#This Row],[תאריך]]=\"\",\"\",ROW(A145))","v":""},null,null,null,null,{"$f":"IFERROR(IF(שעות_עבודה7[[#This Row],[סיום]]=\"\",\"\",שעות_עבודה7[[#This Row],[סיום]]-שעות_עבודה7[[#This Row],[התחלה]]+(שעות_עבודה7[[#This Row],[סיום]]<שעות_עבודה7[[#This Row],[התחלה]])),\"\")","v":""},{"$f":"IF(שעות_עבודה7[[#This Row],[שעות]]=\"\",\"\",\nIF(SUMPRODUCT((שעות_עבודה7[[#This Row],[שם העבודה]]=$L$9:$M$28)*שעות_עבודה7[[#This Row],[שעות]]*($N$9:$O$28*24))=0,\"\",\nSUMPRODUCT((שעות_עבודה7[[#This Row],[שם העבודה]]=$L$9:$M$28)*שעות_עבודה7[[#This Row],[שעות]]*($N$9:$O$28*24))))","v":""}]
[null,{"$f":"IF(שעות_עבודה7[[#This Row],[תאריך]]=\"\",\"\",ROW(A146))","v":""},null,null,null,null,{"$f":"IFERROR(IF(שעות_עבודה7[[#This Row],[סיום]]=\"\",\"\",שעות_עבודה7[[#This Row],[סיום]]-שעות_עבודה7[[#This Row],[התחלה]]+(שעות_עבודה7[[#This Row],[סיום]]<שעות_עבודה7[[#This Row],[התחלה]])),\"\")","v":""},{"$f":"IF(שעות_עבודה7[[#This Row],[שעות]]=\"\",\"\",\nIF(SUMPRODUCT((שעות_עבודה7[[#This Row],[שם העבודה]]=$L$9:$M$28)*שעות_עבודה7[[#This Row],[שעות]]*($N$9:$O$28*24))=0,\"\",\nSUMPRODUCT((שעות_עבודה7[[#This Row],[שם העבודה]]=$L$9:$M$28)*שעות_עבודה7[[#This Row],[שעות]]*($N$9:$O$28*24))))","v":""}]
[null,{"$f":"IF(שעות_עבודה7[[#This Row],[תאריך]]=\"\",\"\",ROW(A147))","v":""},null,null,null,null,{"$f":"IFERROR(IF(שעות_עבודה7[[#This Row],[סיום]]=\"\",\"\",שעות_עבודה7[[#This Row],[סיום]]-שעות_עבודה7[[#This Row],[התחלה]]+(שעות_עבודה7[[#This Row],[סיום]]<שעות_עבודה7[[#This Row],[התחלה]])),\"\")","v":""},{"$f":"IF(שעות_עבודה7[[#This Row],[שעות]]=\"\",\"\",\nIF(SUMPRODUCT((שעות_עבודה7[[#This Row],[שם העבודה]]=$L$9:$M$28)*שעות_עבודה7[[#This Row],[שעות]]*($N$9:$O$28*24))=0,\"\",\nSUMPRODUCT((שעות_עבודה7[[#This Row],[שם העבודה]]=$L$9:$M$28)*שעות_עבודה7[[#This Row],[שעות]]*($N$9:$O$28*24))))","v":""}]
[null,{"$f":"IF(שעות_עבודה7[[#This Row],[תאריך]]=\"\",\"\",ROW(A148))","v":""},null,null,null,null,{"$f":"IFERROR(IF(שעות_עבודה7[[#This Row],[סיום]]=\"\",\"\",שעות_עבודה7[[#This Row],[סיום]]-שעות_עבודה7[[#This Row],[התחלה]]+(שעות_עבודה7[[#This Row],[סיום]]<שעות_עבודה7[[#This Row],[התחלה]])),\"\")","v":""},{"$f":"IF(שעות_עבודה7[[#This Row],[שעות]]=\"\",\"\",\nIF(SUMPRODUCT((שעות_עבודה7[[#This Row],[שם העבודה]]=$L$9:$M$28)*שעות_עבודה7[[#This Row],[שעות]]*($N$9:$O$28*24))=0,\"\",\nSUMPRODUCT((שעות_עבודה7[[#This Row],[שם העבודה]]=$L$9:$M$28)*שעות_עבודה7[[#This Row],[שעות]]*($N$9:$O$28*24))))","v":""}]
[null,{"$f":"IF(שעות_עבודה7[[#This Row],[תאריך]]=\"\",\"\",ROW(A149))","v":""},null,null,null,null,{"$f":"IFERROR(IF(שעות_עבודה7[[#This Row],[סיום]]=\"\",\"\",שעות_עבודה7[[#This Row],[סיום]]-שעות_עבודה7[[#This Row],[התחלה]]+(שעות_עבודה7[[#This Row],[סיום]]<שעות_עבודה7[[#This Row],[התחלה]])),\"\")","v":""},{"$f":"IF(שעות_עבודה7[[#This Row],[שעות]]=\"\",\"\",\nIF(SUMPRODUCT((שעות_עבודה7[[#This Row],[שם העבודה]]=$L$9:$M$28)*שעות_עבודה7[[#This Row],[שעות]]*($N$9:$O$28*24))=0,\"\",\nSUMPRODUCT((שעות_עבודה7[[#This Row],[שם העבודה]]=$L$9:$M$28)*שעות_עבודה7[[#This Row],[שעות]]*($N$9:$O$28*24))))","v":""}]
[null,{"$f":"IF(שעות_עבודה7[[#This Row],[תאריך]]=\"\",\"\",ROW(A150))","v":""},null,null,null,null,{"$f":"IFERROR(IF(שעות_עבודה7[[#This Row],[סיום]]=\"\",\"\",שעות_עבודה7[[#This Row],[סיום]]-שעות_עבודה7[[#This Row],[התחלה]]+(שעות_עבודה7[[#This Row],[סיום]]<שעות_עבודה7[[#This Row],[התחלה]])),\"\")","v":""},{"$f":"IF(שעות_עבודה7[[#This Row],[שעות]]=\"\",\"\",\nIF(SUMPRODUCT((שעות_עבודה7[[#This Row],[שם העבודה]]=$L$9:$M$28)*שעות_עבודה7[[#This Row],[שעות]]*($N$9:$O$28*24))=0,\"\",\nSUMPRODUCT((שעות_עבודה7[[#This Row],[שם העבודה]]=$L$9:$M$28)*שעות_עבודה7[[#This Row],[שעות]]*($N$9:$O$28*24))))","v":""}]
[null,{"$f":"IF(שעות_עבודה7[[#This Row],[תאריך]]=\"\",\"\",ROW(A151))","v":""},null,null,null,null,{"$f":"IFERROR(IF(שעות_עבודה7[[#This Row],[סיום]]=\"\",\"\",שעות_עבודה7[[#This Row],[סיום]]-שעות_עבודה7[[#This Row],[התחלה]]+(שעות_עבודה7[[#This Row],[סיום]]<שעות_עבודה7[[#This Row],[התחלה]])),\"\")","v":""},{"$f":"IF(שעות_עבודה7[[#This Row],[שעות]]=\"\",\"\",\nIF(SUMPRODUCT((שעות_עבודה7[[#This Row],[שם העבודה]]=$L$9:$M$28)*שעות_עבודה7[[#This Row],[שעות]]*($N$9:$O$28*24))=0,\"\",\nSUMPRODUCT((שעות_עבודה7[[#This Row],[שם העבודה]]=$L$9:$M$28)*שעות_עבודה7[[#This Row],[שעות]]*($N$9:$O$28*24))))","v":""}]
[null,{"$f":"IF(שעות_עבודה7[[#This Row],[תאריך]]=\"\",\"\",ROW(A152))","v":""},null,null,null,null,{"$f":"IFERROR(IF(שעות_עבודה7[[#This Row],[סיום]]=\"\",\"\",שעות_עבודה7[[#This Row],[סיום]]-שעות_עבודה7[[#This Row],[התחלה]]+(שעות_עבודה7[[#This Row],[סיום]]<שעות_עבודה7[[#This Row],[התחלה]])),\"\")","v":""},{"$f":"IF(שעות_עבודה7[[#This Row],[שעות]]=\"\",\"\",\nIF(SUMPRODUCT((שעות_עבודה7[[#This Row],[שם העבודה]]=$L$9:$M$28)*שעות_עבודה7[[#This Row],[שעות]]*($N$9:$O$28*24))=0,\"\",\nSUMPRODUCT((שעות_עבודה7[[#This Row],[שם העבודה]]=$L$9:$M$28)*שעות_עבודה7[[#This Row],[שעות]]*($N$9:$O$28*24))))","v":""}]
[null,{"$f":"IF(שעות_עבודה7[[#This Row],[תאריך]]=\"\",\"\",ROW(A153))","v":""},null,null,null,null,{"$f":"IFERROR(IF(שעות_עבודה7[[#This Row],[סיום]]=\"\",\"\",שעות_עבודה7[[#This Row],[סיום]]-שעות_עבודה7[[#This Row],[התחלה]]+(שעות_עבודה7[[#This Row],[סיום]]<שעות_עבודה7[[#This Row],[התחלה]])),\"\")","v":""},{"$f":"IF(שעות_עבודה7[[#This Row],[שעות]]=\"\",\"\",\nIF(SUMPRODUCT((שעות_עבודה7[[#This Row],[שם העבודה]]=$L$9:$M$28)*שעות_עבודה7[[#This Row],[שעות]]*($N$9:$O$28*24))=0,\"\",\nSUMPRODUCT((שעות_עבודה7[[#This Row],[שם העבודה]]=$L$9:$M$28)*שעות_עבודה7[[#This Row],[שעות]]*($N$9:$O$28*24))))","v":""}]
[null,{"$f":"IF(שעות_עבודה7[[#This Row],[תאריך]]=\"\",\"\",ROW(A154))","v":""},null,null,null,null,{"$f":"IFERROR(IF(שעות_עבודה7[[#This Row],[סיום]]=\"\",\"\",שעות_עבודה7[[#This Row],[סיום]]-שעות_עבודה7[[#This Row],[התחלה]]+(שעות_עבודה7[[#This Row],[סיום]]<שעות_עבודה7[[#This Row],[התחלה]])),\"\")","v":""},{"$f":"IF(שעות_עבודה7[[#This Row],[שעות]]=\"\",\"\",\nIF(SUMPRODUCT((שעות_עבודה7[[#This Row],[שם העבודה]]=$L$9:$M$28)*שעות_עבודה7[[#This Row],[שעות]]*($N$9:$O$28*24))=0,\"\",\nSUMPRODUCT((שעות_עבודה7[[#This Row],[שם העבודה]]=$L$9:$M$28)*שעות_עבודה7[[#This Row],[שעות]]*($N$9:$O$28*24))))","v":""}]
[null,{"$f":"IF(שעות_עבודה7[[#This Row],[תאריך]]=\"\",\"\",ROW(A155))","v":""},null,null,null,null,{"$f":"IFERROR(IF(שעות_עבודה7[[#This Row],[סיום]]=\"\",\"\",שעות_עבודה7[[#This Row],[סיום]]-שעות_עבודה7[[#This Row],[התחלה]]+(שעות_עבודה7[[#This Row],[סיום]]<שעות_עבודה7[[#This Row],[התחלה]])),\"\")","v":""},{"$f":"IF(שעות_עבודה7[[#This Row],[שעות]]=\"\",\"\",\nIF(SUMPRODUCT((שעות_עבודה7[[#This Row],[שם העבודה]]=$L$9:$M$28)*שעות_עבודה7[[#This Row],[שעות]]*($N$9:$O$28*24))=0,\"\",\nSUMPRODUCT((שעות_עבודה7[[#This Row],[שם העבודה]]=$L$9:$M$28)*שעות_עבודה7[[#This Row],[שעות]]*($N$9:$O$28*24))))","v":""}]
[null,{"$f":"IF(שעות_עבודה7[[#This Row],[תאריך]]=\"\",\"\",ROW(A156))","v":""},null,null,null,null,{"$f":"IFERROR(IF(שעות_עבודה7[[#This Row],[סיום]]=\"\",\"\",שעות_עבודה7[[#This Row],[סיום]]-שעות_עבודה7[[#This Row],[התחלה]]+(שעות_עבודה7[[#This Row],[סיום]]<שעות_עבודה7[[#This Row],[התחלה]])),\"\")","v":""},{"$f":"IF(שעות_עבודה7[[#This Row],[שעות]]=\"\",\"\",\nIF(SUMPRODUCT((שעות_עבודה7[[#This Row],[שם העבודה]]=$L$9:$M$28)*שעות_עבודה7[[#This Row],[שעות]]*($N$9:$O$28*24))=0,\"\",\nSUMPRODUCT((שעות_עבודה7[[#This Row],[שם העבודה]]=$L$9:$M$28)*שעות_עבודה7[[#This Row],[שעות]]*($N$9:$O$28*24))))","v":""}]
[null,{"$f":"IF(שעות_עבודה7[[#This Row],[תאריך]]=\"\",\"\",ROW(A157))","v":""},null,null,null,null,{"$f":"IFERROR(IF(שעות_עבודה7[[#This Row],[סיום]]=\"\",\"\",שעות_עבודה7[[#This Row],[סיום]]-שעות_עבודה7[[#This Row],[התחלה]]+(שעות_עבודה7[[#This Row],[סיום]]<שעות_עבודה7[[#This Row],[התחלה]])),\"\")","v":""},{"$f":"IF(שעות_עבודה7[[#This Row],[שעות]]=\"\",\"\",\nIF(SUMPRODUCT((שעות_עבודה7[[#This Row],[שם העבודה]]=$L$9:$M$28)*שעות_עבודה7[[#This Row],[שעות]]*($N$9:$O$28*24))=0,\"\",\nSUMPRODUCT((שעות_עבודה7[[#This Row],[שם העבודה]]=$L$9:$M$28)*שעות_עבודה7[[#This Row],[שעות]]*($N$9:$O$28*24))))","v":""}]
[null,{"$f":"IF(שעות_עבודה7[[#This Row],[תאריך]]=\"\",\"\",ROW(A158))","v":""},null,null,null,null,{"$f":"IFERROR(IF(שעות_עבודה7[[#This Row],[סיום]]=\"\",\"\",שעות_עבודה7[[#This Row],[סיום]]-שעות_עבודה7[[#This Row],[התחלה]]+(שעות_עבודה7[[#This Row],[סיום]]<שעות_עבודה7[[#This Row],[התחלה]])),\"\")","v":""},{"$f":"IF(שעות_עבודה7[[#This Row],[שעות]]=\"\",\"\",\nIF(SUMPRODUCT((שעות_עבודה7[[#This Row],[שם העבודה]]=$L$9:$M$28)*שעות_עבודה7[[#This Row],[שעות]]*($N$9:$O$28*24))=0,\"\",\nSUMPRODUCT((שעות_עבודה7[[#This Row],[שם העבודה]]=$L$9:$M$28)*שעות_עבודה7[[#This Row],[שעות]]*($N$9:$O$28*24))))","v":""}]
[null,{"$f":"IF(שעות_עבודה7[[#This Row],[תאריך]]=\"\",\"\",ROW(A159))","v":""},null,null,null,null,{"$f":"IFERROR(IF(שעות_עבודה7[[#This Row],[סיום]]=\"\",\"\",שעות_עבודה7[[#This Row],[סיום]]-שעות_עבודה7[[#This Row],[התחלה]]+(שעות_עבודה7[[#This Row],[סיום]]<שעות_עבודה7[[#This Row],[התחלה]])),\"\")","v":""},{"$f":"IF(שעות_עבודה7[[#This Row],[שעות]]=\"\",\"\",\nIF(SUMPRODUCT((שעות_עבודה7[[#This Row],[שם העבודה]]=$L$9:$M$28)*שעות_עבודה7[[#This Row],[שעות]]*($N$9:$O$28*24))=0,\"\",\nSUMPRODUCT((שעות_עבודה7[[#This Row],[שם העבודה]]=$L$9:$M$28)*שעות_עבודה7[[#This Row],[שעות]]*($N$9:$O$28*24))))","v":""}]
[null,{"$f":"IF(שעות_עבודה7[[#This Row],[תאריך]]=\"\",\"\",ROW(A160))","v":""},null,null,null,null,{"$f":"IFERROR(IF(שעות_עבודה7[[#This Row],[סיום]]=\"\",\"\",שעות_עבודה7[[#This Row],[סיום]]-שעות_עבודה7[[#This Row],[התחלה]]+(שעות_עבודה7[[#This Row],[סיום]]<שעות_עבודה7[[#This Row],[התחלה]])),\"\")","v":""},{"$f":"IF(שעות_עבודה7[[#This Row],[שעות]]=\"\",\"\",\nIF(SUMPRODUCT((שעות_עבודה7[[#This Row],[שם העבודה]]=$L$9:$M$28)*שעות_עבודה7[[#This Row],[שעות]]*($N$9:$O$28*24))=0,\"\",\nSUMPRODUCT((שעות_עבודה7[[#This Row],[שם העבודה]]=$L$9:$M$28)*שעות_עבודה7[[#This Row],[שעות]]*($N$9:$O$28*24))))","v":""}]
[null,{"$f":"IF(שעות_עבודה7[[#This Row],[תאריך]]=\"\",\"\",ROW(A161))","v":""},null,null,null,null,{"$f":"IFERROR(IF(שעות_עבודה7[[#This Row],[סיום]]=\"\",\"\",שעות_עבודה7[[#This Row],[סיום]]-שעות_עבודה7[[#This Row],[התחלה]]+(שעות_עבודה7[[#This Row],[סיום]]<שעות_עבודה7[[#This Row],[התחלה]])),\"\")","v":""},{"$f":"IF(שעות_עבודה7[[#This Row],[שעות]]=\"\",\"\",\nIF(SUMPRODUCT((שעות_עבודה7[[#This Row],[שם העבודה]]=$L$9:$M$28)*שעות_עבודה7[[#This Row],[שעות]]*($N$9:$O$28*24))=0,\"\",\nSUMPRODUCT((שעות_עבודה7[[#This Row],[שם העבודה]]=$L$9:$M$28)*שעות_עבודה7[[#This Row],[שעות]]*($N$9:$O$28*24))))","v":""}]
[null,{"$f":"IF(שעות_עבודה7[[#This Row],[תאריך]]=\"\",\"\",ROW(A162))","v":""},null,null,null,null,{"$f":"IFERROR(IF(שעות_עבודה7[[#This Row],[סיום]]=\"\",\"\",שעות_עבודה7[[#This Row],[סיום]]-שעות_עבודה7[[#This Row],[התחלה]]+(שעות_עבודה7[[#This Row],[סיום]]<שעות_עבודה7[[#This Row],[התחלה]])),\"\")","v":""},{"$f":"IF(שעות_עבודה7[[#This Row],[שעות]]=\"\",\"\",\nIF(SUMPRODUCT((שעות_עבודה7[[#This Row],[שם העבודה]]=$L$9:$M$28)*שעות_עבודה7[[#This Row],[שעות]]*($N$9:$O$28*24))=0,\"\",\nSUMPRODUCT((שעות_עבודה7[[#This Row],[שם העבודה]]=$L$9:$M$28)*שעות_עבודה7[[#This Row],[שעות]]*($N$9:$O$28*24))))","v":""}]
[null,{"$f":"IF(שעות_עבודה7[[#This Row],[תאריך]]=\"\",\"\",ROW(A163))","v":""},null,null,null,null,{"$f":"IFERROR(IF(שעות_עבודה7[[#This Row],[סיום]]=\"\",\"\",שעות_עבודה7[[#This Row],[סיום]]-שעות_עבודה7[[#This Row],[התחלה]]+(שעות_עבודה7[[#This Row],[סיום]]<שעות_עבודה7[[#This Row],[התחלה]])),\"\")","v":""},{"$f":"IF(שעות_עבודה7[[#This Row],[שעות]]=\"\",\"\",\nIF(SUMPRODUCT((שעות_עבודה7[[#This Row],[שם העבודה]]=$L$9:$M$28)*שעות_עבודה7[[#This Row],[שעות]]*($N$9:$O$28*24))=0,\"\",\nSUMPRODUCT((שעות_עבודה7[[#This Row],[שם העבודה]]=$L$9:$M$28)*שעות_עבודה7[[#This Row],[שעות]]*($N$9:$O$28*24))))","v":""}]
[null,{"$f":"IF(שעות_עבודה7[[#This Row],[תאריך]]=\"\",\"\",ROW(A164))","v":""},null,null,null,null,{"$f":"IFERROR(IF(שעות_עבודה7[[#This Row],[סיום]]=\"\",\"\",שעות_עבודה7[[#This Row],[סיום]]-שעות_עבודה7[[#This Row],[התחלה]]+(שעות_עבודה7[[#This Row],[סיום]]<שעות_עבודה7[[#This Row],[התחלה]])),\"\")","v":""},{"$f":"IF(שעות_עבודה7[[#This Row],[שעות]]=\"\",\"\",\nIF(SUMPRODUCT((שעות_עבודה7[[#This Row],[שם העבודה]]=$L$9:$M$28)*שעות_עבודה7[[#This Row],[שעות]]*($N$9:$O$28*24))=0,\"\",\nSUMPRODUCT((שעות_עבודה7[[#This Row],[שם העבודה]]=$L$9:$M$28)*שעות_עבודה7[[#This Row],[שעות]]*($N$9:$O$28*24))))","v":""}]
[null,{"$f":"IF(שעות_עבודה7[[#This Row],[תאריך]]=\"\",\"\",ROW(A165))","v":""},null,null,null,null,{"$f":"IFERROR(IF(שעות_עבודה7[[#This Row],[סיום]]=\"\",\"\",שעות_עבודה7[[#This Row],[סיום]]-שעות_עבודה7[[#This Row],[התחלה]]+(שעות_עבודה7[[#This Row],[סיום]]<שעות_עבודה7[[#This Row],[התחלה]])),\"\")","v":""},{"$f":"IF(שעות_עבודה7[[#This Row],[שעות]]=\"\",\"\",\nIF(SUMPRODUCT((שעות_עבודה7[[#This Row],[שם העבודה]]=$L$9:$M$28)*שעות_עבודה7[[#This Row],[שעות]]*($N$9:$O$28*24))=0,\"\",\nSUMPRODUCT((שעות_עבודה7[[#This Row],[שם העבודה]]=$L$9:$M$28)*שעות_עבודה7[[#This Row],[שעות]]*($N$9:$O$28*24))))","v":""}]
[null,{"$f":"IF(שעות_עבודה7[[#This Row],[תאריך]]=\"\",\"\",ROW(A166))","v":""},null,null,null,null,{"$f":"IFERROR(IF(שעות_עבודה7[[#This Row],[סיום]]=\"\",\"\",שעות_עבודה7[[#This Row],[סיום]]-שעות_עבודה7[[#This Row],[התחלה]]+(שעות_עבודה7[[#This Row],[סיום]]<שעות_עבודה7[[#This Row],[התחלה]])),\"\")","v":""},{"$f":"IF(שעות_עבודה7[[#This Row],[שעות]]=\"\",\"\",\nIF(SUMPRODUCT((שעות_עבודה7[[#This Row],[שם העבודה]]=$L$9:$M$28)*שעות_עבודה7[[#This Row],[שעות]]*($N$9:$O$28*24))=0,\"\",\nSUMPRODUCT((שעות_עבודה7[[#This Row],[שם העבודה]]=$L$9:$M$28)*שעות_עבודה7[[#This Row],[שעות]]*($N$9:$O$28*24))))","v":""}]
[null,{"$f":"IF(שעות_עבודה7[[#This Row],[תאריך]]=\"\",\"\",ROW(A167))","v":""},null,null,null,null,{"$f":"IFERROR(IF(שעות_עבודה7[[#This Row],[סיום]]=\"\",\"\",שעות_עבודה7[[#This Row],[סיום]]-שעות_עבודה7[[#This Row],[התחלה]]+(שעות_עבודה7[[#This Row],[סיום]]<שעות_עבודה7[[#This Row],[התחלה]])),\"\")","v":""},{"$f":"IF(שעות_עבודה7[[#This Row],[שעות]]=\"\",\"\",\nIF(SUMPRODUCT((שעות_עבודה7[[#This Row],[שם העבודה]]=$L$9:$M$28)*שעות_עבודה7[[#This Row],[שעות]]*($N$9:$O$28*24))=0,\"\",\nSUMPRODUCT((שעות_עבודה7[[#This Row],[שם העבודה]]=$L$9:$M$28)*שעות_עבודה7[[#This Row],[שעות]]*($N$9:$O$28*24))))","v":""}]
[null,{"$f":"IF(שעות_עבודה7[[#This Row],[תאריך]]=\"\",\"\",ROW(A168))","v":""},null,null,null,null,{"$f":"IFERROR(IF(שעות_עבודה7[[#This Row],[סיום]]=\"\",\"\",שעות_עבודה7[[#This Row],[סיום]]-שעות_עבודה7[[#This Row],[התחלה]]+(שעות_עבודה7[[#This Row],[סיום]]<שעות_עבודה7[[#This Row],[התחלה]])),\"\")","v":""},{"$f":"IF(שעות_עבודה7[[#This Row],[שעות]]=\"\",\"\",\nIF(SUMPRODUCT((שעות_עבודה7[[#This Row],[שם העבודה]]=$L$9:$M$28)*שעות_עבודה7[[#This Row],[שעות]]*($N$9:$O$28*24))=0,\"\",\nSUMPRODUCT((שעות_עבודה7[[#This Row],[שם העבודה]]=$L$9:$M$28)*שעות_עבודה7[[#This Row],[שעות]]*($N$9:$O$28*24))))","v":""}]
[null,{"$f":"IF(שעות_עבודה7[[#This Row],[תאריך]]=\"\",\"\",ROW(A169))","v":""},null,null,null,null,{"$f":"IFERROR(IF(שעות_עבודה7[[#This Row],[סיום]]=\"\",\"\",שעות_עבודה7[[#This Row],[סיום]]-שעות_עבודה7[[#This Row],[התחלה]]+(שעות_עבודה7[[#This Row],[סיום]]<שעות_עבודה7[[#This Row],[התחלה]])),\"\")","v":""},{"$f":"IF(שעות_עבודה7[[#This Row],[שעות]]=\"\",\"\",\nIF(SUMPRODUCT((שעות_עבודה7[[#This Row],[שם העבודה]]=$L$9:$M$28)*שעות_עבודה7[[#This Row],[שעות]]*($N$9:$O$28*24))=0,\"\",\nSUMPRODUCT((שעות_עבודה7[[#This Row],[שם העבודה]]=$L$9:$M$28)*שעות_עבודה7[[#This Row],[שעות]]*($N$9:$O$28*24))))","v":""}]
[null,{"$f":"IF(שעות_עבודה7[[#This Row],[תאריך]]=\"\",\"\",ROW(A170))","v":""},null,null,null,null,{"$f":"IFERROR(IF(שעות_עבודה7[[#This Row],[סיום]]=\"\",\"\",שעות_עבודה7[[#This Row],[סיום]]-שעות_עבודה7[[#This Row],[התחלה]]+(שעות_עבודה7[[#This Row],[סיום]]<שעות_עבודה7[[#This Row],[התחלה]])),\"\")","v":""},{"$f":"IF(שעות_עבודה7[[#This Row],[שעות]]=\"\",\"\",\nIF(SUMPRODUCT((שעות_עבודה7[[#This Row],[שם העבודה]]=$L$9:$M$28)*שעות_עבודה7[[#This Row],[שעות]]*($N$9:$O$28*24))=0,\"\",\nSUMPRODUCT((שעות_עבודה7[[#This Row],[שם העבודה]]=$L$9:$M$28)*שעות_עבודה7[[#This Row],[שעות]]*($N$9:$O$28*24))))","v":""}]
[null,{"$f":"IF(שעות_עבודה7[[#This Row],[תאריך]]=\"\",\"\",ROW(A171))","v":""},null,null,null,null,{"$f":"IFERROR(IF(שעות_עבודה7[[#This Row],[סיום]]=\"\",\"\",שעות_עבודה7[[#This Row],[סיום]]-שעות_עבודה7[[#This Row],[התחלה]]+(שעות_עבודה7[[#This Row],[סיום]]<שעות_עבודה7[[#This Row],[התחלה]])),\"\")","v":""},{"$f":"IF(שעות_עבודה7[[#This Row],[שעות]]=\"\",\"\",\nIF(SUMPRODUCT((שעות_עבודה7[[#This Row],[שם העבודה]]=$L$9:$M$28)*שעות_עבודה7[[#This Row],[שעות]]*($N$9:$O$28*24))=0,\"\",\nSUMPRODUCT((שעות_עבודה7[[#This Row],[שם העבודה]]=$L$9:$M$28)*שעות_עבודה7[[#This Row],[שעות]]*($N$9:$O$28*24))))","v":""}]
[null,{"$f":"IF(שעות_עבודה7[[#This Row],[תאריך]]=\"\",\"\",ROW(A172))","v":""},null,null,null,null,{"$f":"IFERROR(IF(שעות_עבודה7[[#This Row],[סיום]]=\"\",\"\",שעות_עבודה7[[#This Row],[סיום]]-שעות_עבודה7[[#This Row],[התחלה]]+(שעות_עבודה7[[#This Row],[סיום]]<שעות_עבודה7[[#This Row],[התחלה]])),\"\")","v":""},{"$f":"IF(שעות_עבודה7[[#This Row],[שעות]]=\"\",\"\",\nIF(SUMPRODUCT((שעות_עבודה7[[#This Row],[שם העבודה]]=$L$9:$M$28)*שעות_עבודה7[[#This Row],[שעות]]*($N$9:$O$28*24))=0,\"\",\nSUMPRODUCT((שעות_עבודה7[[#This Row],[שם העבודה]]=$L$9:$M$28)*שעות_עבודה7[[#This Row],[שעות]]*($N$9:$O$28*24))))","v":""}]
[null,{"$f":"IF(שעות_עבודה7[[#This Row],[תאריך]]=\"\",\"\",ROW(A173))","v":""},null,null,null,null,{"$f":"IFERROR(IF(שעות_עבודה7[[#This Row],[סיום]]=\"\",\"\",שעות_עבודה7[[#This Row],[סיום]]-שעות_עבודה7[[#This Row],[התחלה]]+(שעות_עבודה7[[#This Row],[סיום]]<שעות_עבודה7[[#This Row],[התחלה]])),\"\")","v":""},{"$f":"IF(שעות_עבודה7[[#This Row],[שעות]]=\"\",\"\",\nIF(SUMPRODUCT((שעות_עבודה7[[#This Row],[שם העבודה]]=$L$9:$M$28)*שעות_עבודה7[[#This Row],[שעות]]*($N$9:$O$28*24))=0,\"\",\nSUMPRODUCT((שעות_עבודה7[[#This Row],[שם העבודה]]=$L$9:$M$28)*שעות_עבודה7[[#This Row],[שעות]]*($N$9:$O$28*24))))","v":""}]
[null,{"$f":"IF(שעות_עבודה7[[#This Row],[תאריך]]=\"\",\"\",ROW(A174))","v":""},null,null,null,null,{"$f":"IFERROR(IF(שעות_עבודה7[[#This Row],[סיום]]=\"\",\"\",שעות_עבודה7[[#This Row],[סיום]]-שעות_עבודה7[[#This Row],[התחלה]]+(שעות_עבודה7[[#This Row],[סיום]]<שעות_עבודה7[[#This Row],[התחלה]])),\"\")","v":""},{"$f":"IF(שעות_עבודה7[[#This Row],[שעות]]=\"\",\"\",\nIF(SUMPRODUCT((שעות_עבודה7[[#This Row],[שם העבודה]]=$L$9:$M$28)*שעות_עבודה7[[#This Row],[שעות]]*($N$9:$O$28*24))=0,\"\",\nSUMPRODUCT((שעות_עבודה7[[#This Row],[שם העבודה]]=$L$9:$M$28)*שעות_עבודה7[[#This Row],[שעות]]*($N$9:$O$28*24))))","v":""}]
[null,{"$f":"IF(שעות_עבודה7[[#This Row],[תאריך]]=\"\",\"\",ROW(A175))","v":""},null,null,null,null,{"$f":"IFERROR(IF(שעות_עבודה7[[#This Row],[סיום]]=\"\",\"\",שעות_עבודה7[[#This Row],[סיום]]-שעות_עבודה7[[#This Row],[התחלה]]+(שעות_עבודה7[[#This Row],[סיום]]<שעות_עבודה7[[#This Row],[התחלה]])),\"\")","v":""},{"$f":"IF(שעות_עבודה7[[#This Row],[שעות]]=\"\",\"\",\nIF(SUMPRODUCT((שעות_עבודה7[[#This Row],[שם העבודה]]=$L$9:$M$28)*שעות_עבודה7[[#This Row],[שעות]]*($N$9:$O$28*24))=0,\"\",\nSUMPRODUCT((שעות_עבודה7[[#This Row],[שם העבודה]]=$L$9:$M$28)*שעות_עבודה7[[#This Row],[שעות]]*($N$9:$O$28*24))))","v":""}]
[null,{"$f":"IF(שעות_עבודה7[[#This Row],[תאריך]]=\"\",\"\",ROW(A176))","v":""},null,null,null,null,{"$f":"IFERROR(IF(שעות_עבודה7[[#This Row],[סיום]]=\"\",\"\",שעות_עבודה7[[#This Row],[סיום]]-שעות_עבודה7[[#This Row],[התחלה]]+(שעות_עבודה7[[#This Row],[סיום]]<שעות_עבודה7[[#This Row],[התחלה]])),\"\")","v":""},{"$f":"IF(שעות_עבודה7[[#This Row],[שעות]]=\"\",\"\",\nIF(SUMPRODUCT((שעות_עבודה7[[#This Row],[שם העבודה]]=$L$9:$M$28)*שעות_עבודה7[[#This Row],[שעות]]*($N$9:$O$28*24))=0,\"\",\nSUMPRODUCT((שעות_עבודה7[[#This Row],[שם העבודה]]=$L$9:$M$28)*שעות_עבודה7[[#This Row],[שעות]]*($N$9:$O$28*24))))","v":""}]
[null,{"$f":"IF(שעות_עבודה7[[#This Row],[תאריך]]=\"\",\"\",ROW(A177))","v":""},null,null,null,null,{"$f":"IFERROR(IF(שעות_עבודה7[[#This Row],[סיום]]=\"\",\"\",שעות_עבודה7[[#This Row],[סיום]]-שעות_עבודה7[[#This Row],[התחלה]]+(שעות_עבודה7[[#This Row],[סיום]]<שעות_עבודה7[[#This Row],[התחלה]])),\"\")","v":""},{"$f":"IF(שעות_עבודה7[[#This Row],[שעות]]=\"\",\"\",\nIF(SUMPRODUCT((שעות_עבודה7[[#This Row],[שם העבודה]]=$L$9:$M$28)*שעות_עבודה7[[#This Row],[שעות]]*($N$9:$O$28*24))=0,\"\",\nSUMPRODUCT((שעות_עבודה7[[#This Row],[שם העבודה]]=$L$9:$M$28)*שעות_עבודה7[[#This Row],[שעות]]*($N$9:$O$28*24))))","v":""}]
[null,{"$f":"IF(שעות_עבודה7[[#This Row],[תאריך]]=\"\",\"\",ROW(A178))","v":""},null,null,null,null,{"$f":"IFERROR(IF(שעות_עבודה7[[#This Row],[סיום]]=\"\",\"\",שעות_עבודה7[[#This Row],[סיום]]-שעות_עבודה7[[#This Row],[התחלה]]+(שעות_עבודה7[[#This Row],[סיום]]<שעות_עבודה7[[#This Row],[התחלה]])),\"\")","v":""},{"$f":"IF(שעות_עבודה7[[#This Row],[שעות]]=\"\",\"\",\nIF(SUMPRODUCT((שעות_עבודה7[[#This Row],[שם העבודה]]=$L$9:$M$28)*שעות_עבודה7[[#This Row],[שעות]]*($N$9:$O$28*24))=0,\"\",\nSUMPRODUCT((שעות_עבודה7[[#This Row],[שם העבודה]]=$L$9:$M$28)*שעות_עבודה7[[#This Row],[שעות]]*($N$9:$O$28*24))))","v":""}]
[null,{"$f":"IF(שעות_עבודה7[[#This Row],[תאריך]]=\"\",\"\",ROW(A179))","v":""},null,null,null,null,{"$f":"IFERROR(IF(שעות_עבודה7[[#This Row],[סיום]]=\"\",\"\",שעות_עבודה7[[#This Row],[סיום]]-שעות_עבודה7[[#This Row],[התחלה]]+(שעות_עבודה7[[#This Row],[סיום]]<שעות_עבודה7[[#This Row],[התחלה]])),\"\")","v":""},{"$f":"IF(שעות_עבודה7[[#This Row],[שעות]]=\"\",\"\",\nIF(SUMPRODUCT((שעות_עבודה7[[#This Row],[שם העבודה]]=$L$9:$M$28)*שעות_עבודה7[[#This Row],[שעות]]*($N$9:$O$28*24))=0,\"\",\nSUMPRODUCT((שעות_עבודה7[[#This Row],[שם העבודה]]=$L$9:$M$28)*שעות_עבודה7[[#This Row],[שעות]]*($N$9:$O$28*24))))","v":""}]
[null,{"$f":"IF(שעות_עבודה7[[#This Row],[תאריך]]=\"\",\"\",ROW(A180))","v":""},null,null,null,null,{"$f":"IFERROR(IF(שעות_עבודה7[[#This Row],[סיום]]=\"\",\"\",שעות_עבודה7[[#This Row],[סיום]]-שעות_עבודה7[[#This Row],[התחלה]]+(שעות_עבודה7[[#This Row],[סיום]]<שעות_עבודה7[[#This Row],[התחלה]])),\"\")","v":""},{"$f":"IF(שעות_עבודה7[[#This Row],[שעות]]=\"\",\"\",\nIF(SUMPRODUCT((שעות_עבודה7[[#This Row],[שם העבודה]]=$L$9:$M$28)*שעות_עבודה7[[#This Row],[שעות]]*($N$9:$O$28*24))=0,\"\",\nSUMPRODUCT((שעות_עבודה7[[#This Row],[שם העבודה]]=$L$9:$M$28)*שעות_עבודה7[[#This Row],[שעות]]*($N$9:$O$28*24))))","v":""}]
[null,{"$f":"IF(שעות_עבודה7[[#This Row],[תאריך]]=\"\",\"\",ROW(A181))","v":""},null,null,null,null,{"$f":"IFERROR(IF(שעות_עבודה7[[#This Row],[סיום]]=\"\",\"\",שעות_עבודה7[[#This Row],[סיום]]-שעות_עבודה7[[#This Row],[התחלה]]+(שעות_עבודה7[[#This Row],[סיום]]<שעות_עבודה7[[#This Row],[התחלה]])),\"\")","v":""},{"$f":"IF(שעות_עבודה7[[#This Row],[שעות]]=\"\",\"\",\nIF(SUMPRODUCT((שעות_עבודה7[[#This Row],[שם העבודה]]=$L$9:$M$28)*שעות_עבודה7[[#This Row],[שעות]]*($N$9:$O$28*24))=0,\"\",\nSUMPRODUCT((שעות_עבודה7[[#This Row],[שם העבודה]]=$L$9:$M$28)*שעות_עבודה7[[#This Row],[שעות]]*($N$9:$O$28*24))))","v":""}]
[null,{"$f":"IF(שעות_עבודה7[[#This Row],[תאריך]]=\"\",\"\",ROW(A182))","v":""},null,null,null,null,{"$f":"IFERROR(IF(שעות_עבודה7[[#This Row],[סיום]]=\"\",\"\",שעות_עבודה7[[#This Row],[סיום]]-שעות_עבודה7[[#This Row],[התחלה]]+(שעות_עבודה7[[#This Row],[סיום]]<שעות_עבודה7[[#This Row],[התחלה]])),\"\")","v":""},{"$f":"IF(שעות_עבודה7[[#This Row],[שעות]]=\"\",\"\",\nIF(SUMPRODUCT((שעות_עבודה7[[#This Row],[שם העבודה]]=$L$9:$M$28)*שעות_עבודה7[[#This Row],[שעות]]*($N$9:$O$28*24))=0,\"\",\nSUMPRODUCT((שעות_עבודה7[[#This Row],[שם העבודה]]=$L$9:$M$28)*שעות_עבודה7[[#This Row],[שעות]]*($N$9:$O$28*24))))","v":""}]
[null,{"$f":"IF(שעות_עבודה7[[#This Row],[תאריך]]=\"\",\"\",ROW(A183))","v":""},null,null,null,null,{"$f":"IFERROR(IF(שעות_עבודה7[[#This Row],[סיום]]=\"\",\"\",שעות_עבודה7[[#This Row],[סיום]]-שעות_עבודה7[[#This Row],[התחלה]]+(שעות_עבודה7[[#This Row],[סיום]]<שעות_עבודה7[[#This Row],[התחלה]])),\"\")","v":""},{"$f":"IF(שעות_עבודה7[[#This Row],[שעות]]=\"\",\"\",\nIF(SUMPRODUCT((שעות_עבודה7[[#This Row],[שם העבודה]]=$L$9:$M$28)*שעות_עבודה7[[#This Row],[שעות]]*($N$9:$O$28*24))=0,\"\",\nSUMPRODUCT((שעות_עבודה7[[#This Row],[שם העבודה]]=$L$9:$M$28)*שעות_עבודה7[[#This Row],[שעות]]*($N$9:$O$28*24))))","v":""}]
[null,{"$f":"IF(שעות_עבודה7[[#This Row],[תאריך]]=\"\",\"\",ROW(A184))","v":""},null,null,null,null,{"$f":"IFERROR(IF(שעות_עבודה7[[#This Row],[סיום]]=\"\",\"\",שעות_עבודה7[[#This Row],[סיום]]-שעות_עבודה7[[#This Row],[התחלה]]+(שעות_עבודה7[[#This Row],[סיום]]<שעות_עבודה7[[#This Row],[התחלה]])),\"\")","v":""},{"$f":"IF(שעות_עבודה7[[#This Row],[שעות]]=\"\",\"\",\nIF(SUMPRODUCT((שעות_עבודה7[[#This Row],[שם העבודה]]=$L$9:$M$28)*שעות_עבודה7[[#This Row],[שעות]]*($N$9:$O$28*24))=0,\"\",\nSUMPRODUCT((שעות_עבודה7[[#This Row],[שם העבודה]]=$L$9:$M$28)*שעות_עבודה7[[#This Row],[שעות]]*($N$9:$O$28*24))))","v":""}]
[null,{"$f":"IF(שעות_עבודה7[[#This Row],[תאריך]]=\"\",\"\",ROW(A185))","v":""},null,null,null,null,{"$f":"IFERROR(IF(שעות_עבודה7[[#This Row],[סיום]]=\"\",\"\",שעות_עבודה7[[#This Row],[סיום]]-שעות_עבודה7[[#This Row],[התחלה]]+(שעות_עבודה7[[#This Row],[סיום]]<שעות_עבודה7[[#This Row],[התחלה]])),\"\")","v":""},{"$f":"IF(שעות_עבודה7[[#This Row],[שעות]]=\"\",\"\",\nIF(SUMPRODUCT((שעות_עבודה7[[#This Row],[שם העבודה]]=$L$9:$M$28)*שעות_עבודה7[[#This Row],[שעות]]*($N$9:$O$28*24))=0,\"\",\nSUMPRODUCT((שעות_עבודה7[[#This Row],[שם העבודה]]=$L$9:$M$28)*שעות_עבודה7[[#This Row],[שעות]]*($N$9:$O$28*24))))","v":""}]
[null,{"$f":"IF(שעות_עבודה7[[#This Row],[תאריך]]=\"\",\"\",ROW(A186))","v":""},null,null,null,null,{"$f":"IFERROR(IF(שעות_עבודה7[[#This Row],[סיום]]=\"\",\"\",שעות_עבודה7[[#This Row],[סיום]]-שעות_עבודה7[[#This Row],[התחלה]]+(שעות_עבודה7[[#This Row],[סיום]]<שעות_עבודה7[[#This Row],[התחלה]])),\"\")","v":""},{"$f":"IF(שעות_עבודה7[[#This Row],[שעות]]=\"\",\"\",\nIF(SUMPRODUCT((שעות_עבודה7[[#This Row],[שם העבודה]]=$L$9:$M$28)*שעות_עבודה7[[#This Row],[שעות]]*($N$9:$O$28*24))=0,\"\",\nSUMPRODUCT((שעות_עבודה7[[#This Row],[שם העבודה]]=$L$9:$M$28)*שעות_עבודה7[[#This Row],[שעות]]*($N$9:$O$28*24))))","v":""}]
[null,{"$f":"IF(שעות_עבודה7[[#This Row],[תאריך]]=\"\",\"\",ROW(A187))","v":""},null,null,null,null,{"$f":"IFERROR(IF(שעות_עבודה7[[#This Row],[סיום]]=\"\",\"\",שעות_עבודה7[[#This Row],[סיום]]-שעות_עבודה7[[#This Row],[התחלה]]+(שעות_עבודה7[[#This Row],[סיום]]<שעות_עבודה7[[#This Row],[התחלה]])),\"\")","v":""},{"$f":"IF(שעות_עבודה7[[#This Row],[שעות]]=\"\",\"\",\nIF(SUMPRODUCT((שעות_עבודה7[[#This Row],[שם העבודה]]=$L$9:$M$28)*שעות_עבודה7[[#This Row],[שעות]]*($N$9:$O$28*24))=0,\"\",\nSUMPRODUCT((שעות_עבודה7[[#This Row],[שם העבודה]]=$L$9:$M$28)*שעות_עבודה7[[#This Row],[שעות]]*($N$9:$O$28*24))))","v":""}]
[null,{"$f":"IF(שעות_עבודה7[[#This Row],[תאריך]]=\"\",\"\",ROW(A188))","v":""},null,null,null,null,{"$f":"IFERROR(IF(שעות_עבודה7[[#This Row],[סיום]]=\"\",\"\",שעות_עבודה7[[#This Row],[סיום]]-שעות_עבודה7[[#This Row],[התחלה]]+(שעות_עבודה7[[#This Row],[סיום]]<שעות_עבודה7[[#This Row],[התחלה]])),\"\")","v":""},{"$f":"IF(שעות_עבודה7[[#This Row],[שעות]]=\"\",\"\",\nIF(SUMPRODUCT((שעות_עבודה7[[#This Row],[שם העבודה]]=$L$9:$M$28)*שעות_עבודה7[[#This Row],[שעות]]*($N$9:$O$28*24))=0,\"\",\nSUMPRODUCT((שעות_עבודה7[[#This Row],[שם העבודה]]=$L$9:$M$28)*שעות_עבודה7[[#This Row],[שעות]]*($N$9:$O$28*24))))","v":""}]
[null,{"$f":"IF(שעות_עבודה7[[#This Row],[תאריך]]=\"\",\"\",ROW(A189))","v":""},null,null,null,null,{"$f":"IFERROR(IF(שעות_עבודה7[[#This Row],[סיום]]=\"\",\"\",שעות_עבודה7[[#This Row],[סיום]]-שעות_עבודה7[[#This Row],[התחלה]]+(שעות_עבודה7[[#This Row],[סיום]]<שעות_עבודה7[[#This Row],[התחלה]])),\"\")","v":""},{"$f":"IF(שעות_עבודה7[[#This Row],[שעות]]=\"\",\"\",\nIF(SUMPRODUCT((שעות_עבודה7[[#This Row],[שם העבודה]]=$L$9:$M$28)*שעות_עבודה7[[#This Row],[שעות]]*($N$9:$O$28*24))=0,\"\",\nSUMPRODUCT((שעות_עבודה7[[#This Row],[שם העבודה]]=$L$9:$M$28)*שעות_עבודה7[[#This Row],[שעות]]*($N$9:$O$28*24))))","v":""}]
[null,{"$f":"IF(שעות_עבודה7[[#This Row],[תאריך]]=\"\",\"\",ROW(A190))","v":""},null,null,null,null,{"$f":"IFERROR(IF(שעות_עבודה7[[#This Row],[סיום]]=\"\",\"\",שעות_עבודה7[[#This Row],[סיום]]-שעות_עבודה7[[#This Row],[התחלה]]+(שעות_עבודה7[[#This Row],[סיום]]<שעות_עבודה7[[#This Row],[התחלה]])),\"\")","v":""},{"$f":"IF(שעות_עבודה7[[#This Row],[שעות]]=\"\",\"\",\nIF(SUMPRODUCT((שעות_עבודה7[[#This Row],[שם העבודה]]=$L$9:$M$28)*שעות_עבודה7[[#This Row],[שעות]]*($N$9:$O$28*24))=0,\"\",\nSUMPRODUCT((שעות_עבודה7[[#This Row],[שם העבודה]]=$L$9:$M$28)*שעות_עבודה7[[#This Row],[שעות]]*($N$9:$O$28*24))))","v":""}]
[null,{"$f":"IF(שעות_עבודה7[[#This Row],[תאריך]]=\"\",\"\",ROW(A191))","v":""},null,null,null,null,{"$f":"IFERROR(IF(שעות_עבודה7[[#This Row],[סיום]]=\"\",\"\",שעות_עבודה7[[#This Row],[סיום]]-שעות_עבודה7[[#This Row],[התחלה]]+(שעות_עבודה7[[#This Row],[סיום]]<שעות_עבודה7[[#This Row],[התחלה]])),\"\")","v":""},{"$f":"IF(שעות_עבודה7[[#This Row],[שעות]]=\"\",\"\",\nIF(SUMPRODUCT((שעות_עבודה7[[#This Row],[שם העבודה]]=$L$9:$M$28)*שעות_עבודה7[[#This Row],[שעות]]*($N$9:$O$28*24))=0,\"\",\nSUMPRODUCT((שעות_עבודה7[[#This Row],[שם העבודה]]=$L$9:$M$28)*שעות_עבודה7[[#This Row],[שעות]]*($N$9:$O$28*24))))","v":""}]
[null,{"$f":"IF(שעות_עבודה7[[#This Row],[תאריך]]=\"\",\"\",ROW(A192))","v":""},null,null,null,null,{"$f":"IFERROR(IF(שעות_עבודה7[[#This Row],[סיום]]=\"\",\"\",שעות_עבודה7[[#This Row],[סיום]]-שעות_עבודה7[[#This Row],[התחלה]]+(שעות_עבודה7[[#This Row],[סיום]]<שעות_עבודה7[[#This Row],[התחלה]])),\"\")","v":""},{"$f":"IF(שעות_עבודה7[[#This Row],[שעות]]=\"\",\"\",\nIF(SUMPRODUCT((שעות_עבודה7[[#This Row],[שם העבודה]]=$L$9:$M$28)*שעות_עבודה7[[#This Row],[שעות]]*($N$9:$O$28*24))=0,\"\",\nSUMPRODUCT((שעות_עבודה7[[#This Row],[שם העבודה]]=$L$9:$M$28)*שעות_עבודה7[[#This Row],[שעות]]*($N$9:$O$28*24))))","v":""}]
[null,{"$f":"IF(שעות_עבודה7[[#This Row],[תאריך]]=\"\",\"\",ROW(A193))","v":""},null,null,null,null,{"$f":"IFERROR(IF(שעות_עבודה7[[#This Row],[סיום]]=\"\",\"\",שעות_עבודה7[[#This Row],[סיום]]-שעות_עבודה7[[#This Row],[התחלה]]+(שעות_עבודה7[[#This Row],[סיום]]<שעות_עבודה7[[#This Row],[התחלה]])),\"\")","v":""},{"$f":"IF(שעות_עבודה7[[#This Row],[שעות]]=\"\",\"\",\nIF(SUMPRODUCT((שעות_עבודה7[[#This Row],[שם העבודה]]=$L$9:$M$28)*שעות_עבודה7[[#This Row],[שעות]]*($N$9:$O$28*24))=0,\"\",\nSUMPRODUCT((שעות_עבודה7[[#This Row],[שם העבודה]]=$L$9:$M$28)*שעות_עבודה7[[#This Row],[שעות]]*($N$9:$O$28*24))))","v":""}]
[null,{"$f":"IF(שעות_עבודה7[[#This Row],[תאריך]]=\"\",\"\",ROW(A194))","v":""},null,null,null,null,{"$f":"IFERROR(IF(שעות_עבודה7[[#This Row],[סיום]]=\"\",\"\",שעות_עבודה7[[#This Row],[סיום]]-שעות_עבודה7[[#This Row],[התחלה]]+(שעות_עבודה7[[#This Row],[סיום]]<שעות_עבודה7[[#This Row],[התחלה]])),\"\")","v":""},{"$f":"IF(שעות_עבודה7[[#This Row],[שעות]]=\"\",\"\",\nIF(SUMPRODUCT((שעות_עבודה7[[#This Row],[שם העבודה]]=$L$9:$M$28)*שעות_עבודה7[[#This Row],[שעות]]*($N$9:$O$28*24))=0,\"\",\nSUMPRODUCT((שעות_עבודה7[[#This Row],[שם העבודה]]=$L$9:$M$28)*שעות_עבודה7[[#This Row],[שעות]]*($N$9:$O$28*24))))","v":""}]
[null,{"$f":"IF(שעות_עבודה7[[#This Row],[תאריך]]=\"\",\"\",ROW(A195))","v":""},null,null,null,null,{"$f":"IFERROR(IF(שעות_עבודה7[[#This Row],[סיום]]=\"\",\"\",שעות_עבודה7[[#This Row],[סיום]]-שעות_עבודה7[[#This Row],[התחלה]]+(שעות_עבודה7[[#This Row],[סיום]]<שעות_עבודה7[[#This Row],[התחלה]])),\"\")","v":""},{"$f":"IF(שעות_עבודה7[[#This Row],[שעות]]=\"\",\"\",\nIF(SUMPRODUCT((שעות_עבודה7[[#This Row],[שם העבודה]]=$L$9:$M$28)*שעות_עבודה7[[#This Row],[שעות]]*($N$9:$O$28*24))=0,\"\",\nSUMPRODUCT((שעות_עבודה7[[#This Row],[שם העבודה]]=$L$9:$M$28)*שעות_עבודה7[[#This Row],[שעות]]*($N$9:$O$28*24))))","v":""}]
[null,{"$f":"IF(שעות_עבודה7[[#This Row],[תאריך]]=\"\",\"\",ROW(A196))","v":""},null,null,null,null,{"$f":"IFERROR(IF(שעות_עבודה7[[#This Row],[סיום]]=\"\",\"\",שעות_עבודה7[[#This Row],[סיום]]-שעות_עבודה7[[#This Row],[התחלה]]+(שעות_עבודה7[[#This Row],[סיום]]<שעות_עבודה7[[#This Row],[התחלה]])),\"\")","v":""},{"$f":"IF(שעות_עבודה7[[#This Row],[שעות]]=\"\",\"\",\nIF(SUMPRODUCT((שעות_עבודה7[[#This Row],[שם העבודה]]=$L$9:$M$28)*שעות_עבודה7[[#This Row],[שעות]]*($N$9:$O$28*24))=0,\"\",\nSUMPRODUCT((שעות_עבודה7[[#This Row],[שם העבודה]]=$L$9:$M$28)*שעות_עבודה7[[#This Row],[שעות]]*($N$9:$O$28*24))))","v":""}]
[null,{"$f":"IF(שעות_עבודה7[[#This Row],[תאריך]]=\"\",\"\",ROW(A197))","v":""},null,null,null,null,{"$f":"IFERROR(IF(שעות_עבודה7[[#This Row],[סיום]]=\"\",\"\",שעות_עבודה7[[#This Row],[סיום]]-שעות_עבודה7[[#This Row],[התחלה]]+(שעות_עבודה7[[#This Row],[סיום]]<שעות_עבודה7[[#This Row],[התחלה]])),\"\")","v":""},{"$f":"IF(שעות_עבודה7[[#This Row],[שעות]]=\"\",\"\",\nIF(SUMPRODUCT((שעות_עבודה7[[#This Row],[שם העבודה]]=$L$9:$M$28)*שעות_עבודה7[[#This Row],[שעות]]*($N$9:$O$28*24))=0,\"\",\nSUMPRODUCT((שעות_עבודה7[[#This Row],[שם העבודה]]=$L$9:$M$28)*שעות_עבודה7[[#This Row],[שעות]]*($N$9:$O$28*24))))","v":""}]
[null,{"$f":"IF(שעות_עבודה7[[#This Row],[תאריך]]=\"\",\"\",ROW(A198))","v":""},null,null,null,null,{"$f":"IFERROR(IF(שעות_עבודה7[[#This Row],[סיום]]=\"\",\"\",שעות_עבודה7[[#This Row],[סיום]]-שעות_עבודה7[[#This Row],[התחלה]]+(שעות_עבודה7[[#This Row],[סיום]]<שעות_עבודה7[[#This Row],[התחלה]])),\"\")","v":""},{"$f":"IF(שעות_עבודה7[[#This Row],[שעות]]=\"\",\"\",\nIF(SUMPRODUCT((שעות_עבודה7[[#This Row],[שם העבודה]]=$L$9:$M$28)*שעות_עבודה7[[#This Row],[שעות]]*($N$9:$O$28*24))=0,\"\",\nSUMPRODUCT((שעות_עבודה7[[#This Row],[שם העבודה]]=$L$9:$M$28)*שעות_עבודה7[[#This Row],[שעות]]*($N$9:$O$28*24))))","v":""}]
[null,{"$f":"IF(שעות_עבודה7[[#This Row],[תאריך]]=\"\",\"\",ROW(A199))","v":""},null,null,null,null,{"$f":"IFERROR(IF(שעות_עבודה7[[#This Row],[סיום]]=\"\",\"\",שעות_עבודה7[[#This Row],[סיום]]-שעות_עבודה7[[#This Row],[התחלה]]+(שעות_עבודה7[[#This Row],[סיום]]<שעות_עבודה7[[#This Row],[התחלה]])),\"\")","v":""},{"$f":"IF(שעות_עבודה7[[#This Row],[שעות]]=\"\",\"\",\nIF(SUMPRODUCT((שעות_עבודה7[[#This Row],[שם העבודה]]=$L$9:$M$28)*שעות_עבודה7[[#This Row],[שעות]]*($N$9:$O$28*24))=0,\"\",\nSUMPRODUCT((שעות_עבודה7[[#This Row],[שם העבודה]]=$L$9:$M$28)*שעות_עבודה7[[#This Row],[שעות]]*($N$9:$O$28*24))))","v":""}]
[null,{"$f":"IF(שעות_עבודה7[[#This Row],[תאריך]]=\"\",\"\",ROW(A200))","v":""},null,null,null,null,{"$f":"IFERROR(IF(שעות_עבודה7[[#This Row],[סיום]]=\"\",\"\",שעות_עבודה7[[#This Row],[סיום]]-שעות_עבודה7[[#This Row],[התחלה]]+(שעות_עבודה7[[#This Row],[סיום]]<שעות_עבודה7[[#This Row],[התחלה]])),\"\")","v":""},{"$f":"IF(שעות_עבודה7[[#This Row],[שעות]]=\"\",\"\",\nIF(SUMPRODUCT((שעות_עבודה7[[#This Row],[שם העבודה]]=$L$9:$M$28)*שעות_עבודה7[[#This Row],[שעות]]*($N$9:$O$28*24))=0,\"\",\nSUMPRODUCT((שעות_עבודה7[[#This Row],[שם העבודה]]=$L$9:$M$28)*שעות_עבודה7[[#This Row],[שעות]]*($N$9:$O$28*24))))","v":""}]

{"sheet":"סך שעות","index":1,"n_rows":83,"n_cols":8,"rows_kept":83,"cut":false,"hidden":false,"merged":[[81,0,81,1],[82,0,82,1],[0,0,1,2],[1,4,1,5],[1,7,1,8],[2,0,2,2],[2,4,3,5],[2,6,3,6],[2,7,3,8]]}
["חישוב שעות עבודה"]
[null,null,null,null,"סה\"כ שעות",null,"שכר לשעה","לתשלום"]
["רשום את סך השעות שעבדת",null,null,null,{"$f":"SUM(טבלה13[סך השעות])","v":0},null,40,{"$f":"G3*E3*24","v":0}]
["סך השעות","הערות","תאריך"]
[]
[]
[]
[]
[]
[]
[]
[]
[]
[]
[]
[]
[]
[]
[]
[]
[]
[]
[]
[]
[]
[]
[]
[]
[]
[]
[]
[]
[]
[]
[]
[]
[]
[]
[]
[]
[]
[]
[]
[]
[]
[]
[]
[]
[]
[]
[]
[]
[]
[]
[]
[]
[]
[]
[]
[]
[]
[]
[]
[]
[]
[]
[]
[]
[]
[]
[]
[]
[]
[]
[]
[]
[]
[]
[]
[]
[]
["נוצר ע\"י שמואל"]
["abc0533118127@gmail.com"]

{"sheet":"תשלומים","index":2,"n_rows":3,"n_cols":5,"rows_kept":3,"cut":false,"hidden":false,"merged":[[0,0,1,3]]}
["רישום ומעקב תשלומים"]
[]
["בתאריך","התקבל סך","מאת","עבור עבודה","הערות"]